Payment Date,Transaction Number,Net Amount,Supplier (Beneficiary) Name,Local Supplier Internal Reference,Directorate / Service Where Expenditure Incurred,Service Category Label,Service Category URI,SeRCOP Expenditure Category,SeRCOP Expenditure Code,Purpose of Spend,SeRCOP Detailed Expenditure Code,Capital/Revenue,Procurement Classification
04/01/2022,2256123,346.16,HOUSING BENEFIT,299992,Resources,Housing Services,108,Transfer Payments,506,Housing Benefits,5048,Revenue,NON INFLUENCIBLE.NON INFLUENCIBLE
04/01/2022,2256124,391.24,HOUSING BENEFIT,299992,Resources,Housing Services,108,Transfer Payments,506,Housing Benefits,5048,Revenue,NON INFLUENCIBLE.NON INFLUENCIBLE
04/01/2022,2256125,2377.88,HOUSING BENEFIT,299992,Resources,Housing Services,108,Transfer Payments,506,Housing Benefits,5048,Revenue,NON INFLUENCIBLE.NON INFLUENCIBLE
04/01/2022,2256126,6827.72,HOUSING BENEFIT,299992,Resources,Housing Services,108,Transfer Payments,506,Housing Benefits,5048,Revenue,NON INFLUENCIBLE.NON INFLUENCIBLE
04/01/2022,2256127,730.92,HOUSING BENEFIT,299992,Resources,Housing Services,108,Transfer Payments,506,Housing Benefits,5048,Revenue,NON INFLUENCIBLE.NON INFLUENCIBLE
04/01/2022,2256128,391.24,HOUSING BENEFIT,299992,Resources,Housing Services,108,Transfer Payments,506,Housing Benefits,5048,Revenue,NON INFLUENCIBLE.NON INFLUENCIBLE
04/01/2022,2256129,360.00,HOUSING BENEFIT,299992,Resources,Housing Services,108,Transfer Payments,506,Housing Benefits,5048,Revenue,NON INFLUENCIBLE.NON INFLUENCIBLE
04/01/2022,2256130,356.60,HOUSING BENEFIT,299992,Resources,Housing Services,108,Transfer Payments,506,Housing Benefits,5048,Revenue,NON INFLUENCIBLE.NON INFLUENCIBLE
04/01/2022,2256131,377.60,HOUSING BENEFIT,299992,Resources,Housing Services,108,Transfer Payments,506,Housing Benefits,5048,Revenue,NON INFLUENCIBLE.NON INFLUENCIBLE
04/01/2022,2256132,1090.20,HOUSING BENEFIT,299992,Resources,Housing Services,108,Transfer Payments,506,Housing Benefits,5048,Revenue,NON INFLUENCIBLE.NON INFLUENCIBLE
04/01/2022,2256133,391.24,HOUSING BENEFIT,299992,Resources,Housing Services,108,Transfer Payments,506,Housing Benefits,5048,Revenue,NON INFLUENCIBLE.NON INFLUENCIBLE
04/01/2022,2256134,369.24,HOUSING BENEFIT,299992,Resources,Housing Services,108,Transfer Payments,506,Housing Benefits,5048,Revenue,NON INFLUENCIBLE.NON INFLUENCIBLE
04/01/2022,2256135,437.28,HOUSING BENEFIT,299992,Resources,Housing Services,108,Transfer Payments,506,Housing Benefits,5048,Revenue,NON INFLUENCIBLE.NON INFLUENCIBLE
04/01/2022,2256136,507.68,HOUSING BENEFIT,299992,Resources,Housing Services,108,Transfer Payments,506,Housing Benefits,5048,Revenue,NON INFLUENCIBLE.NON INFLUENCIBLE
04/01/2022,2256137,391.24,HOUSING BENEFIT,299992,Resources,Housing Services,108,Transfer Payments,506,Housing Benefits,5048,Revenue,NON INFLUENCIBLE.NON INFLUENCIBLE
04/01/2022,2256138,901.92,HOUSING BENEFIT,299992,Resources,Housing Services,108,Transfer Payments,506,Housing Benefits,5048,Revenue,NON INFLUENCIBLE.NON INFLUENCIBLE
04/01/2022,2256139,364.60,HOUSING BENEFIT,299992,Resources,Housing Services,108,Transfer Payments,506,Housing Benefits,5048,Revenue,NON INFLUENCIBLE.NON INFLUENCIBLE
04/01/2022,2256152,302.64,HOUSING BENEFIT,299992,Resources,Housing Services,108,Transfer Payments,506,Housing Benefits,5048,Revenue,NON INFLUENCIBLE.NON INFLUENCIBLE
04/01/2022,2256163,692.32,HOUSING BENEFIT,299992,Resources,Housing Services,108,Transfer Payments,506,Housing Benefits,5048,Revenue,NON INFLUENCIBLE.NON INFLUENCIBLE
04/01/2022,2256164,461.52,HOUSING BENEFIT,299992,Resources,Housing Services,108,Transfer Payments,506,Housing Benefits,5048,Revenue,NON INFLUENCIBLE.NON INFLUENCIBLE
04/01/2022,2256167,530.76,HOUSING BENEFIT,299992,Resources,Housing Services,108,Transfer Payments,506,Housing Benefits,5048,Revenue,NON INFLUENCIBLE.NON INFLUENCIBLE
04/01/2022,2256168,3667.24,HOUSING BENEFIT,299992,Resources,Housing Services,108,Transfer Payments,506,Housing Benefits,5048,Revenue,NON INFLUENCIBLE.NON INFLUENCIBLE
04/01/2022,2256169,437.28,HOUSING BENEFIT,299992,Resources,Housing Services,108,Transfer Payments,506,Housing Benefits,5048,Revenue,NON INFLUENCIBLE.NON INFLUENCIBLE
04/01/2022,2256170,340.00,HOUSING BENEFIT,299992,Resources,Housing Services,108,Transfer Payments,506,Housing Benefits,5048,Revenue,NON INFLUENCIBLE.NON INFLUENCIBLE
04/01/2022,2256171,291.84,HOUSING BENEFIT,299992,Resources,Housing Services,108,Transfer Payments,506,Housing Benefits,5048,Revenue,NON INFLUENCIBLE.NON INFLUENCIBLE
04/01/2022,2256172,349.70,HOUSING BENEFIT,299992,Resources,Housing Services,108,Transfer Payments,506,Housing Benefits,5048,Revenue,NON INFLUENCIBLE.NON INFLUENCIBLE
04/01/2022,2256173,369.24,HOUSING BENEFIT,299992,Resources,Housing Services,108,Transfer Payments,506,Housing Benefits,5048,Revenue,NON INFLUENCIBLE.NON INFLUENCIBLE
04/01/2022,2256174,391.24,HOUSING BENEFIT,299992,Resources,Housing Services,108,Transfer Payments,506,Housing Benefits,5048,Revenue,NON INFLUENCIBLE.NON INFLUENCIBLE
04/01/2022,2256175,392.32,HOUSING BENEFIT,299992,Resources,Housing Services,108,Transfer Payments,506,Housing Benefits,5048,Revenue,NON INFLUENCIBLE.NON INFLUENCIBLE
04/01/2022,2256176,391.24,HOUSING BENEFIT,299992,Resources,Housing Services,108,Transfer Payments,506,Housing Benefits,5048,Revenue,NON INFLUENCIBLE.NON INFLUENCIBLE
04/01/2022,2256177,391.24,HOUSING BENEFIT,299992,Resources,Housing Services,108,Transfer Payments,506,Housing Benefits,5048,Revenue,NON INFLUENCIBLE.NON INFLUENCIBLE
04/01/2022,2256178,201810.65,HOUSING BENEFIT,299992,Resources,Housing Services,108,Transfer Payments,506,Housing Benefits,5048,Revenue,NON INFLUENCIBLE.NON INFLUENCIBLE
04/01/2022,2256179,391.24,HOUSING BENEFIT,299992,Resources,Housing Services,108,Transfer Payments,506,Housing Benefits,5048,Revenue,NON INFLUENCIBLE.NON INFLUENCIBLE
04/01/2022,2256180,1021.16,HOUSING BENEFIT,299992,Resources,Housing Services,108,Transfer Payments,506,Housing Benefits,5048,Revenue,NON INFLUENCIBLE.NON INFLUENCIBLE
04/01/2022,2256181,369.24,HOUSING BENEFIT,299992,Resources,Housing Services,108,Transfer Payments,506,Housing Benefits,5048,Revenue,NON INFLUENCIBLE.NON INFLUENCIBLE
04/01/2022,2256182,1307.78,HOUSING BENEFIT,299992,Resources,Housing Services,108,Transfer Payments,506,Housing Benefits,5048,Revenue,NON INFLUENCIBLE.NON INFLUENCIBLE
04/01/2022,2256183,406.16,HOUSING BENEFIT,299992,Resources,Housing Services,108,Transfer Payments,506,Housing Benefits,5048,Revenue,NON INFLUENCIBLE.NON INFLUENCIBLE
04/01/2022,2256184,480.00,HOUSING BENEFIT,299992,Resources,Housing Services,108,Transfer Payments,506,Housing Benefits,5048,Revenue,NON INFLUENCIBLE.NON INFLUENCIBLE
04/01/2022,2256185,754.84,HOUSING BENEFIT,299992,Resources,Housing Services,108,Transfer Payments,506,Housing Benefits,5048,Revenue,NON INFLUENCIBLE.NON INFLUENCIBLE
04/01/2022,2256189,454.16,HOUSING BENEFIT,299992,Resources,Housing Services,108,Transfer Payments,506,Housing Benefits,5048,Revenue,NON INFLUENCIBLE.NON INFLUENCIBLE
04/01/2022,2256190,909.00,HOUSING BENEFIT,299992,Resources,Housing Services,108,Transfer Payments,506,Housing Benefits,5048,Revenue,NON INFLUENCIBLE.NON INFLUENCIBLE
04/01/2022,2256191,480.00,HOUSING BENEFIT,299992,Resources,Housing Services,108,Transfer Payments,506,Housing Benefits,5048,Revenue,NON INFLUENCIBLE.NON INFLUENCIBLE
04/01/2022,2256192,465.72,HOUSING BENEFIT,299992,Resources,Housing Services,108,Transfer Payments,506,Housing Benefits,5048,Revenue,NON INFLUENCIBLE.NON INFLUENCIBLE
04/01/2022,2256198,391.24,HOUSING BENEFIT,299992,Resources,Housing Services,108,Transfer Payments,506,Housing Benefits,5048,Revenue,NON INFLUENCIBLE.NON INFLUENCIBLE
04/01/2022,2256199,506.32,HOUSING BENEFIT,299992,Resources,Housing Services,108,Transfer Payments,506,Housing Benefits,5048,Revenue,NON INFLUENCIBLE.NON INFLUENCIBLE
04/01/2022,2256200,6701.88,HOUSING BENEFIT,299992,Resources,Housing Services,108,Transfer Payments,506,Housing Benefits,5048,Revenue,NON INFLUENCIBLE.NON INFLUENCIBLE
04/01/2022,2256201,715.40,HOUSING BENEFIT,299992,Resources,Housing Services,108,Transfer Payments,506,Housing Benefits,5048,Revenue,NON INFLUENCIBLE.NON INFLUENCIBLE
04/01/2022,2256202,369.24,HOUSING BENEFIT,299992,Resources,Housing Services,108,Transfer Payments,506,Housing Benefits,5048,Revenue,NON INFLUENCIBLE.NON INFLUENCIBLE
04/01/2022,2256203,437.28,HOUSING BENEFIT,299992,Resources,Housing Services,108,Transfer Payments,506,Housing Benefits,5048,Revenue,NON INFLUENCIBLE.NON INFLUENCIBLE
04/01/2022,2256204,587.80,HOUSING BENEFIT,299992,Resources,Housing Services,108,Transfer Payments,506,Housing Benefits,5048,Revenue,NON INFLUENCIBLE.NON INFLUENCIBLE
04/01/2022,2256205,391.24,HOUSING BENEFIT,299992,Resources,Housing Services,108,Transfer Payments,506,Housing Benefits,5048,Revenue,NON INFLUENCIBLE.NON INFLUENCIBLE
04/01/2022,2256206,391.24,HOUSING BENEFIT,299992,Resources,Housing Services,108,Transfer Payments,506,Housing Benefits,5048,Revenue,NON INFLUENCIBLE.NON INFLUENCIBLE
04/01/2022,2256207,280.76,HOUSING BENEFIT,299992,Resources,Housing Services,108,Transfer Payments,506,Housing Benefits,5048,Revenue,NON INFLUENCIBLE.NON INFLUENCIBLE
04/01/2022,2256208,391.24,HOUSING BENEFIT,299992,Resources,Housing Services,108,Transfer Payments,506,Housing Benefits,5048,Revenue,NON INFLUENCIBLE.NON INFLUENCIBLE
04/01/2022,2256209,391.24,HOUSING BENEFIT,299992,Resources,Housing Services,108,Transfer Payments,506,Housing Benefits,5048,Revenue,NON INFLUENCIBLE.NON INFLUENCIBLE
04/01/2022,2256210,364.60,HOUSING BENEFIT,299992,Resources,Housing Services,108,Transfer Payments,506,Housing Benefits,5048,Revenue,NON INFLUENCIBLE.NON INFLUENCIBLE
04/01/2022,2256211,255.80,HOUSING BENEFIT,299992,Resources,Housing Services,108,Transfer Payments,506,Housing Benefits,5048,Revenue,NON INFLUENCIBLE.NON INFLUENCIBLE
04/01/2022,2256212,369.24,HOUSING BENEFIT,299992,Resources,Housing Services,108,Transfer Payments,506,Housing Benefits,5048,Revenue,NON INFLUENCIBLE.NON INFLUENCIBLE
04/01/2022,2256213,506.32,HOUSING BENEFIT,299992,Resources,Housing Services,108,Transfer Payments,506,Housing Benefits,5048,Revenue,NON INFLUENCIBLE.NON INFLUENCIBLE
04/01/2022,2256214,346.16,HOUSING BENEFIT,299992,Resources,Housing Services,108,Transfer Payments,506,Housing Benefits,5048,Revenue,NON INFLUENCIBLE.NON INFLUENCIBLE
04/01/2022,2256215,400.00,HOUSING BENEFIT,299992,Resources,Housing Services,108,Transfer Payments,506,Housing Benefits,5048,Revenue,NON INFLUENCIBLE.NON INFLUENCIBLE
04/01/2022,2256216,364.60,HOUSING BENEFIT,299992,Resources,Housing Services,108,Transfer Payments,506,Housing Benefits,5048,Revenue,NON INFLUENCIBLE.NON INFLUENCIBLE
04/01/2022,2256217,5378.44,HOUSING BENEFIT,299992,Resources,Housing Services,108,Transfer Payments,506,Housing Benefits,5048,Revenue,NON INFLUENCIBLE.NON INFLUENCIBLE
04/01/2022,2256218,1173.72,HOUSING BENEFIT,299992,Resources,Housing Services,108,Transfer Payments,506,Housing Benefits,5048,Revenue,NON INFLUENCIBLE.NON INFLUENCIBLE
04/01/2022,2256219,391.24,HOUSING BENEFIT,299992,Resources,Housing Services,108,Transfer Payments,506,Housing Benefits,5048,Revenue,NON INFLUENCIBLE.NON INFLUENCIBLE
04/01/2022,2256220,369.24,HOUSING BENEFIT,299992,Resources,Housing Services,108,Transfer Payments,506,Housing Benefits,5048,Revenue,NON INFLUENCIBLE.NON INFLUENCIBLE
04/01/2022,2256221,737.40,HOUSING BENEFIT,299992,Resources,Housing Services,108,Transfer Payments,506,Housing Benefits,5048,Revenue,NON INFLUENCIBLE.NON INFLUENCIBLE
04/01/2022,2256222,391.24,HOUSING BENEFIT,299992,Resources,Housing Services,108,Transfer Payments,506,Housing Benefits,5048,Revenue,NON INFLUENCIBLE.NON INFLUENCIBLE
04/01/2022,2256223,3153.12,HOUSING BENEFIT,299992,Resources,Housing Services,108,Transfer Payments,506,Housing Benefits,5048,Revenue,NON INFLUENCIBLE.NON INFLUENCIBLE
04/01/2022,2256224,391.24,HOUSING BENEFIT,299992,Resources,Housing Services,108,Transfer Payments,506,Housing Benefits,5048,Revenue,NON INFLUENCIBLE.NON INFLUENCIBLE
04/01/2022,2256225,364.60,HOUSING BENEFIT,299992,Resources,Housing Services,108,Transfer Payments,506,Housing Benefits,5048,Revenue,NON INFLUENCIBLE.NON INFLUENCIBLE
04/01/2022,2256226,461.52,HOUSING BENEFIT,299992,Resources,Housing Services,108,Transfer Payments,506,Housing Benefits,5048,Revenue,NON INFLUENCIBLE.NON INFLUENCIBLE
04/01/2022,2256227,370.00,HOUSING BENEFIT,299992,Resources,Housing Services,108,Transfer Payments,506,Housing Benefits,5048,Revenue,NON INFLUENCIBLE.NON INFLUENCIBLE
04/01/2022,2256228,373.84,HOUSING BENEFIT,299992,Resources,Housing Services,108,Transfer Payments,506,Housing Benefits,5048,Revenue,NON INFLUENCIBLE.NON INFLUENCIBLE
04/01/2022,2256229,265.16,HOUSING BENEFIT,299992,Resources,Housing Services,108,Transfer Payments,506,Housing Benefits,5048,Revenue,NON INFLUENCIBLE.NON INFLUENCIBLE
04/01/2022,2256230,308.44,HOUSING BENEFIT,299992,Resources,Housing Services,108,Transfer Payments,506,Housing Benefits,5048,Revenue,NON INFLUENCIBLE.NON INFLUENCIBLE
04/01/2022,2256232,370.00,HOUSING BENEFIT,299992,Resources,Housing Services,108,Transfer Payments,506,Housing Benefits,5048,Revenue,NON INFLUENCIBLE.NON INFLUENCIBLE
04/01/2022,2256233,368.00,HOUSING BENEFIT,299992,Resources,Housing Services,108,Transfer Payments,506,Housing Benefits,5048,Revenue,NON INFLUENCIBLE.NON INFLUENCIBLE
04/01/2022,2256234,9297.96,HOUSING BENEFIT,299992,Resources,Housing Services,108,Transfer Payments,506,Housing Benefits,5048,Revenue,NON INFLUENCIBLE.NON INFLUENCIBLE
04/01/2022,2256235,1103.80,HOUSING BENEFIT,299992,Resources,Housing Services,108,Transfer Payments,506,Housing Benefits,5048,Revenue,NON INFLUENCIBLE.NON INFLUENCIBLE
04/01/2022,2256236,391.24,HOUSING BENEFIT,299992,Resources,Housing Services,108,Transfer Payments,506,Housing Benefits,5048,Revenue,NON INFLUENCIBLE.NON INFLUENCIBLE
04/01/2022,2256237,391.24,HOUSING BENEFIT,299992,Resources,Housing Services,108,Transfer Payments,506,Housing Benefits,5048,Revenue,NON INFLUENCIBLE.NON INFLUENCIBLE
04/01/2022,2256238,391.24,HOUSING BENEFIT,299992,Resources,Housing Services,108,Transfer Payments,506,Housing Benefits,5048,Revenue,NON INFLUENCIBLE.NON INFLUENCIBLE
04/01/2022,2256239,391.24,HOUSING BENEFIT,299992,Resources,Housing Services,108,Transfer Payments,506,Housing Benefits,5048,Revenue,NON INFLUENCIBLE.NON INFLUENCIBLE
04/01/2022,2256240,369.24,HOUSING BENEFIT,299992,Resources,Housing Services,108,Transfer Payments,506,Housing Benefits,5048,Revenue,NON INFLUENCIBLE.NON INFLUENCIBLE
04/01/2022,2256241,391.24,HOUSING BENEFIT,299992,Resources,Housing Services,108,Transfer Payments,506,Housing Benefits,5048,Revenue,NON INFLUENCIBLE.NON INFLUENCIBLE
04/01/2022,2256242,438.48,HOUSING BENEFIT,299992,Resources,Housing Services,108,Transfer Payments,506,Housing Benefits,5048,Revenue,NON INFLUENCIBLE.NON INFLUENCIBLE
04/01/2022,2256243,323.08,HOUSING BENEFIT,299992,Resources,Housing Services,108,Transfer Payments,506,Housing Benefits,5048,Revenue,NON INFLUENCIBLE.NON INFLUENCIBLE
04/01/2022,2256244,679.68,HOUSING BENEFIT,299992,Resources,Housing Services,108,Transfer Payments,506,Housing Benefits,5048,Revenue,NON INFLUENCIBLE.NON INFLUENCIBLE
04/01/2022,2256245,391.24,HOUSING BENEFIT,299992,Resources,Housing Services,108,Transfer Payments,506,Housing Benefits,5048,Revenue,NON INFLUENCIBLE.NON INFLUENCIBLE
04/01/2022,2256246,391.24,HOUSING BENEFIT,299992,Resources,Housing Services,108,Transfer Payments,506,Housing Benefits,5048,Revenue,NON INFLUENCIBLE.NON INFLUENCIBLE
04/01/2022,2256247,412.56,HOUSING BENEFIT,299992,Resources,Housing Services,108,Transfer Payments,506,Housing Benefits,5048,Revenue,NON INFLUENCIBLE.NON INFLUENCIBLE
04/01/2022,2256248,506.32,HOUSING BENEFIT,299992,Resources,Housing Services,108,Transfer Payments,506,Housing Benefits,5048,Revenue,NON INFLUENCIBLE.NON INFLUENCIBLE
04/01/2022,2256249,782.48,HOUSING BENEFIT,299992,Resources,Housing Services,108,Transfer Payments,506,Housing Benefits,5048,Revenue,NON INFLUENCIBLE.NON INFLUENCIBLE
04/01/2022,2256250,391.24,HOUSING BENEFIT,299992,Resources,Housing Services,108,Transfer Payments,506,Housing Benefits,5048,Revenue,NON INFLUENCIBLE.NON INFLUENCIBLE
04/01/2022,2256251,506.32,HOUSING BENEFIT,299992,Resources,Housing Services,108,Transfer Payments,506,Housing Benefits,5048,Revenue,NON INFLUENCIBLE.NON INFLUENCIBLE
04/01/2022,2256252,391.24,HOUSING BENEFIT,299992,Resources,Housing Services,108,Transfer Payments,506,Housing Benefits,5048,Revenue,NON INFLUENCIBLE.NON INFLUENCIBLE
04/01/2022,2256253,378.48,HOUSING BENEFIT,299992,Resources,Housing Services,108,Transfer Payments,506,Housing Benefits,5048,Revenue,NON INFLUENCIBLE.NON INFLUENCIBLE
04/01/2022,2256254,828.52,HOUSING BENEFIT,299992,Resources,Housing Services,108,Transfer Payments,506,Housing Benefits,5048,Revenue,NON INFLUENCIBLE.NON INFLUENCIBLE
04/01/2022,2256256,364.60,HOUSING BENEFIT,299992,Resources,Housing Services,108,Transfer Payments,506,Housing Benefits,5048,Revenue,NON INFLUENCIBLE.NON INFLUENCIBLE
04/01/2022,2256257,506.32,HOUSING BENEFIT,299992,Resources,Housing Services,108,Transfer Payments,506,Housing Benefits,5048,Revenue,NON INFLUENCIBLE.NON INFLUENCIBLE
04/01/2022,2256258,369.24,HOUSING BENEFIT,299992,Resources,Housing Services,108,Transfer Payments,506,Housing Benefits,5048,Revenue,NON INFLUENCIBLE.NON INFLUENCIBLE
04/01/2022,2256259,491.60,HOUSING BENEFIT,299992,Resources,Housing Services,108,Transfer Payments,506,Housing Benefits,5048,Revenue,NON INFLUENCIBLE.NON INFLUENCIBLE
04/01/2022,2256260,415.40,HOUSING BENEFIT,299992,Resources,Housing Services,108,Transfer Payments,506,Housing Benefits,5048,Revenue,NON INFLUENCIBLE.NON INFLUENCIBLE
04/01/2022,2256261,437.28,HOUSING BENEFIT,299992,Resources,Housing Services,108,Transfer Payments,506,Housing Benefits,5048,Revenue,NON INFLUENCIBLE.NON INFLUENCIBLE
04/01/2022,2256262,280.76,HOUSING BENEFIT,299992,Resources,Housing Services,108,Transfer Payments,506,Housing Benefits,5048,Revenue,NON INFLUENCIBLE.NON INFLUENCIBLE
04/01/2022,2256263,1700.00,HOUSING BENEFIT,299992,Resources,Housing Services,108,Transfer Payments,506,Housing Benefits,5048,Revenue,NON INFLUENCIBLE.NON INFLUENCIBLE
04/01/2022,2256264,437.28,HOUSING BENEFIT,299992,Resources,Housing Services,108,Transfer Payments,506,Housing Benefits,5048,Revenue,NON INFLUENCIBLE.NON INFLUENCIBLE
04/01/2022,2256266,316.24,HOUSING BENEFIT,299992,Resources,Housing Services,108,Transfer Payments,506,Housing Benefits,5048,Revenue,NON INFLUENCIBLE.NON INFLUENCIBLE
04/01/2022,2256267,391.24,HOUSING BENEFIT,299992,Resources,Housing Services,108,Transfer Payments,506,Housing Benefits,5048,Revenue,NON INFLUENCIBLE.NON INFLUENCIBLE
04/01/2022,2256268,364.60,HOUSING BENEFIT,299992,Resources,Housing Services,108,Transfer Payments,506,Housing Benefits,5048,Revenue,NON INFLUENCIBLE.NON INFLUENCIBLE
04/01/2022,2256269,461.52,HOUSING BENEFIT,299992,Resources,Housing Services,108,Transfer Payments,506,Housing Benefits,5048,Revenue,NON INFLUENCIBLE.NON INFLUENCIBLE
04/01/2022,2256270,42906.78,HOUSING BENEFIT,299992,Resources,Housing Services,108,Transfer Payments,506,Housing Benefits,5048,Revenue,NON INFLUENCIBLE.NON INFLUENCIBLE
04/01/2022,2256271,364.60,HOUSING BENEFIT,299992,Resources,Housing Services,108,Transfer Payments,506,Housing Benefits,5048,Revenue,NON INFLUENCIBLE.NON INFLUENCIBLE
04/01/2022,2256272,349.32,HOUSING BENEFIT,299992,Resources,Housing Services,108,Transfer Payments,506,Housing Benefits,5048,Revenue,NON INFLUENCIBLE.NON INFLUENCIBLE
04/01/2022,2256273,314.08,HOUSING BENEFIT,299992,Resources,Housing Services,108,Transfer Payments,506,Housing Benefits,5048,Revenue,NON INFLUENCIBLE.NON INFLUENCIBLE
04/01/2022,2256274,346.16,HOUSING BENEFIT,299992,Resources,Housing Services,108,Transfer Payments,506,Housing Benefits,5048,Revenue,NON INFLUENCIBLE.NON INFLUENCIBLE
04/01/2022,2256275,391.24,HOUSING BENEFIT,299992,Resources,Housing Services,108,Transfer Payments,506,Housing Benefits,5048,Revenue,NON INFLUENCIBLE.NON INFLUENCIBLE
04/01/2022,2256277,391.24,HOUSING BENEFIT,299992,Resources,Housing Services,108,Transfer Payments,506,Housing Benefits,5048,Revenue,NON INFLUENCIBLE.NON INFLUENCIBLE
04/01/2022,2256278,3592.40,HOUSING BENEFIT,299992,Resources,Housing Services,108,Transfer Payments,506,Housing Benefits,5048,Revenue,NON INFLUENCIBLE.NON INFLUENCIBLE
04/01/2022,2256280,360.00,HOUSING BENEFIT,299992,Resources,Housing Services,108,Transfer Payments,506,Housing Benefits,5048,Revenue,NON INFLUENCIBLE.NON INFLUENCIBLE
04/01/2022,2256281,391.24,HOUSING BENEFIT,299992,Resources,Housing Services,108,Transfer Payments,506,Housing Benefits,5048,Revenue,NON INFLUENCIBLE.NON INFLUENCIBLE
04/01/2022,2256282,437.28,HOUSING BENEFIT,299992,Resources,Housing Services,108,Transfer Payments,506,Housing Benefits,5048,Revenue,NON INFLUENCIBLE.NON INFLUENCIBLE
04/01/2022,2256283,3512.72,HOUSING BENEFIT,299992,Resources,Housing Services,108,Transfer Payments,506,Housing Benefits,5048,Revenue,NON INFLUENCIBLE.NON INFLUENCIBLE
04/01/2022,2256284,254.32,HOUSING BENEFIT,299992,Resources,Housing Services,108,Transfer Payments,506,Housing Benefits,5048,Revenue,NON INFLUENCIBLE.NON INFLUENCIBLE
04/01/2022,2256285,391.24,HOUSING BENEFIT,299992,Resources,Housing Services,108,Transfer Payments,506,Housing Benefits,5048,Revenue,NON INFLUENCIBLE.NON INFLUENCIBLE
04/01/2022,2256286,711.24,HOUSING BENEFIT,299992,Resources,Housing Services,108,Transfer Payments,506,Housing Benefits,5048,Revenue,NON INFLUENCIBLE.NON INFLUENCIBLE
04/01/2022,2256287,777.28,HOUSING BENEFIT,299992,Resources,Housing Services,108,Transfer Payments,506,Housing Benefits,5048,Revenue,NON INFLUENCIBLE.NON INFLUENCIBLE
04/01/2022,2256288,391.24,HOUSING BENEFIT,299992,Resources,Housing Services,108,Transfer Payments,506,Housing Benefits,5048,Revenue,NON INFLUENCIBLE.NON INFLUENCIBLE
04/01/2022,2256289,433.84,HOUSING BENEFIT,299992,Resources,Housing Services,108,Transfer Payments,506,Housing Benefits,5048,Revenue,NON INFLUENCIBLE.NON INFLUENCIBLE
04/01/2022,2256290,391.24,HOUSING BENEFIT,299992,Resources,Housing Services,108,Transfer Payments,506,Housing Benefits,5048,Revenue,NON INFLUENCIBLE.NON INFLUENCIBLE
04/01/2022,2256291,364.60,HOUSING BENEFIT,299992,Resources,Housing Services,108,Transfer Payments,506,Housing Benefits,5048,Revenue,NON INFLUENCIBLE.NON INFLUENCIBLE
04/01/2022,2256292,370.76,HOUSING BENEFIT,299992,Resources,Housing Services,108,Transfer Payments,506,Housing Benefits,5048,Revenue,NON INFLUENCIBLE.NON INFLUENCIBLE
04/01/2022,2256293,369.24,HOUSING BENEFIT,299992,Resources,Housing Services,108,Transfer Payments,506,Housing Benefits,5048,Revenue,NON INFLUENCIBLE.NON INFLUENCIBLE
04/01/2022,2256294,4773.36,HOUSING BENEFIT,299992,Resources,Housing Services,108,Transfer Payments,506,Housing Benefits,5048,Revenue,NON INFLUENCIBLE.NON INFLUENCIBLE
04/01/2022,2256295,7634.04,HOUSING BENEFIT,299992,Resources,Housing Services,108,Transfer Payments,506,Housing Benefits,5048,Revenue,NON INFLUENCIBLE.NON INFLUENCIBLE
04/01/2022,2256296,391.24,HOUSING BENEFIT,299992,Resources,Housing Services,108,Transfer Payments,506,Housing Benefits,5048,Revenue,NON INFLUENCIBLE.NON INFLUENCIBLE
04/01/2022,2256297,391.24,HOUSING BENEFIT,299992,Resources,Housing Services,108,Transfer Payments,506,Housing Benefits,5048,Revenue,NON INFLUENCIBLE.NON INFLUENCIBLE
04/01/2022,2256299,1367.52,HOUSING BENEFIT,299992,Resources,Housing Services,108,Transfer Payments,506,Housing Benefits,5048,Revenue,NON INFLUENCIBLE.NON INFLUENCIBLE
04/01/2022,2256300,391.24,HOUSING BENEFIT,299992,Resources,Housing Services,108,Transfer Payments,506,Housing Benefits,5048,Revenue,NON INFLUENCIBLE.NON INFLUENCIBLE
04/01/2022,2256301,141186.22,HOUSING BENEFIT,299992,Resources,Housing Services,108,Transfer Payments,506,Housing Benefits,5048,Revenue,NON INFLUENCIBLE.NON INFLUENCIBLE
04/01/2022,2256302,1002.44,HOUSING BENEFIT,299992,Resources,Housing Services,108,Transfer Payments,506,Housing Benefits,5048,Revenue,NON INFLUENCIBLE.NON INFLUENCIBLE
04/01/2022,2256303,40044.57,HOUSING BENEFIT,299992,Resources,Housing Services,108,Transfer Payments,506,Housing Benefits,5048,Revenue,NON INFLUENCIBLE.NON INFLUENCIBLE
04/01/2022,2256304,81426.49,HOUSING BENEFIT,299992,Resources,Housing Services,108,Transfer Payments,506,Housing Benefits,5048,Revenue,NON INFLUENCIBLE.NON INFLUENCIBLE
04/01/2022,2256306,350.00,HOUSING BENEFIT,299992,Resources,Housing Services,108,Transfer Payments,506,Housing Benefits,5048,Revenue,NON INFLUENCIBLE.NON INFLUENCIBLE
04/01/2022,2256308,288.36,HOUSING BENEFIT,299992,Resources,Housing Services,108,Transfer Payments,506,Housing Benefits,5048,Revenue,NON INFLUENCIBLE.NON INFLUENCIBLE
04/01/2022,2256309,391.24,HOUSING BENEFIT,299992,Resources,Housing Services,108,Transfer Payments,506,Housing Benefits,5048,Revenue,NON INFLUENCIBLE.NON INFLUENCIBLE
04/01/2022,2256310,364.60,HOUSING BENEFIT,299992,Resources,Housing Services,108,Transfer Payments,506,Housing Benefits,5048,Revenue,NON INFLUENCIBLE.NON INFLUENCIBLE
04/01/2022,2256311,369.24,HOUSING BENEFIT,299992,Resources,Housing Services,108,Transfer Payments,506,Housing Benefits,5048,Revenue,NON INFLUENCIBLE.NON INFLUENCIBLE
04/01/2022,2256312,391.24,HOUSING BENEFIT,299992,Resources,Housing Services,108,Transfer Payments,506,Housing Benefits,5048,Revenue,NON INFLUENCIBLE.NON INFLUENCIBLE
04/01/2022,2256313,8883.16,HOUSING BENEFIT,299992,Resources,Housing Services,108,Transfer Payments,506,Housing Benefits,5048,Revenue,NON INFLUENCIBLE.NON INFLUENCIBLE
04/01/2022,2256314,6353.88,HOUSING BENEFIT,299992,Resources,Housing Services,108,Transfer Payments,506,Housing Benefits,5048,Revenue,NON INFLUENCIBLE.NON INFLUENCIBLE
04/01/2022,2256315,391.24,HOUSING BENEFIT,299992,Resources,Housing Services,108,Transfer Payments,506,Housing Benefits,5048,Revenue,NON INFLUENCIBLE.NON INFLUENCIBLE
04/01/2022,2256316,391.24,HOUSING BENEFIT,299992,Resources,Housing Services,108,Transfer Payments,506,Housing Benefits,5048,Revenue,NON INFLUENCIBLE.NON INFLUENCIBLE
04/01/2022,2256317,360.00,HOUSING BENEFIT,299992,Resources,Housing Services,108,Transfer Payments,506,Housing Benefits,5048,Revenue,NON INFLUENCIBLE.NON INFLUENCIBLE
04/01/2022,2256318,1219.76,HOUSING BENEFIT,299992,Resources,Housing Services,108,Transfer Payments,506,Housing Benefits,5048,Revenue,NON INFLUENCIBLE.NON INFLUENCIBLE
04/01/2022,2256319,338.76,HOUSING BENEFIT,299992,Resources,Housing Services,108,Transfer Payments,506,Housing Benefits,5048,Revenue,NON INFLUENCIBLE.NON INFLUENCIBLE
04/01/2022,2256320,772.28,HOUSING BENEFIT,299992,Resources,Housing Services,108,Transfer Payments,506,Housing Benefits,5048,Revenue,NON INFLUENCIBLE.NON INFLUENCIBLE
04/01/2022,2256321,1957.20,HOUSING BENEFIT,299992,Resources,Housing Services,108,Transfer Payments,506,Housing Benefits,5048,Revenue,NON INFLUENCIBLE.NON INFLUENCIBLE
04/01/2022,2256322,1082.48,HOUSING BENEFIT,299992,Resources,Housing Services,108,Transfer Payments,506,Housing Benefits,5048,Revenue,NON INFLUENCIBLE.NON INFLUENCIBLE
04/01/2022,2256323,391.24,HOUSING BENEFIT,299992,Resources,Housing Services,108,Transfer Payments,506,Housing Benefits,5048,Revenue,NON INFLUENCIBLE.NON INFLUENCIBLE
04/01/2022,2256324,442.52,HOUSING BENEFIT,299992,Resources,Housing Services,108,Transfer Payments,506,Housing Benefits,5048,Revenue,NON INFLUENCIBLE.NON INFLUENCIBLE
04/01/2022,2256325,782.48,HOUSING BENEFIT,299992,Resources,Housing Services,108,Transfer Payments,506,Housing Benefits,5048,Revenue,NON INFLUENCIBLE.NON INFLUENCIBLE
04/01/2022,2256326,3759.88,HOUSING BENEFIT,299992,Resources,Housing Services,108,Transfer Payments,506,Housing Benefits,5048,Revenue,NON INFLUENCIBLE.NON INFLUENCIBLE
04/01/2022,2256327,4202.13,HOUSING BENEFIT,299992,Resources,Housing Services,108,Transfer Payments,506,Housing Benefits,5048,Revenue,NON INFLUENCIBLE.NON INFLUENCIBLE
04/01/2022,2256328,1173.72,HOUSING BENEFIT,299992,Resources,Housing Services,108,Transfer Payments,506,Housing Benefits,5048,Revenue,NON INFLUENCIBLE.NON INFLUENCIBLE
04/01/2022,2256329,369.24,HOUSING BENEFIT,299992,Resources,Housing Services,108,Transfer Payments,506,Housing Benefits,5048,Revenue,NON INFLUENCIBLE.NON INFLUENCIBLE
04/01/2022,2256330,384.00,HOUSING BENEFIT,299992,Resources,Housing Services,108,Transfer Payments,506,Housing Benefits,5048,Revenue,NON INFLUENCIBLE.NON INFLUENCIBLE
04/01/2022,2256331,391.24,HOUSING BENEFIT,299992,Resources,Housing Services,108,Transfer Payments,506,Housing Benefits,5048,Revenue,NON INFLUENCIBLE.NON INFLUENCIBLE
04/01/2022,2256332,414.24,HOUSING BENEFIT,299992,Resources,Housing Services,108,Transfer Payments,506,Housing Benefits,5048,Revenue,NON INFLUENCIBLE.NON INFLUENCIBLE
04/01/2022,2256333,391.24,HOUSING BENEFIT,299992,Resources,Housing Services,108,Transfer Payments,506,Housing Benefits,5048,Revenue,NON INFLUENCIBLE.NON INFLUENCIBLE
04/01/2022,2256334,415.40,HOUSING BENEFIT,299992,Resources,Housing Services,108,Transfer Payments,506,Housing Benefits,5048,Revenue,NON INFLUENCIBLE.NON INFLUENCIBLE
04/01/2022,2256335,340.00,HOUSING BENEFIT,299992,Resources,Housing Services,108,Transfer Payments,506,Housing Benefits,5048,Revenue,NON INFLUENCIBLE.NON INFLUENCIBLE
04/01/2022,2256336,380.00,HOUSING BENEFIT,299992,Resources,Housing Services,108,Transfer Payments,506,Housing Benefits,5048,Revenue,NON INFLUENCIBLE.NON INFLUENCIBLE
04/01/2022,2256337,738.48,HOUSING BENEFIT,299992,Resources,Housing Services,108,Transfer Payments,506,Housing Benefits,5048,Revenue,NON INFLUENCIBLE.NON INFLUENCIBLE
04/01/2022,2256338,323.08,HOUSING BENEFIT,299992,Resources,Housing Services,108,Transfer Payments,506,Housing Benefits,5048,Revenue,NON INFLUENCIBLE.NON INFLUENCIBLE
04/01/2022,2256339,391.24,HOUSING BENEFIT,299992,Resources,Housing Services,108,Transfer Payments,506,Housing Benefits,5048,Revenue,NON INFLUENCIBLE.NON INFLUENCIBLE
04/01/2022,2256341,391.24,HOUSING BENEFIT,299992,Resources,Housing Services,108,Transfer Payments,506,Housing Benefits,5048,Revenue,NON INFLUENCIBLE.NON INFLUENCIBLE
04/01/2022,2256342,782.48,HOUSING BENEFIT,299992,Resources,Housing Services,108,Transfer Payments,506,Housing Benefits,5048,Revenue,NON INFLUENCIBLE.NON INFLUENCIBLE
04/01/2022,2256343,391.24,HOUSING BENEFIT,299992,Resources,Housing Services,108,Transfer Payments,506,Housing Benefits,5048,Revenue,NON INFLUENCIBLE.NON INFLUENCIBLE
04/01/2022,2256344,2979.72,HOUSING BENEFIT,299992,Resources,Housing Services,108,Transfer Payments,506,Housing Benefits,5048,Revenue,NON INFLUENCIBLE.NON INFLUENCIBLE
04/01/2022,2256345,778.92,HOUSING BENEFIT,299992,Resources,Housing Services,108,Transfer Payments,506,Housing Benefits,5048,Revenue,NON INFLUENCIBLE.NON INFLUENCIBLE
04/01/2022,2256346,4286.20,HOUSING BENEFIT,299992,Resources,Housing Services,108,Transfer Payments,506,Housing Benefits,5048,Revenue,NON INFLUENCIBLE.NON INFLUENCIBLE
04/01/2022,2256347,391.24,HOUSING BENEFIT,299992,Resources,Housing Services,108,Transfer Payments,506,Housing Benefits,5048,Revenue,NON INFLUENCIBLE.NON INFLUENCIBLE
04/01/2022,2256348,2347.44,HOUSING BENEFIT,299992,Resources,Housing Services,108,Transfer Payments,506,Housing Benefits,5048,Revenue,NON INFLUENCIBLE.NON INFLUENCIBLE
04/01/2022,2256349,391.24,HOUSING BENEFIT,299992,Resources,Housing Services,108,Transfer Payments,506,Housing Benefits,5048,Revenue,NON INFLUENCIBLE.NON INFLUENCIBLE
04/01/2022,2256350,90409.41,HOUSING BENEFIT,299992,Resources,Housing Services,108,Transfer Payments,506,Housing Benefits,5048,Revenue,NON INFLUENCIBLE.NON INFLUENCIBLE
04/01/2022,2256351,360.00,HOUSING BENEFIT,299992,Resources,Housing Services,108,Transfer Payments,506,Housing Benefits,5048,Revenue,NON INFLUENCIBLE.NON INFLUENCIBLE
04/01/2022,2256352,292.00,HOUSING BENEFIT,299992,Resources,Housing Services,108,Transfer Payments,506,Housing Benefits,5048,Revenue,NON INFLUENCIBLE.NON INFLUENCIBLE
04/01/2022,2256353,380.00,HOUSING BENEFIT,299992,Resources,Housing Services,108,Transfer Payments,506,Housing Benefits,5048,Revenue,NON INFLUENCIBLE.NON INFLUENCIBLE
04/01/2022,2256354,400.00,HOUSING BENEFIT,299992,Resources,Housing Services,108,Transfer Payments,506,Housing Benefits,5048,Revenue,NON INFLUENCIBLE.NON INFLUENCIBLE
04/01/2022,2256355,1246.52,HOUSING BENEFIT,299992,Resources,Housing Services,108,Transfer Payments,506,Housing Benefits,5048,Revenue,NON INFLUENCIBLE.NON INFLUENCIBLE
04/01/2022,2256357,300.00,HOUSING BENEFIT,299992,Resources,Housing Services,108,Transfer Payments,506,Housing Benefits,5048,Revenue,NON INFLUENCIBLE.NON INFLUENCIBLE
04/01/2022,2256358,337.44,HOUSING BENEFIT,299992,Resources,Housing Services,108,Transfer Payments,506,Housing Benefits,5048,Revenue,NON INFLUENCIBLE.NON INFLUENCIBLE
04/01/2022,2256360,346.16,HOUSING BENEFIT,299992,Resources,Housing Services,108,Transfer Payments,506,Housing Benefits,5048,Revenue,NON INFLUENCIBLE.NON INFLUENCIBLE
04/01/2022,2256361,391.24,HOUSING BENEFIT,299992,Resources,Housing Services,108,Transfer Payments,506,Housing Benefits,5048,Revenue,NON INFLUENCIBLE.NON INFLUENCIBLE
04/01/2022,2256362,391.24,HOUSING BENEFIT,299992,Resources,Housing Services,108,Transfer Payments,506,Housing Benefits,5048,Revenue,NON INFLUENCIBLE.NON INFLUENCIBLE
04/01/2022,2256363,1603.16,HOUSING BENEFIT,299992,Resources,Housing Services,108,Transfer Payments,506,Housing Benefits,5048,Revenue,NON INFLUENCIBLE.NON INFLUENCIBLE
04/01/2022,2256364,391.24,HOUSING BENEFIT,299992,Resources,Housing Services,108,Transfer Payments,506,Housing Benefits,5048,Revenue,NON INFLUENCIBLE.NON INFLUENCIBLE
04/01/2022,2256365,880.29,HOUSING BENEFIT,299992,Resources,Housing Services,108,Transfer Payments,506,Housing Benefits,5048,Revenue,NON INFLUENCIBLE.NON INFLUENCIBLE
04/01/2022,2256366,391.24,HOUSING BENEFIT,299992,Resources,Housing Services,108,Transfer Payments,506,Housing Benefits,5048,Revenue,NON INFLUENCIBLE.NON INFLUENCIBLE
04/01/2022,2256368,437.28,HOUSING BENEFIT,299992,Resources,Housing Services,108,Transfer Payments,506,Housing Benefits,5048,Revenue,NON INFLUENCIBLE.NON INFLUENCIBLE
04/01/2022,2256369,648.20,HOUSING BENEFIT,299992,Resources,Housing Services,108,Transfer Payments,506,Housing Benefits,5048,Revenue,NON INFLUENCIBLE.NON INFLUENCIBLE
04/01/2022,2256370,961.16,HOUSING BENEFIT,299992,Resources,Housing Services,108,Transfer Payments,506,Housing Benefits,5048,Revenue,NON INFLUENCIBLE.NON INFLUENCIBLE
04/01/2022,2256371,368.00,HOUSING BENEFIT,299992,Resources,Housing Services,108,Transfer Payments,506,Housing Benefits,5048,Revenue,NON INFLUENCIBLE.NON INFLUENCIBLE
04/01/2022,2256372,391.24,HOUSING BENEFIT,299992,Resources,Housing Services,108,Transfer Payments,506,Housing Benefits,5048,Revenue,NON INFLUENCIBLE.NON INFLUENCIBLE
04/01/2022,2256373,1461.04,HOUSING BENEFIT,299992,Resources,Housing Services,108,Transfer Payments,506,Housing Benefits,5048,Revenue,NON INFLUENCIBLE.NON INFLUENCIBLE
04/01/2022,2256374,1151.60,HOUSING BENEFIT,299992,Resources,Housing Services,108,Transfer Payments,506,Housing Benefits,5048,Revenue,NON INFLUENCIBLE.NON INFLUENCIBLE
04/01/2022,2256375,391.24,HOUSING BENEFIT,299992,Resources,Housing Services,108,Transfer Payments,506,Housing Benefits,5048,Revenue,NON INFLUENCIBLE.NON INFLUENCIBLE
04/01/2022,2256376,380.00,HOUSING BENEFIT,299992,Resources,Housing Services,108,Transfer Payments,506,Housing Benefits,5048,Revenue,NON INFLUENCIBLE.NON INFLUENCIBLE
04/01/2022,2256378,391.24,HOUSING BENEFIT,299992,Resources,Housing Services,108,Transfer Payments,506,Housing Benefits,5048,Revenue,NON INFLUENCIBLE.NON INFLUENCIBLE
04/01/2022,2256379,858.48,HOUSING BENEFIT,299992,Resources,Housing Services,108,Transfer Payments,506,Housing Benefits,5048,Revenue,NON INFLUENCIBLE.NON INFLUENCIBLE
04/01/2022,2256380,360.00,HOUSING BENEFIT,299992,Resources,Housing Services,108,Transfer Payments,506,Housing Benefits,5048,Revenue,NON INFLUENCIBLE.NON INFLUENCIBLE
04/01/2022,2256381,391.24,HOUSING BENEFIT,299992,Resources,Housing Services,108,Transfer Payments,506,Housing Benefits,5048,Revenue,NON INFLUENCIBLE.NON INFLUENCIBLE
04/01/2022,2256382,260.00,HOUSING BENEFIT,299992,Resources,Housing Services,108,Transfer Payments,506,Housing Benefits,5048,Revenue,NON INFLUENCIBLE.NON INFLUENCIBLE
04/01/2022,2256383,782.48,HOUSING BENEFIT,299992,Resources,Housing Services,108,Transfer Payments,506,Housing Benefits,5048,Revenue,NON INFLUENCIBLE.NON INFLUENCIBLE
04/01/2022,2256384,1040.48,HOUSING BENEFIT,299992,Resources,Housing Services,108,Transfer Payments,506,Housing Benefits,5048,Revenue,NON INFLUENCIBLE.NON INFLUENCIBLE
04/01/2022,2256385,391.24,HOUSING BENEFIT,299992,Resources,Housing Services,108,Transfer Payments,506,Housing Benefits,5048,Revenue,NON INFLUENCIBLE.NON INFLUENCIBLE
04/01/2022,2256386,2264.68,HOUSING BENEFIT,299992,Resources,Housing Services,108,Transfer Payments,506,Housing Benefits,5048,Revenue,NON INFLUENCIBLE.NON INFLUENCIBLE
04/01/2022,2256387,391.24,HOUSING BENEFIT,299992,Resources,Housing Services,108,Transfer Payments,506,Housing Benefits,5048,Revenue,NON INFLUENCIBLE.NON INFLUENCIBLE
04/01/2022,2256388,560.00,HOUSING BENEFIT,299992,Resources,Housing Services,108,Transfer Payments,506,Housing Benefits,5048,Revenue,NON INFLUENCIBLE.NON INFLUENCIBLE
04/01/2022,2256391,34609.46,HOUSING BENEFIT,299992,Resources,Housing Services,108,Transfer Payments,506,Housing Benefits,5048,Revenue,NON INFLUENCIBLE.NON INFLUENCIBLE
04/01/2022,2256392,81091.87,HOUSING BENEFIT,299992,Resources,Housing Services,108,Transfer Payments,506,Housing Benefits,5048,Revenue,NON INFLUENCIBLE.NON INFLUENCIBLE
04/01/2022,2256393,336.20,HOUSING BENEFIT,299992,Resources,Housing Services,108,Transfer Payments,506,Housing Benefits,5048,Revenue,NON INFLUENCIBLE.NON INFLUENCIBLE
04/01/2022,2256394,7812.52,HOUSING BENEFIT,299992,Resources,Housing Services,108,Transfer Payments,506,Housing Benefits,5048,Revenue,NON INFLUENCIBLE.NON INFLUENCIBLE
04/01/2022,2256395,437.24,HOUSING BENEFIT,299992,Resources,Housing Services,108,Transfer Payments,506,Housing Benefits,5048,Revenue,NON INFLUENCIBLE.NON INFLUENCIBLE
04/01/2022,2256412,310.42,HOUSING BENEFIT,299992,Resources,Housing Services,108,Transfer Payments,506,Housing Benefits,5048,Revenue,NON INFLUENCIBLE.NON INFLUENCIBLE
04/01/2022,2256420,326.62,HOUSING BENEFIT,299992,Resources,Housing Services,108,Transfer Payments,506,Housing Benefits,5048,Revenue,NON INFLUENCIBLE.NON INFLUENCIBLE
04/01/2022,2256497,253.16,HOUSING BENEFIT,299992,Resources,Housing Services,108,Transfer Payments,506,Housing Benefits,5048,Revenue,NON INFLUENCIBLE.NON INFLUENCIBLE
04/01/2022,2256518,253.16,HOUSING BENEFIT,299992,Resources,Housing Services,108,Transfer Payments,506,Housing Benefits,5048,Revenue,NON INFLUENCIBLE.NON INFLUENCIBLE
04/01/2022,2256521,276.92,HOUSING BENEFIT,299992,Resources,Housing Services,108,Transfer Payments,506,Housing Benefits,5048,Revenue,NON INFLUENCIBLE.NON INFLUENCIBLE
04/01/2022,2256527,388.00,HOUSING BENEFIT,299992,Resources,Housing Services,108,Transfer Payments,506,Housing Benefits,5048,Revenue,NON INFLUENCIBLE.NON INFLUENCIBLE
04/01/2022,2256529,368.72,HOUSING BENEFIT,299992,Resources,Housing Services,108,Transfer Payments,506,Housing Benefits,5048,Revenue,NON INFLUENCIBLE.NON INFLUENCIBLE
04/01/2022,2256538,662.27,HOUSING BENEFIT,299992,Resources,Housing Services,108,Transfer Payments,506,Housing Benefits,5048,Revenue,NON INFLUENCIBLE.NON INFLUENCIBLE
04/01/2022,2256562,258.46,HOUSING BENEFIT,299992,Resources,Housing Services,108,Transfer Payments,506,Housing Benefits,5048,Revenue,NON INFLUENCIBLE.NON INFLUENCIBLE
04/01/2022,2256581,323.02,HOUSING BENEFIT,299992,Resources,Housing Services,108,Transfer Payments,506,Housing Benefits,5048,Revenue,NON INFLUENCIBLE.NON INFLUENCIBLE
04/01/2022,2256582,365.92,HOUSING BENEFIT,299992,Resources,Housing Services,108,Transfer Payments,506,Housing Benefits,5048,Revenue,NON INFLUENCIBLE.NON INFLUENCIBLE
04/01/2022,2256584,363.92,HOUSING BENEFIT,299992,Resources,Housing Services,108,Transfer Payments,506,Housing Benefits,5048,Revenue,NON INFLUENCIBLE.NON INFLUENCIBLE
04/01/2022,2256591,365.92,HOUSING BENEFIT,299992,Resources,Housing Services,108,Transfer Payments,506,Housing Benefits,5048,Revenue,NON INFLUENCIBLE.NON INFLUENCIBLE
04/01/2022,2256599,253.16,HOUSING BENEFIT,299992,Resources,Housing Services,108,Transfer Payments,506,Housing Benefits,5048,Revenue,NON INFLUENCIBLE.NON INFLUENCIBLE
04/01/2022,2256611,253.16,HOUSING BENEFIT,299992,Resources,Housing Services,108,Transfer Payments,506,Housing Benefits,5048,Revenue,NON INFLUENCIBLE.NON INFLUENCIBLE
04/01/2022,2256612,437.28,HOUSING BENEFIT,299992,Resources,Housing Services,108,Transfer Payments,506,Housing Benefits,5048,Revenue,NON INFLUENCIBLE.NON INFLUENCIBLE
04/01/2022,2256637,253.16,HOUSING BENEFIT,299992,Resources,Housing Services,108,Transfer Payments,506,Housing Benefits,5048,Revenue,NON INFLUENCIBLE.NON INFLUENCIBLE
04/01/2022,2256647,253.16,HOUSING BENEFIT,299992,Resources,Housing Services,108,Transfer Payments,506,Housing Benefits,5048,Revenue,NON INFLUENCIBLE.NON INFLUENCIBLE
04/01/2022,2256691,379.16,HOUSING BENEFIT,299992,Resources,Housing Services,108,Transfer Payments,506,Housing Benefits,5048,Revenue,NON INFLUENCIBLE.NON INFLUENCIBLE
04/01/2022,2256692,328.46,HOUSING BENEFIT,299992,Resources,Housing Services,108,Transfer Payments,506,Housing Benefits,5048,Revenue,NON INFLUENCIBLE.NON INFLUENCIBLE
04/01/2022,2256727,323.02,HOUSING BENEFIT,299992,Resources,Housing Services,108,Transfer Payments,506,Housing Benefits,5048,Revenue,NON INFLUENCIBLE.NON INFLUENCIBLE
04/01/2022,2256756,344.98,HOUSING BENEFIT,299992,Resources,Housing Services,108,Transfer Payments,506,Housing Benefits,5048,Revenue,NON INFLUENCIBLE.NON INFLUENCIBLE
04/01/2022,2256772,253.16,HOUSING BENEFIT,299992,Resources,Housing Services,108,Transfer Payments,506,Housing Benefits,5048,Revenue,NON INFLUENCIBLE.NON INFLUENCIBLE
04/01/2022,2256790,328.26,HOUSING BENEFIT,299992,Resources,Housing Services,108,Transfer Payments,506,Housing Benefits,5048,Revenue,NON INFLUENCIBLE.NON INFLUENCIBLE
04/01/2022,2256823,253.16,HOUSING BENEFIT,299992,Resources,Housing Services,108,Transfer Payments,506,Housing Benefits,5048,Revenue,NON INFLUENCIBLE.NON INFLUENCIBLE
04/01/2022,2256829,788.68,HOUSING BENEFIT,299992,Resources,Housing Services,108,Transfer Payments,506,Housing Benefits,5048,Revenue,NON INFLUENCIBLE.NON INFLUENCIBLE
04/01/2022,2256839,257.58,HOUSING BENEFIT,299992,Resources,Housing Services,108,Transfer Payments,506,Housing Benefits,5048,Revenue,NON INFLUENCIBLE.NON INFLUENCIBLE
04/01/2022,2256881,253.16,HOUSING BENEFIT,299992,Resources,Housing Services,108,Transfer Payments,506,Housing Benefits,5048,Revenue,NON INFLUENCIBLE.NON INFLUENCIBLE
04/01/2022,2256886,369.24,HOUSING BENEFIT,299992,Resources,Housing Services,108,Transfer Payments,506,Housing Benefits,5048,Revenue,NON INFLUENCIBLE.NON INFLUENCIBLE
04/01/2022,2256892,440.00,HOUSING BENEFIT,299992,Resources,Housing Services,108,Transfer Payments,506,Housing Benefits,5048,Revenue,NON INFLUENCIBLE.NON INFLUENCIBLE
04/01/2022,2256912,263.08,HOUSING BENEFIT,299992,Resources,Housing Services,108,Transfer Payments,506,Housing Benefits,5048,Revenue,NON INFLUENCIBLE.NON INFLUENCIBLE
04/01/2022,2256913,255.86,HOUSING BENEFIT,299992,Resources,Housing Services,108,Transfer Payments,506,Housing Benefits,5048,Revenue,NON INFLUENCIBLE.NON INFLUENCIBLE
04/01/2022,2256920,439.96,HOUSING BENEFIT,299992,Resources,Housing Services,108,Transfer Payments,506,Housing Benefits,5048,Revenue,NON INFLUENCIBLE.NON INFLUENCIBLE
04/01/2022,2256924,298.58,HOUSING BENEFIT,299992,Resources,Housing Services,108,Transfer Payments,506,Housing Benefits,5048,Revenue,NON INFLUENCIBLE.NON INFLUENCIBLE
04/01/2022,2256931,385.28,HOUSING BENEFIT,299992,Resources,Housing Services,108,Transfer Payments,506,Housing Benefits,5048,Revenue,NON INFLUENCIBLE.NON INFLUENCIBLE
04/01/2022,2256933,302.64,HOUSING BENEFIT,299992,Resources,Housing Services,108,Transfer Payments,506,Housing Benefits,5048,Revenue,NON INFLUENCIBLE.NON INFLUENCIBLE
04/01/2022,2256935,253.16,HOUSING BENEFIT,299992,Resources,Housing Services,108,Transfer Payments,506,Housing Benefits,5048,Revenue,NON INFLUENCIBLE.NON INFLUENCIBLE
04/01/2022,2256937,315.57,HOUSING BENEFIT,299992,Resources,Housing Services,108,Transfer Payments,506,Housing Benefits,5048,Revenue,NON INFLUENCIBLE.NON INFLUENCIBLE
04/01/2022,2256986,564.68,HOUSING BENEFIT,299992,Resources,Housing Services,108,Transfer Payments,506,Housing Benefits,5048,Revenue,NON INFLUENCIBLE.NON INFLUENCIBLE
04/01/2022,2256994,519.90,HOUSING BENEFIT,299992,Resources,Housing Services,108,Transfer Payments,506,Housing Benefits,5048,Revenue,NON INFLUENCIBLE.NON INFLUENCIBLE
04/01/2022,2257001,276.92,HOUSING BENEFIT,299992,Resources,Housing Services,108,Transfer Payments,506,Housing Benefits,5048,Revenue,NON INFLUENCIBLE.NON INFLUENCIBLE
04/01/2022,2257003,263.86,HOUSING BENEFIT,299992,Resources,Housing Services,108,Transfer Payments,506,Housing Benefits,5048,Revenue,NON INFLUENCIBLE.NON INFLUENCIBLE
04/01/2022,2257042,366.22,HOUSING BENEFIT,299992,Resources,Housing Services,108,Transfer Payments,506,Housing Benefits,5048,Revenue,NON INFLUENCIBLE.NON INFLUENCIBLE
04/01/2022,2257073,349.50,HOUSING BENEFIT,299992,Resources,Housing Services,108,Transfer Payments,506,Housing Benefits,5048,Revenue,NON INFLUENCIBLE.NON INFLUENCIBLE
04/01/2022,2257075,369.04,HOUSING BENEFIT,299992,Resources,Housing Services,108,Transfer Payments,506,Housing Benefits,5048,Revenue,NON INFLUENCIBLE.NON INFLUENCIBLE
04/01/2022,2257076,391.24,HOUSING BENEFIT,299992,Resources,Housing Services,108,Transfer Payments,506,Housing Benefits,5048,Revenue,NON INFLUENCIBLE.NON INFLUENCIBLE
04/01/2022,2257077,3329.96,HOUSING BENEFIT,299992,Resources,Housing Services,108,Transfer Payments,506,Housing Benefits,5048,Revenue,NON INFLUENCIBLE.NON INFLUENCIBLE
04/01/2022,2257078,364.60,HOUSING BENEFIT,299992,Resources,Housing Services,108,Transfer Payments,506,Housing Benefits,5048,Revenue,NON INFLUENCIBLE.NON INFLUENCIBLE
04/01/2022,2257079,369.24,HOUSING BENEFIT,299992,Resources,Housing Services,108,Transfer Payments,506,Housing Benefits,5048,Revenue,NON INFLUENCIBLE.NON INFLUENCIBLE
04/01/2022,2257080,7583.40,HOUSING BENEFIT,299992,Resources,Housing Services,108,Transfer Payments,506,Housing Benefits,5048,Revenue,NON INFLUENCIBLE.NON INFLUENCIBLE
04/01/2022,2257081,438.48,HOUSING BENEFIT,299992,Resources,Housing Services,108,Transfer Payments,506,Housing Benefits,5048,Revenue,NON INFLUENCIBLE.NON INFLUENCIBLE
04/01/2022,2257082,830.80,HOUSING BENEFIT,299992,Resources,Housing Services,108,Transfer Payments,506,Housing Benefits,5048,Revenue,NON INFLUENCIBLE.NON INFLUENCIBLE
04/01/2022,2257083,391.24,HOUSING BENEFIT,299992,Resources,Housing Services,108,Transfer Payments,506,Housing Benefits,5048,Revenue,NON INFLUENCIBLE.NON INFLUENCIBLE
04/01/2022,2257084,280.76,HOUSING BENEFIT,299992,Resources,Housing Services,108,Transfer Payments,506,Housing Benefits,5048,Revenue,NON INFLUENCIBLE.NON INFLUENCIBLE
04/01/2022,2257085,366.68,HOUSING BENEFIT,299992,Resources,Housing Services,108,Transfer Payments,506,Housing Benefits,5048,Revenue,NON INFLUENCIBLE.NON INFLUENCIBLE
04/01/2022,2257086,437.28,HOUSING BENEFIT,299992,Resources,Housing Services,108,Transfer Payments,506,Housing Benefits,5048,Revenue,NON INFLUENCIBLE.NON INFLUENCIBLE
04/01/2022,2257087,369.24,HOUSING BENEFIT,299992,Resources,Housing Services,108,Transfer Payments,506,Housing Benefits,5048,Revenue,NON INFLUENCIBLE.NON INFLUENCIBLE
04/01/2022,2257088,391.24,HOUSING BENEFIT,299992,Resources,Housing Services,108,Transfer Payments,506,Housing Benefits,5048,Revenue,NON INFLUENCIBLE.NON INFLUENCIBLE
04/01/2022,2257089,391.24,HOUSING BENEFIT,299992,Resources,Housing Services,108,Transfer Payments,506,Housing Benefits,5048,Revenue,NON INFLUENCIBLE.NON INFLUENCIBLE
04/01/2022,2257090,782.48,HOUSING BENEFIT,299992,Resources,Housing Services,108,Transfer Payments,506,Housing Benefits,5048,Revenue,NON INFLUENCIBLE.NON INFLUENCIBLE
04/01/2022,2257091,391.24,HOUSING BENEFIT,299992,Resources,Housing Services,108,Transfer Payments,506,Housing Benefits,5048,Revenue,NON INFLUENCIBLE.NON INFLUENCIBLE
04/01/2022,2257092,631.52,HOUSING BENEFIT,299992,Resources,Housing Services,108,Transfer Payments,506,Housing Benefits,5048,Revenue,NON INFLUENCIBLE.NON INFLUENCIBLE
04/01/2022,2257093,2417.96,HOUSING BENEFIT,299992,Resources,Housing Services,108,Transfer Payments,506,Housing Benefits,5048,Revenue,NON INFLUENCIBLE.NON INFLUENCIBLE
04/01/2022,2257094,391.24,HOUSING BENEFIT,299992,Resources,Housing Services,108,Transfer Payments,506,Housing Benefits,5048,Revenue,NON INFLUENCIBLE.NON INFLUENCIBLE
04/01/2022,2257095,4397.44,HOUSING BENEFIT,299992,Resources,Housing Services,108,Transfer Payments,506,Housing Benefits,5048,Revenue,NON INFLUENCIBLE.NON INFLUENCIBLE
04/01/2022,2257096,391.24,HOUSING BENEFIT,299992,Resources,Housing Services,108,Transfer Payments,506,Housing Benefits,5048,Revenue,NON INFLUENCIBLE.NON INFLUENCIBLE
04/01/2022,2257097,390.48,HOUSING BENEFIT,299992,Resources,Housing Services,108,Transfer Payments,506,Housing Benefits,5048,Revenue,NON INFLUENCIBLE.NON INFLUENCIBLE
04/01/2022,2257098,391.24,HOUSING BENEFIT,299992,Resources,Housing Services,108,Transfer Payments,506,Housing Benefits,5048,Revenue,NON INFLUENCIBLE.NON INFLUENCIBLE
04/01/2022,2257099,362.40,HOUSING BENEFIT,299992,Resources,Housing Services,108,Transfer Payments,506,Housing Benefits,5048,Revenue,NON INFLUENCIBLE.NON INFLUENCIBLE
04/01/2022,2257100,437.28,HOUSING BENEFIT,299992,Resources,Housing Services,108,Transfer Payments,506,Housing Benefits,5048,Revenue,NON INFLUENCIBLE.NON INFLUENCIBLE
04/01/2022,2257102,480.00,HOUSING BENEFIT,299992,Resources,Housing Services,108,Transfer Payments,506,Housing Benefits,5048,Revenue,NON INFLUENCIBLE.NON INFLUENCIBLE
04/01/2022,2257103,391.24,HOUSING BENEFIT,299992,Resources,Housing Services,108,Transfer Payments,506,Housing Benefits,5048,Revenue,NON INFLUENCIBLE.NON INFLUENCIBLE
04/01/2022,2257104,391.24,HOUSING BENEFIT,299992,Resources,Housing Services,108,Transfer Payments,506,Housing Benefits,5048,Revenue,NON INFLUENCIBLE.NON INFLUENCIBLE
04/01/2022,2257105,1553.72,HOUSING BENEFIT,299992,Resources,Housing Services,108,Transfer Payments,506,Housing Benefits,5048,Revenue,NON INFLUENCIBLE.NON INFLUENCIBLE
04/01/2022,2257106,437.28,HOUSING BENEFIT,299992,Resources,Housing Services,108,Transfer Payments,506,Housing Benefits,5048,Revenue,NON INFLUENCIBLE.NON INFLUENCIBLE
04/01/2022,2257107,114022.58,HOUSING BENEFIT,299992,Resources,Housing Services,108,Transfer Payments,506,Housing Benefits,5048,Revenue,NON INFLUENCIBLE.NON INFLUENCIBLE
04/01/2022,2257108,360.00,HOUSING BENEFIT,299992,Resources,Housing Services,108,Transfer Payments,506,Housing Benefits,5048,Revenue,NON INFLUENCIBLE.NON INFLUENCIBLE
04/01/2022,2257109,9680.62,HOUSING BENEFIT,299992,Resources,Housing Services,108,Transfer Payments,506,Housing Benefits,5048,Revenue,NON INFLUENCIBLE.NON INFLUENCIBLE
04/01/2022,2257110,316.00,HOUSING BENEFIT,299992,Resources,Housing Services,108,Transfer Payments,506,Housing Benefits,5048,Revenue,NON INFLUENCIBLE.NON INFLUENCIBLE
04/01/2022,2257111,391.24,HOUSING BENEFIT,299992,Resources,Housing Services,108,Transfer Payments,506,Housing Benefits,5048,Revenue,NON INFLUENCIBLE.NON INFLUENCIBLE
04/01/2022,2257112,391.24,HOUSING BENEFIT,299992,Resources,Housing Services,108,Transfer Payments,506,Housing Benefits,5048,Revenue,NON INFLUENCIBLE.NON INFLUENCIBLE
04/01/2022,2257113,391.24,HOUSING BENEFIT,299992,Resources,Housing Services,108,Transfer Payments,506,Housing Benefits,5048,Revenue,NON INFLUENCIBLE.NON INFLUENCIBLE
04/01/2022,2257114,39099.40,HOUSING BENEFIT,299992,Resources,Housing Services,108,Transfer Payments,506,Housing Benefits,5048,Revenue,NON INFLUENCIBLE.NON INFLUENCIBLE
04/01/2022,2257115,280.76,HOUSING BENEFIT,299992,Resources,Housing Services,108,Transfer Payments,506,Housing Benefits,5048,Revenue,NON INFLUENCIBLE.NON INFLUENCIBLE
04/01/2022,2257116,3719.36,HOUSING BENEFIT,299992,Resources,Housing Services,108,Transfer Payments,506,Housing Benefits,5048,Revenue,NON INFLUENCIBLE.NON INFLUENCIBLE
04/01/2022,2257117,311.80,HOUSING BENEFIT,299992,Resources,Housing Services,108,Transfer Payments,506,Housing Benefits,5048,Revenue,NON INFLUENCIBLE.NON INFLUENCIBLE
04/01/2022,2257118,700.88,HOUSING BENEFIT,299992,Resources,Housing Services,108,Transfer Payments,506,Housing Benefits,5048,Revenue,NON INFLUENCIBLE.NON INFLUENCIBLE
04/01/2022,2257119,391.24,HOUSING BENEFIT,299992,Resources,Housing Services,108,Transfer Payments,506,Housing Benefits,5048,Revenue,NON INFLUENCIBLE.NON INFLUENCIBLE
04/01/2022,2257120,506.32,HOUSING BENEFIT,299992,Resources,Housing Services,108,Transfer Payments,506,Housing Benefits,5048,Revenue,NON INFLUENCIBLE.NON INFLUENCIBLE
04/01/2022,2257121,380.00,HOUSING BENEFIT,299992,Resources,Housing Services,108,Transfer Payments,506,Housing Benefits,5048,Revenue,NON INFLUENCIBLE.NON INFLUENCIBLE
04/01/2022,2257122,369.24,HOUSING BENEFIT,299992,Resources,Housing Services,108,Transfer Payments,506,Housing Benefits,5048,Revenue,NON INFLUENCIBLE.NON INFLUENCIBLE
04/01/2022,2257123,489.20,HOUSING BENEFIT,299992,Resources,Housing Services,108,Transfer Payments,506,Housing Benefits,5048,Revenue,NON INFLUENCIBLE.NON INFLUENCIBLE
04/01/2022,2257124,391.24,HOUSING BENEFIT,299992,Resources,Housing Services,108,Transfer Payments,506,Housing Benefits,5048,Revenue,NON INFLUENCIBLE.NON INFLUENCIBLE
04/01/2022,2257125,415.40,HOUSING BENEFIT,299992,Resources,Housing Services,108,Transfer Payments,506,Housing Benefits,5048,Revenue,NON INFLUENCIBLE.NON INFLUENCIBLE
04/01/2022,2257126,506.32,HOUSING BENEFIT,299992,Resources,Housing Services,108,Transfer Payments,506,Housing Benefits,5048,Revenue,NON INFLUENCIBLE.NON INFLUENCIBLE
04/01/2022,2257127,706.16,HOUSING BENEFIT,299992,Resources,Housing Services,108,Transfer Payments,506,Housing Benefits,5048,Revenue,NON INFLUENCIBLE.NON INFLUENCIBLE
04/01/2022,2257128,378.00,HOUSING BENEFIT,299992,Resources,Housing Services,108,Transfer Payments,506,Housing Benefits,5048,Revenue,NON INFLUENCIBLE.NON INFLUENCIBLE
04/01/2022,2257129,391.24,HOUSING BENEFIT,299992,Resources,Housing Services,108,Transfer Payments,506,Housing Benefits,5048,Revenue,NON INFLUENCIBLE.NON INFLUENCIBLE
04/01/2022,2257130,415.40,HOUSING BENEFIT,299992,Resources,Housing Services,108,Transfer Payments,506,Housing Benefits,5048,Revenue,NON INFLUENCIBLE.NON INFLUENCIBLE
04/01/2022,2257131,917.28,HOUSING BENEFIT,299992,Resources,Housing Services,108,Transfer Payments,506,Housing Benefits,5048,Revenue,NON INFLUENCIBLE.NON INFLUENCIBLE
04/01/2022,2257132,372.00,HOUSING BENEFIT,299992,Resources,Housing Services,108,Transfer Payments,506,Housing Benefits,5048,Revenue,NON INFLUENCIBLE.NON INFLUENCIBLE
04/01/2022,2257133,1930.16,HOUSING BENEFIT,299992,Resources,Housing Services,108,Transfer Payments,506,Housing Benefits,5048,Revenue,NON INFLUENCIBLE.NON INFLUENCIBLE
04/01/2022,2257134,364.60,HOUSING BENEFIT,299992,Resources,Housing Services,108,Transfer Payments,506,Housing Benefits,5048,Revenue,NON INFLUENCIBLE.NON INFLUENCIBLE
04/01/2022,2257135,391.24,HOUSING BENEFIT,299992,Resources,Housing Services,108,Transfer Payments,506,Housing Benefits,5048,Revenue,NON INFLUENCIBLE.NON INFLUENCIBLE
04/01/2022,2257137,13107.72,HOUSING BENEFIT,299992,Resources,Housing Services,108,Transfer Payments,506,Housing Benefits,5048,Revenue,NON INFLUENCIBLE.NON INFLUENCIBLE
04/01/2022,2257138,391.24,HOUSING BENEFIT,299992,Resources,Housing Services,108,Transfer Payments,506,Housing Benefits,5048,Revenue,NON INFLUENCIBLE.NON INFLUENCIBLE
04/01/2022,2257139,391.24,HOUSING BENEFIT,299992,Resources,Housing Services,108,Transfer Payments,506,Housing Benefits,5048,Revenue,NON INFLUENCIBLE.NON INFLUENCIBLE
04/01/2022,2257140,4388.44,HOUSING BENEFIT,299992,Resources,Housing Services,108,Transfer Payments,506,Housing Benefits,5048,Revenue,NON INFLUENCIBLE.NON INFLUENCIBLE
04/01/2022,2257141,2224.48,HOUSING BENEFIT,299992,Resources,Housing Services,108,Transfer Payments,506,Housing Benefits,5048,Revenue,NON INFLUENCIBLE.NON INFLUENCIBLE
04/01/2022,2257143,445.04,HOUSING BENEFIT,299992,Resources,Housing Services,108,Transfer Payments,506,Housing Benefits,5048,Revenue,NON INFLUENCIBLE.NON INFLUENCIBLE
04/01/2022,2257144,437.28,HOUSING BENEFIT,299992,Resources,Housing Services,108,Transfer Payments,506,Housing Benefits,5048,Revenue,NON INFLUENCIBLE.NON INFLUENCIBLE
04/01/2022,2257145,437.28,HOUSING BENEFIT,299992,Resources,Housing Services,108,Transfer Payments,506,Housing Benefits,5048,Revenue,NON INFLUENCIBLE.NON INFLUENCIBLE
04/01/2022,2257146,391.24,HOUSING BENEFIT,299992,Resources,Housing Services,108,Transfer Payments,506,Housing Benefits,5048,Revenue,NON INFLUENCIBLE.NON INFLUENCIBLE
04/01/2022,2257147,350.76,HOUSING BENEFIT,299992,Resources,Housing Services,108,Transfer Payments,506,Housing Benefits,5048,Revenue,NON INFLUENCIBLE.NON INFLUENCIBLE
04/01/2022,2257148,669.24,HOUSING BENEFIT,299992,Resources,Housing Services,108,Transfer Payments,506,Housing Benefits,5048,Revenue,NON INFLUENCIBLE.NON INFLUENCIBLE
04/01/2022,2257149,1775.28,HOUSING BENEFIT,299992,Resources,Housing Services,108,Transfer Payments,506,Housing Benefits,5048,Revenue,NON INFLUENCIBLE.NON INFLUENCIBLE
04/01/2022,2257150,391.24,HOUSING BENEFIT,299992,Resources,Housing Services,108,Transfer Payments,506,Housing Benefits,5048,Revenue,NON INFLUENCIBLE.NON INFLUENCIBLE
04/01/2022,2257151,391.24,HOUSING BENEFIT,299992,Resources,Housing Services,108,Transfer Payments,506,Housing Benefits,5048,Revenue,NON INFLUENCIBLE.NON INFLUENCIBLE
04/01/2022,2257152,378.48,HOUSING BENEFIT,299992,Resources,Housing Services,108,Transfer Payments,506,Housing Benefits,5048,Revenue,NON INFLUENCIBLE.NON INFLUENCIBLE
04/01/2022,2257153,391.24,HOUSING BENEFIT,299992,Resources,Housing Services,108,Transfer Payments,506,Housing Benefits,5048,Revenue,NON INFLUENCIBLE.NON INFLUENCIBLE
04/01/2022,2257154,437.28,HOUSING BENEFIT,299992,Resources,Housing Services,108,Transfer Payments,506,Housing Benefits,5048,Revenue,NON INFLUENCIBLE.NON INFLUENCIBLE
04/01/2022,2257155,346.24,HOUSING BENEFIT,299992,Resources,Housing Services,108,Transfer Payments,506,Housing Benefits,5048,Revenue,NON INFLUENCIBLE.NON INFLUENCIBLE
04/01/2022,2257156,724.60,HOUSING BENEFIT,299992,Resources,Housing Services,108,Transfer Payments,506,Housing Benefits,5048,Revenue,NON INFLUENCIBLE.NON INFLUENCIBLE
04/01/2022,2257157,437.28,HOUSING BENEFIT,299992,Resources,Housing Services,108,Transfer Payments,506,Housing Benefits,5048,Revenue,NON INFLUENCIBLE.NON INFLUENCIBLE
04/01/2022,2257158,391.24,HOUSING BENEFIT,299992,Resources,Housing Services,108,Transfer Payments,506,Housing Benefits,5048,Revenue,NON INFLUENCIBLE.NON INFLUENCIBLE
04/01/2022,2257159,391.24,HOUSING BENEFIT,299992,Resources,Housing Services,108,Transfer Payments,506,Housing Benefits,5048,Revenue,NON INFLUENCIBLE.NON INFLUENCIBLE
04/01/2022,2257160,1639.76,HOUSING BENEFIT,299992,Resources,Housing Services,108,Transfer Payments,506,Housing Benefits,5048,Revenue,NON INFLUENCIBLE.NON INFLUENCIBLE
04/01/2022,2257161,350.76,HOUSING BENEFIT,299992,Resources,Housing Services,108,Transfer Payments,506,Housing Benefits,5048,Revenue,NON INFLUENCIBLE.NON INFLUENCIBLE
04/01/2022,2257162,323.08,HOUSING BENEFIT,299992,Resources,Housing Services,108,Transfer Payments,506,Housing Benefits,5048,Revenue,NON INFLUENCIBLE.NON INFLUENCIBLE
04/01/2022,2257163,369.24,HOUSING BENEFIT,299992,Resources,Housing Services,108,Transfer Payments,506,Housing Benefits,5048,Revenue,NON INFLUENCIBLE.NON INFLUENCIBLE
04/01/2022,2257164,2974.44,HOUSING BENEFIT,299992,Resources,Housing Services,108,Transfer Payments,506,Housing Benefits,5048,Revenue,NON INFLUENCIBLE.NON INFLUENCIBLE
04/01/2022,2257165,742.72,HOUSING BENEFIT,299992,Resources,Housing Services,108,Transfer Payments,506,Housing Benefits,5048,Revenue,NON INFLUENCIBLE.NON INFLUENCIBLE
04/01/2022,2257166,1166.52,HOUSING BENEFIT,299992,Resources,Housing Services,108,Transfer Payments,506,Housing Benefits,5048,Revenue,NON INFLUENCIBLE.NON INFLUENCIBLE
04/01/2022,2257167,731.84,HOUSING BENEFIT,299992,Resources,Housing Services,108,Transfer Payments,506,Housing Benefits,5048,Revenue,NON INFLUENCIBLE.NON INFLUENCIBLE
04/01/2022,2257168,391.24,HOUSING BENEFIT,299992,Resources,Housing Services,108,Transfer Payments,506,Housing Benefits,5048,Revenue,NON INFLUENCIBLE.NON INFLUENCIBLE
04/01/2022,2257169,21761.28,HOUSING BENEFIT,299992,Resources,Housing Services,108,Transfer Payments,506,Housing Benefits,5048,Revenue,NON INFLUENCIBLE.NON INFLUENCIBLE
04/01/2022,2257170,507.68,HOUSING BENEFIT,299992,Resources,Housing Services,108,Transfer Payments,506,Housing Benefits,5048,Revenue,NON INFLUENCIBLE.NON INFLUENCIBLE
04/01/2022,2257171,391.24,HOUSING BENEFIT,299992,Resources,Housing Services,108,Transfer Payments,506,Housing Benefits,5048,Revenue,NON INFLUENCIBLE.NON INFLUENCIBLE
04/01/2022,2257172,1519.96,HOUSING BENEFIT,299992,Resources,Housing Services,108,Transfer Payments,506,Housing Benefits,5048,Revenue,NON INFLUENCIBLE.NON INFLUENCIBLE
04/01/2022,2257173,391.24,HOUSING BENEFIT,299992,Resources,Housing Services,108,Transfer Payments,506,Housing Benefits,5048,Revenue,NON INFLUENCIBLE.NON INFLUENCIBLE
04/01/2022,2257174,369.24,HOUSING BENEFIT,299992,Resources,Housing Services,108,Transfer Payments,506,Housing Benefits,5048,Revenue,NON INFLUENCIBLE.NON INFLUENCIBLE
04/01/2022,2257175,323.08,HOUSING BENEFIT,299992,Resources,Housing Services,108,Transfer Payments,506,Housing Benefits,5048,Revenue,NON INFLUENCIBLE.NON INFLUENCIBLE
04/01/2022,2257176,1182.48,HOUSING BENEFIT,299992,Resources,Housing Services,108,Transfer Payments,506,Housing Benefits,5048,Revenue,NON INFLUENCIBLE.NON INFLUENCIBLE
04/01/2022,2257177,28524.96,HOUSING BENEFIT,299992,Resources,Housing Services,108,Transfer Payments,506,Housing Benefits,5048,Revenue,NON INFLUENCIBLE.NON INFLUENCIBLE
04/01/2022,2257178,553.08,HOUSING BENEFIT,299992,Resources,Housing Services,108,Transfer Payments,506,Housing Benefits,5048,Revenue,NON INFLUENCIBLE.NON INFLUENCIBLE
04/01/2022,2257179,391.24,HOUSING BENEFIT,299992,Resources,Housing Services,108,Transfer Payments,506,Housing Benefits,5048,Revenue,NON INFLUENCIBLE.NON INFLUENCIBLE
04/01/2022,2257180,400.00,HOUSING BENEFIT,299992,Resources,Housing Services,108,Transfer Payments,506,Housing Benefits,5048,Revenue,NON INFLUENCIBLE.NON INFLUENCIBLE
04/01/2022,2257181,782.48,HOUSING BENEFIT,299992,Resources,Housing Services,108,Transfer Payments,506,Housing Benefits,5048,Revenue,NON INFLUENCIBLE.NON INFLUENCIBLE
04/01/2022,2257182,360.00,HOUSING BENEFIT,299992,Resources,Housing Services,108,Transfer Payments,506,Housing Benefits,5048,Revenue,NON INFLUENCIBLE.NON INFLUENCIBLE
04/01/2022,2257183,1078.92,HOUSING BENEFIT,299992,Resources,Housing Services,108,Transfer Payments,506,Housing Benefits,5048,Revenue,NON INFLUENCIBLE.NON INFLUENCIBLE
04/01/2022,2257184,438.48,HOUSING BENEFIT,299992,Resources,Housing Services,108,Transfer Payments,506,Housing Benefits,5048,Revenue,NON INFLUENCIBLE.NON INFLUENCIBLE
04/01/2022,2257185,409.24,HOUSING BENEFIT,299992,Resources,Housing Services,108,Transfer Payments,506,Housing Benefits,5048,Revenue,NON INFLUENCIBLE.NON INFLUENCIBLE
04/01/2022,2257186,391.24,HOUSING BENEFIT,299992,Resources,Housing Services,108,Transfer Payments,506,Housing Benefits,5048,Revenue,NON INFLUENCIBLE.NON INFLUENCIBLE
04/01/2022,2257187,391.24,HOUSING BENEFIT,299992,Resources,Housing Services,108,Transfer Payments,506,Housing Benefits,5048,Revenue,NON INFLUENCIBLE.NON INFLUENCIBLE
04/01/2022,2257188,2063.08,HOUSING BENEFIT,299992,Resources,Housing Services,108,Transfer Payments,506,Housing Benefits,5048,Revenue,NON INFLUENCIBLE.NON INFLUENCIBLE
04/01/2022,2257189,391.24,HOUSING BENEFIT,299992,Resources,Housing Services,108,Transfer Payments,506,Housing Benefits,5048,Revenue,NON INFLUENCIBLE.NON INFLUENCIBLE
04/01/2022,2257190,369.24,HOUSING BENEFIT,299992,Resources,Housing Services,108,Transfer Payments,506,Housing Benefits,5048,Revenue,NON INFLUENCIBLE.NON INFLUENCIBLE
04/01/2022,2257192,733.84,HOUSING BENEFIT,299992,Resources,Housing Services,108,Transfer Payments,506,Housing Benefits,5048,Revenue,NON INFLUENCIBLE.NON INFLUENCIBLE
04/01/2022,2257193,460.00,HOUSING BENEFIT,299992,Resources,Housing Services,108,Transfer Payments,506,Housing Benefits,5048,Revenue,NON INFLUENCIBLE.NON INFLUENCIBLE
04/01/2022,2257194,369.24,HOUSING BENEFIT,299992,Resources,Housing Services,108,Transfer Payments,506,Housing Benefits,5048,Revenue,NON INFLUENCIBLE.NON INFLUENCIBLE
04/01/2022,2257195,391.24,HOUSING BENEFIT,299992,Resources,Housing Services,108,Transfer Payments,506,Housing Benefits,5048,Revenue,NON INFLUENCIBLE.NON INFLUENCIBLE
04/01/2022,2257197,300.00,HOUSING BENEFIT,299992,Resources,Housing Services,108,Transfer Payments,506,Housing Benefits,5048,Revenue,NON INFLUENCIBLE.NON INFLUENCIBLE
04/01/2022,2257198,437.28,HOUSING BENEFIT,299992,Resources,Housing Services,108,Transfer Payments,506,Housing Benefits,5048,Revenue,NON INFLUENCIBLE.NON INFLUENCIBLE
04/01/2022,2257199,506.00,HOUSING BENEFIT,299992,Resources,Housing Services,108,Transfer Payments,506,Housing Benefits,5048,Revenue,NON INFLUENCIBLE.NON INFLUENCIBLE
04/01/2022,2257200,507.68,HOUSING BENEFIT,299992,Resources,Housing Services,108,Transfer Payments,506,Housing Benefits,5048,Revenue,NON INFLUENCIBLE.NON INFLUENCIBLE
04/01/2022,2257201,350.76,HOUSING BENEFIT,299992,Resources,Housing Services,108,Transfer Payments,506,Housing Benefits,5048,Revenue,NON INFLUENCIBLE.NON INFLUENCIBLE
04/01/2022,2257202,751.24,HOUSING BENEFIT,299992,Resources,Housing Services,108,Transfer Payments,506,Housing Benefits,5048,Revenue,NON INFLUENCIBLE.NON INFLUENCIBLE
04/01/2022,2257203,369.24,HOUSING BENEFIT,299992,Resources,Housing Services,108,Transfer Payments,506,Housing Benefits,5048,Revenue,NON INFLUENCIBLE.NON INFLUENCIBLE
04/01/2022,2257204,489.20,HOUSING BENEFIT,299992,Resources,Housing Services,108,Transfer Payments,506,Housing Benefits,5048,Revenue,NON INFLUENCIBLE.NON INFLUENCIBLE
04/01/2022,2257205,323.08,HOUSING BENEFIT,299992,Resources,Housing Services,108,Transfer Payments,506,Housing Benefits,5048,Revenue,NON INFLUENCIBLE.NON INFLUENCIBLE
04/01/2022,2257206,480.00,HOUSING BENEFIT,299992,Resources,Housing Services,108,Transfer Payments,506,Housing Benefits,5048,Revenue,NON INFLUENCIBLE.NON INFLUENCIBLE
04/01/2022,2257207,1244.48,HOUSING BENEFIT,299992,Resources,Housing Services,108,Transfer Payments,506,Housing Benefits,5048,Revenue,NON INFLUENCIBLE.NON INFLUENCIBLE
04/01/2022,2257208,391.24,HOUSING BENEFIT,299992,Resources,Housing Services,108,Transfer Payments,506,Housing Benefits,5048,Revenue,NON INFLUENCIBLE.NON INFLUENCIBLE
04/01/2022,2257209,391.24,HOUSING BENEFIT,299992,Resources,Housing Services,108,Transfer Payments,506,Housing Benefits,5048,Revenue,NON INFLUENCIBLE.NON INFLUENCIBLE
04/01/2022,2257210,912.76,HOUSING BENEFIT,299992,Resources,Housing Services,108,Transfer Payments,506,Housing Benefits,5048,Revenue,NON INFLUENCIBLE.NON INFLUENCIBLE
04/01/2022,2257211,461.52,HOUSING BENEFIT,299992,Resources,Housing Services,108,Transfer Payments,506,Housing Benefits,5048,Revenue,NON INFLUENCIBLE.NON INFLUENCIBLE
04/01/2022,2257212,391.24,HOUSING BENEFIT,299992,Resources,Housing Services,108,Transfer Payments,506,Housing Benefits,5048,Revenue,NON INFLUENCIBLE.NON INFLUENCIBLE
04/01/2022,2257213,391.24,HOUSING BENEFIT,299992,Resources,Housing Services,108,Transfer Payments,506,Housing Benefits,5048,Revenue,NON INFLUENCIBLE.NON INFLUENCIBLE
04/01/2022,2257214,391.24,HOUSING BENEFIT,299992,Resources,Housing Services,108,Transfer Payments,506,Housing Benefits,5048,Revenue,NON INFLUENCIBLE.NON INFLUENCIBLE
04/01/2022,2257215,576.92,HOUSING BENEFIT,299992,Resources,Housing Services,108,Transfer Payments,506,Housing Benefits,5048,Revenue,NON INFLUENCIBLE.NON INFLUENCIBLE
04/01/2022,2257216,14017.62,HOUSING BENEFIT,299992,Resources,Housing Services,108,Transfer Payments,506,Housing Benefits,5048,Revenue,NON INFLUENCIBLE.NON INFLUENCIBLE
04/01/2022,2257217,1528.80,HOUSING BENEFIT,299992,Resources,Housing Services,108,Transfer Payments,506,Housing Benefits,5048,Revenue,NON INFLUENCIBLE.NON INFLUENCIBLE
04/01/2022,2257218,300.00,HOUSING BENEFIT,299992,Resources,Housing Services,108,Transfer Payments,506,Housing Benefits,5048,Revenue,NON INFLUENCIBLE.NON INFLUENCIBLE
04/01/2022,2257220,391.24,HOUSING BENEFIT,299992,Resources,Housing Services,108,Transfer Payments,506,Housing Benefits,5048,Revenue,NON INFLUENCIBLE.NON INFLUENCIBLE
04/01/2022,2257221,369.24,HOUSING BENEFIT,299992,Resources,Housing Services,108,Transfer Payments,506,Housing Benefits,5048,Revenue,NON INFLUENCIBLE.NON INFLUENCIBLE
04/01/2022,2257222,415.40,HOUSING BENEFIT,299992,Resources,Housing Services,108,Transfer Payments,506,Housing Benefits,5048,Revenue,NON INFLUENCIBLE.NON INFLUENCIBLE
04/01/2022,2257223,369.24,HOUSING BENEFIT,299992,Resources,Housing Services,108,Transfer Payments,506,Housing Benefits,5048,Revenue,NON INFLUENCIBLE.NON INFLUENCIBLE
04/01/2022,2257224,391.24,HOUSING BENEFIT,299992,Resources,Housing Services,108,Transfer Payments,506,Housing Benefits,5048,Revenue,NON INFLUENCIBLE.NON INFLUENCIBLE
04/01/2022,2257225,391.24,HOUSING BENEFIT,299992,Resources,Housing Services,108,Transfer Payments,506,Housing Benefits,5048,Revenue,NON INFLUENCIBLE.NON INFLUENCIBLE
04/01/2022,2257226,461.32,HOUSING BENEFIT,299992,Resources,Housing Services,108,Transfer Payments,506,Housing Benefits,5048,Revenue,NON INFLUENCIBLE.NON INFLUENCIBLE
04/01/2022,2257227,391.24,HOUSING BENEFIT,299992,Resources,Housing Services,108,Transfer Payments,506,Housing Benefits,5048,Revenue,NON INFLUENCIBLE.NON INFLUENCIBLE
04/01/2022,2257228,369.24,HOUSING BENEFIT,299992,Resources,Housing Services,108,Transfer Payments,506,Housing Benefits,5048,Revenue,NON INFLUENCIBLE.NON INFLUENCIBLE
04/01/2022,2257229,806.64,HOUSING BENEFIT,299992,Resources,Housing Services,108,Transfer Payments,506,Housing Benefits,5048,Revenue,NON INFLUENCIBLE.NON INFLUENCIBLE
04/01/2022,2257230,313.84,HOUSING BENEFIT,299992,Resources,Housing Services,108,Transfer Payments,506,Housing Benefits,5048,Revenue,NON INFLUENCIBLE.NON INFLUENCIBLE
04/01/2022,2257231,391.24,HOUSING BENEFIT,299992,Resources,Housing Services,108,Transfer Payments,506,Housing Benefits,5048,Revenue,NON INFLUENCIBLE.NON INFLUENCIBLE
04/01/2022,2257232,280.76,HOUSING BENEFIT,299992,Resources,Housing Services,108,Transfer Payments,506,Housing Benefits,5048,Revenue,NON INFLUENCIBLE.NON INFLUENCIBLE
04/01/2022,2257233,10075.55,HOUSING BENEFIT,299992,Resources,Housing Services,108,Transfer Payments,506,Housing Benefits,5048,Revenue,NON INFLUENCIBLE.NON INFLUENCIBLE
04/01/2022,2257234,387.28,HOUSING BENEFIT,299992,Resources,Housing Services,108,Transfer Payments,506,Housing Benefits,5048,Revenue,NON INFLUENCIBLE.NON INFLUENCIBLE
04/01/2022,2257235,613.84,HOUSING BENEFIT,299992,Resources,Housing Services,108,Transfer Payments,506,Housing Benefits,5048,Revenue,NON INFLUENCIBLE.NON INFLUENCIBLE
04/01/2022,2257236,391.24,HOUSING BENEFIT,299992,Resources,Housing Services,108,Transfer Payments,506,Housing Benefits,5048,Revenue,NON INFLUENCIBLE.NON INFLUENCIBLE
04/01/2022,2257237,659.08,HOUSING BENEFIT,299992,Resources,Housing Services,108,Transfer Payments,506,Housing Benefits,5048,Revenue,NON INFLUENCIBLE.NON INFLUENCIBLE
04/01/2022,2257238,729.24,HOUSING BENEFIT,299992,Resources,Housing Services,108,Transfer Payments,506,Housing Benefits,5048,Revenue,NON INFLUENCIBLE.NON INFLUENCIBLE
04/01/2022,2257239,731.84,HOUSING BENEFIT,299992,Resources,Housing Services,108,Transfer Payments,506,Housing Benefits,5048,Revenue,NON INFLUENCIBLE.NON INFLUENCIBLE
04/01/2022,2257240,391.24,HOUSING BENEFIT,299992,Resources,Housing Services,108,Transfer Payments,506,Housing Benefits,5048,Revenue,NON INFLUENCIBLE.NON INFLUENCIBLE
04/01/2022,2257241,346.16,HOUSING BENEFIT,299992,Resources,Housing Services,108,Transfer Payments,506,Housing Benefits,5048,Revenue,NON INFLUENCIBLE.NON INFLUENCIBLE
04/01/2022,2257242,760.48,HOUSING BENEFIT,299992,Resources,Housing Services,108,Transfer Payments,506,Housing Benefits,5048,Revenue,NON INFLUENCIBLE.NON INFLUENCIBLE
04/01/2022,2257243,316.24,HOUSING BENEFIT,299992,Resources,Housing Services,108,Transfer Payments,506,Housing Benefits,5048,Revenue,NON INFLUENCIBLE.NON INFLUENCIBLE
04/01/2022,2257244,391.24,HOUSING BENEFIT,299992,Resources,Housing Services,108,Transfer Payments,506,Housing Benefits,5048,Revenue,NON INFLUENCIBLE.NON INFLUENCIBLE
04/01/2022,2257245,346.16,HOUSING BENEFIT,299992,Resources,Housing Services,108,Transfer Payments,506,Housing Benefits,5048,Revenue,NON INFLUENCIBLE.NON INFLUENCIBLE
04/01/2022,2257246,782.48,HOUSING BENEFIT,299992,Resources,Housing Services,108,Transfer Payments,506,Housing Benefits,5048,Revenue,NON INFLUENCIBLE.NON INFLUENCIBLE
04/01/2022,2257247,796.00,HOUSING BENEFIT,299992,Resources,Housing Services,108,Transfer Payments,506,Housing Benefits,5048,Revenue,NON INFLUENCIBLE.NON INFLUENCIBLE
04/01/2022,2257248,288.12,HOUSING BENEFIT,299992,Resources,Housing Services,108,Transfer Payments,506,Housing Benefits,5048,Revenue,NON INFLUENCIBLE.NON INFLUENCIBLE
04/01/2022,2257249,916.80,HOUSING BENEFIT,299992,Resources,Housing Services,108,Transfer Payments,506,Housing Benefits,5048,Revenue,NON INFLUENCIBLE.NON INFLUENCIBLE
04/01/2022,2257250,576.00,HOUSING BENEFIT,299992,Resources,Housing Services,108,Transfer Payments,506,Housing Benefits,5048,Revenue,NON INFLUENCIBLE.NON INFLUENCIBLE
04/01/2022,2257251,506.32,HOUSING BENEFIT,299992,Resources,Housing Services,108,Transfer Payments,506,Housing Benefits,5048,Revenue,NON INFLUENCIBLE.NON INFLUENCIBLE
04/01/2022,2257252,828.52,HOUSING BENEFIT,299992,Resources,Housing Services,108,Transfer Payments,506,Housing Benefits,5048,Revenue,NON INFLUENCIBLE.NON INFLUENCIBLE
04/01/2022,2257253,437.28,HOUSING BENEFIT,299992,Resources,Housing Services,108,Transfer Payments,506,Housing Benefits,5048,Revenue,NON INFLUENCIBLE.NON INFLUENCIBLE
04/01/2022,2257254,391.24,HOUSING BENEFIT,299992,Resources,Housing Services,108,Transfer Payments,506,Housing Benefits,5048,Revenue,NON INFLUENCIBLE.NON INFLUENCIBLE
04/01/2022,2257255,380.00,HOUSING BENEFIT,299992,Resources,Housing Services,108,Transfer Payments,506,Housing Benefits,5048,Revenue,NON INFLUENCIBLE.NON INFLUENCIBLE
04/01/2022,2257256,391.24,HOUSING BENEFIT,299992,Resources,Housing Services,108,Transfer Payments,506,Housing Benefits,5048,Revenue,NON INFLUENCIBLE.NON INFLUENCIBLE
04/01/2022,2257257,391.24,HOUSING BENEFIT,299992,Resources,Housing Services,108,Transfer Payments,506,Housing Benefits,5048,Revenue,NON INFLUENCIBLE.NON INFLUENCIBLE
04/01/2022,2257258,391.24,HOUSING BENEFIT,299992,Resources,Housing Services,108,Transfer Payments,506,Housing Benefits,5048,Revenue,NON INFLUENCIBLE.NON INFLUENCIBLE
04/01/2022,2257259,1107.56,HOUSING BENEFIT,299992,Resources,Housing Services,108,Transfer Payments,506,Housing Benefits,5048,Revenue,NON INFLUENCIBLE.NON INFLUENCIBLE
04/01/2022,2257260,437.28,HOUSING BENEFIT,299992,Resources,Housing Services,108,Transfer Payments,506,Housing Benefits,5048,Revenue,NON INFLUENCIBLE.NON INFLUENCIBLE
04/01/2022,2257261,391.24,HOUSING BENEFIT,299992,Resources,Housing Services,108,Transfer Payments,506,Housing Benefits,5048,Revenue,NON INFLUENCIBLE.NON INFLUENCIBLE
04/01/2022,2257262,380.00,HOUSING BENEFIT,299992,Resources,Housing Services,108,Transfer Payments,506,Housing Benefits,5048,Revenue,NON INFLUENCIBLE.NON INFLUENCIBLE
04/01/2022,2257263,364.60,HOUSING BENEFIT,299992,Resources,Housing Services,108,Transfer Payments,506,Housing Benefits,5048,Revenue,NON INFLUENCIBLE.NON INFLUENCIBLE
04/01/2022,2257265,437.28,HOUSING BENEFIT,299992,Resources,Housing Services,108,Transfer Payments,506,Housing Benefits,5048,Revenue,NON INFLUENCIBLE.NON INFLUENCIBLE
04/01/2022,2257266,2731.20,HOUSING BENEFIT,299992,Resources,Housing Services,108,Transfer Payments,506,Housing Benefits,5048,Revenue,NON INFLUENCIBLE.NON INFLUENCIBLE
04/01/2022,2257267,389.04,HOUSING BENEFIT,299992,Resources,Housing Services,108,Transfer Payments,506,Housing Benefits,5048,Revenue,NON INFLUENCIBLE.NON INFLUENCIBLE
04/01/2022,2257274,391.24,HOUSING BENEFIT,299992,Resources,Housing Services,108,Transfer Payments,506,Housing Benefits,5048,Revenue,NON INFLUENCIBLE.NON INFLUENCIBLE
04/01/2022,2257286,391.24,HOUSING BENEFIT,299992,Resources,Housing Services,108,Transfer Payments,506,Housing Benefits,5048,Revenue,NON INFLUENCIBLE.NON INFLUENCIBLE
04/01/2022,2257287,360.00,HOUSING BENEFIT,299992,Resources,Housing Services,108,Transfer Payments,506,Housing Benefits,5048,Revenue,NON INFLUENCIBLE.NON INFLUENCIBLE
04/01/2022,2257289,320.00,HOUSING BENEFIT,299992,Resources,Housing Services,108,Transfer Payments,506,Housing Benefits,5048,Revenue,NON INFLUENCIBLE.NON INFLUENCIBLE
04/01/2022,2257291,3302.02,HOUSING BENEFIT,299992,Resources,Housing Services,108,Transfer Payments,506,Housing Benefits,5048,Revenue,NON INFLUENCIBLE.NON INFLUENCIBLE
04/01/2022,2257292,921.72,HOUSING BENEFIT,299992,Resources,Housing Services,108,Transfer Payments,506,Housing Benefits,5048,Revenue,NON INFLUENCIBLE.NON INFLUENCIBLE
04/01/2022,2257293,350.76,HOUSING BENEFIT,299992,Resources,Housing Services,108,Transfer Payments,506,Housing Benefits,5048,Revenue,NON INFLUENCIBLE.NON INFLUENCIBLE
04/01/2022,2257294,323.08,HOUSING BENEFIT,299992,Resources,Housing Services,108,Transfer Payments,506,Housing Benefits,5048,Revenue,NON INFLUENCIBLE.NON INFLUENCIBLE
04/01/2022,2257295,388.72,HOUSING BENEFIT,299992,Resources,Housing Services,108,Transfer Payments,506,Housing Benefits,5048,Revenue,NON INFLUENCIBLE.NON INFLUENCIBLE
04/01/2022,2257296,437.28,HOUSING BENEFIT,299992,Resources,Housing Services,108,Transfer Payments,506,Housing Benefits,5048,Revenue,NON INFLUENCIBLE.NON INFLUENCIBLE
04/01/2022,2257297,631.48,HOUSING BENEFIT,299992,Resources,Housing Services,108,Transfer Payments,506,Housing Benefits,5048,Revenue,NON INFLUENCIBLE.NON INFLUENCIBLE
04/01/2022,2257298,615.76,HOUSING BENEFIT,299992,Resources,Housing Services,108,Transfer Payments,506,Housing Benefits,5048,Revenue,NON INFLUENCIBLE.NON INFLUENCIBLE
04/01/2022,2257299,391.24,HOUSING BENEFIT,299992,Resources,Housing Services,108,Transfer Payments,506,Housing Benefits,5048,Revenue,NON INFLUENCIBLE.NON INFLUENCIBLE
04/01/2022,2257300,391.24,HOUSING BENEFIT,299992,Resources,Housing Services,108,Transfer Payments,506,Housing Benefits,5048,Revenue,NON INFLUENCIBLE.NON INFLUENCIBLE
04/01/2022,2257301,461.52,HOUSING BENEFIT,299992,Resources,Housing Services,108,Transfer Payments,506,Housing Benefits,5048,Revenue,NON INFLUENCIBLE.NON INFLUENCIBLE
04/01/2022,2257302,400.00,HOUSING BENEFIT,299992,Resources,Housing Services,108,Transfer Payments,506,Housing Benefits,5048,Revenue,NON INFLUENCIBLE.NON INFLUENCIBLE
04/01/2022,2257303,465.00,HOUSING BENEFIT,299992,Resources,Housing Services,108,Transfer Payments,506,Housing Benefits,5048,Revenue,NON INFLUENCIBLE.NON INFLUENCIBLE
04/01/2022,2257315,356.26,HOUSING BENEFIT,299992,Resources,Housing Services,108,Transfer Payments,506,Housing Benefits,5048,Revenue,NON INFLUENCIBLE.NON INFLUENCIBLE
04/01/2022,2257318,391.24,HOUSING BENEFIT,299992,Resources,Housing Services,108,Transfer Payments,506,Housing Benefits,5048,Revenue,NON INFLUENCIBLE.NON INFLUENCIBLE
04/01/2022,2257326,391.24,HOUSING BENEFIT,299992,Resources,Housing Services,108,Transfer Payments,506,Housing Benefits,5048,Revenue,NON INFLUENCIBLE.NON INFLUENCIBLE
04/01/2022,2257328,461.52,HOUSING BENEFIT,299992,Resources,Housing Services,108,Transfer Payments,506,Housing Benefits,5048,Revenue,NON INFLUENCIBLE.NON INFLUENCIBLE
04/01/2022,2257329,391.24,HOUSING BENEFIT,299992,Resources,Housing Services,108,Transfer Payments,506,Housing Benefits,5048,Revenue,NON INFLUENCIBLE.NON INFLUENCIBLE
04/01/2022,2257330,350.76,HOUSING BENEFIT,299992,Resources,Housing Services,108,Transfer Payments,506,Housing Benefits,5048,Revenue,NON INFLUENCIBLE.NON INFLUENCIBLE
04/01/2022,2257331,380.00,HOUSING BENEFIT,299992,Resources,Housing Services,108,Transfer Payments,506,Housing Benefits,5048,Revenue,NON INFLUENCIBLE.NON INFLUENCIBLE
04/01/2022,2257332,442.83,HOUSING BENEFIT,299992,Resources,Housing Services,108,Transfer Payments,506,Housing Benefits,5048,Revenue,NON INFLUENCIBLE.NON INFLUENCIBLE
04/01/2022,2257333,500.00,HOUSING BENEFIT,299992,Resources,Housing Services,108,Transfer Payments,506,Housing Benefits,5048,Revenue,NON INFLUENCIBLE.NON INFLUENCIBLE
04/01/2022,2257334,320.00,HOUSING BENEFIT,299992,Resources,Housing Services,108,Transfer Payments,506,Housing Benefits,5048,Revenue,NON INFLUENCIBLE.NON INFLUENCIBLE
04/01/2022,2257335,440.00,HOUSING BENEFIT,299992,Resources,Housing Services,108,Transfer Payments,506,Housing Benefits,5048,Revenue,NON INFLUENCIBLE.NON INFLUENCIBLE
04/01/2022,2257336,300.00,HOUSING BENEFIT,299992,Resources,Housing Services,108,Transfer Payments,506,Housing Benefits,5048,Revenue,NON INFLUENCIBLE.NON INFLUENCIBLE
04/01/2022,2257337,437.28,HOUSING BENEFIT,299992,Resources,Housing Services,108,Transfer Payments,506,Housing Benefits,5048,Revenue,NON INFLUENCIBLE.NON INFLUENCIBLE
04/01/2022,2257338,319.00,HOUSING BENEFIT,299992,Resources,Housing Services,108,Transfer Payments,506,Housing Benefits,5048,Revenue,NON INFLUENCIBLE.NON INFLUENCIBLE
04/01/2022,2257339,360.00,HOUSING BENEFIT,299992,Resources,Housing Services,108,Transfer Payments,506,Housing Benefits,5048,Revenue,NON INFLUENCIBLE.NON INFLUENCIBLE
04/01/2022,2257342,380.00,HOUSING BENEFIT,299992,Resources,Housing Services,108,Transfer Payments,506,Housing Benefits,5048,Revenue,NON INFLUENCIBLE.NON INFLUENCIBLE
04/01/2022,2257343,846.24,HOUSING BENEFIT,299992,Resources,Housing Services,108,Transfer Payments,506,Housing Benefits,5048,Revenue,NON INFLUENCIBLE.NON INFLUENCIBLE
04/01/2022,2257344,420.00,HOUSING BENEFIT,299992,Resources,Housing Services,108,Transfer Payments,506,Housing Benefits,5048,Revenue,NON INFLUENCIBLE.NON INFLUENCIBLE
04/01/2022,2257345,369.24,HOUSING BENEFIT,299992,Resources,Housing Services,108,Transfer Payments,506,Housing Benefits,5048,Revenue,NON INFLUENCIBLE.NON INFLUENCIBLE
04/01/2022,2257346,346.24,HOUSING BENEFIT,299992,Resources,Housing Services,108,Transfer Payments,506,Housing Benefits,5048,Revenue,NON INFLUENCIBLE.NON INFLUENCIBLE
04/01/2022,2257347,391.24,HOUSING BENEFIT,299992,Resources,Housing Services,108,Transfer Payments,506,Housing Benefits,5048,Revenue,NON INFLUENCIBLE.NON INFLUENCIBLE
04/01/2022,2257348,320.00,HOUSING BENEFIT,299992,Resources,Housing Services,108,Transfer Payments,506,Housing Benefits,5048,Revenue,NON INFLUENCIBLE.NON INFLUENCIBLE
04/01/2022,2257349,415.40,HOUSING BENEFIT,299992,Resources,Housing Services,108,Transfer Payments,506,Housing Benefits,5048,Revenue,NON INFLUENCIBLE.NON INFLUENCIBLE
04/01/2022,2257350,21113.07,HOUSING BENEFIT,299992,Resources,Housing Services,108,Transfer Payments,506,Housing Benefits,5048,Revenue,NON INFLUENCIBLE.NON INFLUENCIBLE
04/01/2022,2257351,364.60,HOUSING BENEFIT,299992,Resources,Housing Services,108,Transfer Payments,506,Housing Benefits,5048,Revenue,NON INFLUENCIBLE.NON INFLUENCIBLE
04/01/2022,2257352,369.24,HOUSING BENEFIT,299992,Resources,Housing Services,108,Transfer Payments,506,Housing Benefits,5048,Revenue,NON INFLUENCIBLE.NON INFLUENCIBLE
04/01/2022,2257353,1046.80,HOUSING BENEFIT,299992,Resources,Housing Services,108,Transfer Payments,506,Housing Benefits,5048,Revenue,NON INFLUENCIBLE.NON INFLUENCIBLE
04/01/2022,2257354,300.00,HOUSING BENEFIT,299992,Resources,Housing Services,108,Transfer Payments,506,Housing Benefits,5048,Revenue,NON INFLUENCIBLE.NON INFLUENCIBLE
04/01/2022,2257355,391.24,HOUSING BENEFIT,299992,Resources,Housing Services,108,Transfer Payments,506,Housing Benefits,5048,Revenue,NON INFLUENCIBLE.NON INFLUENCIBLE
04/01/2022,2257356,391.24,HOUSING BENEFIT,299992,Resources,Housing Services,108,Transfer Payments,506,Housing Benefits,5048,Revenue,NON INFLUENCIBLE.NON INFLUENCIBLE
04/01/2022,2257357,415.40,HOUSING BENEFIT,299992,Resources,Housing Services,108,Transfer Payments,506,Housing Benefits,5048,Revenue,NON INFLUENCIBLE.NON INFLUENCIBLE
04/01/2022,2257363,268.78,HOUSING BENEFIT,299992,Resources,Housing Services,108,Transfer Payments,506,Housing Benefits,5048,Revenue,NON INFLUENCIBLE.NON INFLUENCIBLE
04/01/2022,2257380,316.16,HOUSING BENEFIT,299992,Resources,Housing Services,108,Transfer Payments,506,Housing Benefits,5048,Revenue,NON INFLUENCIBLE.NON INFLUENCIBLE
04/01/2022,2257419,253.16,HOUSING BENEFIT,299992,Resources,Housing Services,108,Transfer Payments,506,Housing Benefits,5048,Revenue,NON INFLUENCIBLE.NON INFLUENCIBLE
04/01/2022,2257475,253.16,HOUSING BENEFIT,299992,Resources,Housing Services,108,Transfer Payments,506,Housing Benefits,5048,Revenue,NON INFLUENCIBLE.NON INFLUENCIBLE
04/01/2022,2257480,366.22,HOUSING BENEFIT,299992,Resources,Housing Services,108,Transfer Payments,506,Housing Benefits,5048,Revenue,NON INFLUENCIBLE.NON INFLUENCIBLE
04/01/2022,2257491,253.16,HOUSING BENEFIT,299992,Resources,Housing Services,108,Transfer Payments,506,Housing Benefits,5048,Revenue,NON INFLUENCIBLE.NON INFLUENCIBLE
04/01/2022,2257496,253.16,HOUSING BENEFIT,299992,Resources,Housing Services,108,Transfer Payments,506,Housing Benefits,5048,Revenue,NON INFLUENCIBLE.NON INFLUENCIBLE
04/01/2022,2257555,661.40,HOUSING BENEFIT,299992,Resources,Housing Services,108,Transfer Payments,506,Housing Benefits,5048,Revenue,NON INFLUENCIBLE.NON INFLUENCIBLE
04/01/2022,2257556,253.16,HOUSING BENEFIT,299992,Resources,Housing Services,108,Transfer Payments,506,Housing Benefits,5048,Revenue,NON INFLUENCIBLE.NON INFLUENCIBLE
04/01/2022,2257584,350.76,HOUSING BENEFIT,299992,Resources,Housing Services,108,Transfer Payments,506,Housing Benefits,5048,Revenue,NON INFLUENCIBLE.NON INFLUENCIBLE
04/01/2022,2257587,465.72,HOUSING BENEFIT,299992,Resources,Housing Services,108,Transfer Payments,506,Housing Benefits,5048,Revenue,NON INFLUENCIBLE.NON INFLUENCIBLE
04/01/2022,2257600,253.16,HOUSING BENEFIT,299992,Resources,Housing Services,108,Transfer Payments,506,Housing Benefits,5048,Revenue,NON INFLUENCIBLE.NON INFLUENCIBLE
04/01/2022,2257604,253.16,HOUSING BENEFIT,299992,Resources,Housing Services,108,Transfer Payments,506,Housing Benefits,5048,Revenue,NON INFLUENCIBLE.NON INFLUENCIBLE
04/01/2022,2257616,297.36,HOUSING BENEFIT,299992,Resources,Housing Services,108,Transfer Payments,506,Housing Benefits,5048,Revenue,NON INFLUENCIBLE.NON INFLUENCIBLE
04/01/2022,2257625,253.16,HOUSING BENEFIT,299992,Resources,Housing Services,108,Transfer Payments,506,Housing Benefits,5048,Revenue,NON INFLUENCIBLE.NON INFLUENCIBLE
04/01/2022,2257631,365.92,HOUSING BENEFIT,299992,Resources,Housing Services,108,Transfer Payments,506,Housing Benefits,5048,Revenue,NON INFLUENCIBLE.NON INFLUENCIBLE
04/01/2022,2257639,312.16,HOUSING BENEFIT,299992,Resources,Housing Services,108,Transfer Payments,506,Housing Benefits,5048,Revenue,NON INFLUENCIBLE.NON INFLUENCIBLE
04/01/2022,2257656,409.30,HOUSING BENEFIT,299992,Resources,Housing Services,108,Transfer Payments,506,Housing Benefits,5048,Revenue,NON INFLUENCIBLE.NON INFLUENCIBLE
04/01/2022,2257703,391.24,HOUSING BENEFIT,299992,Resources,Housing Services,108,Transfer Payments,506,Housing Benefits,5048,Revenue,NON INFLUENCIBLE.NON INFLUENCIBLE
04/01/2022,2257731,409.94,HOUSING BENEFIT,299992,Resources,Housing Services,108,Transfer Payments,506,Housing Benefits,5048,Revenue,NON INFLUENCIBLE.NON INFLUENCIBLE
04/01/2022,2257736,437.28,HOUSING BENEFIT,299992,Resources,Housing Services,108,Transfer Payments,506,Housing Benefits,5048,Revenue,NON INFLUENCIBLE.NON INFLUENCIBLE
04/01/2022,2257759,332.52,HOUSING BENEFIT,299992,Resources,Housing Services,108,Transfer Payments,506,Housing Benefits,5048,Revenue,NON INFLUENCIBLE.NON INFLUENCIBLE
04/01/2022,2257762,452.22,HOUSING BENEFIT,299992,Resources,Housing Services,108,Transfer Payments,506,Housing Benefits,5048,Revenue,NON INFLUENCIBLE.NON INFLUENCIBLE
04/01/2022,2257772,253.16,HOUSING BENEFIT,299992,Resources,Housing Services,108,Transfer Payments,506,Housing Benefits,5048,Revenue,NON INFLUENCIBLE.NON INFLUENCIBLE
04/01/2022,2257786,347.18,HOUSING BENEFIT,299992,Resources,Housing Services,108,Transfer Payments,506,Housing Benefits,5048,Revenue,NON INFLUENCIBLE.NON INFLUENCIBLE
04/01/2022,2257806,253.16,HOUSING BENEFIT,299992,Resources,Housing Services,108,Transfer Payments,506,Housing Benefits,5048,Revenue,NON INFLUENCIBLE.NON INFLUENCIBLE
04/01/2022,2257818,271.12,HOUSING BENEFIT,299992,Resources,Housing Services,108,Transfer Payments,506,Housing Benefits,5048,Revenue,NON INFLUENCIBLE.NON INFLUENCIBLE
04/01/2022,2257819,253.16,HOUSING BENEFIT,299992,Resources,Housing Services,108,Transfer Payments,506,Housing Benefits,5048,Revenue,NON INFLUENCIBLE.NON INFLUENCIBLE
04/01/2022,2257829,364.00,HOUSING BENEFIT,299992,Resources,Housing Services,108,Transfer Payments,506,Housing Benefits,5048,Revenue,NON INFLUENCIBLE.NON INFLUENCIBLE
04/01/2022,2257857,366.22,HOUSING BENEFIT,299992,Resources,Housing Services,108,Transfer Payments,506,Housing Benefits,5048,Revenue,NON INFLUENCIBLE.NON INFLUENCIBLE
04/01/2022,2257875,318.89,HOUSING BENEFIT,299992,Resources,Housing Services,108,Transfer Payments,506,Housing Benefits,5048,Revenue,NON INFLUENCIBLE.NON INFLUENCIBLE
04/01/2022,2257881,342.30,HOUSING BENEFIT,299992,Resources,Housing Services,108,Transfer Payments,506,Housing Benefits,5048,Revenue,NON INFLUENCIBLE.NON INFLUENCIBLE
04/01/2022,2257888,360.00,HOUSING BENEFIT,299992,Resources,Housing Services,108,Transfer Payments,506,Housing Benefits,5048,Revenue,NON INFLUENCIBLE.NON INFLUENCIBLE
04/01/2022,2257899,384.12,HOUSING BENEFIT,299992,Resources,Housing Services,108,Transfer Payments,506,Housing Benefits,5048,Revenue,NON INFLUENCIBLE.NON INFLUENCIBLE
04/01/2022,2257915,302.64,HOUSING BENEFIT,299992,Resources,Housing Services,108,Transfer Payments,506,Housing Benefits,5048,Revenue,NON INFLUENCIBLE.NON INFLUENCIBLE
04/01/2022,2257924,316.16,HOUSING BENEFIT,299992,Resources,Housing Services,108,Transfer Payments,506,Housing Benefits,5048,Revenue,NON INFLUENCIBLE.NON INFLUENCIBLE
04/01/2022,2257951,379.20,HOUSING BENEFIT,299992,Resources,Housing Services,108,Transfer Payments,506,Housing Benefits,5048,Revenue,NON INFLUENCIBLE.NON INFLUENCIBLE
04/01/2022,2257954,344.98,HOUSING BENEFIT,299992,Resources,Housing Services,108,Transfer Payments,506,Housing Benefits,5048,Revenue,NON INFLUENCIBLE.NON INFLUENCIBLE
04/01/2022,2257959,347.18,HOUSING BENEFIT,299992,Resources,Housing Services,108,Transfer Payments,506,Housing Benefits,5048,Revenue,NON INFLUENCIBLE.NON INFLUENCIBLE
04/01/2022,2257980,452.32,HOUSING BENEFIT,299992,Resources,Housing Services,108,Transfer Payments,506,Housing Benefits,5048,Revenue,NON INFLUENCIBLE.NON INFLUENCIBLE
04/01/2022,2257992,338.84,HOUSING BENEFIT,299992,Resources,Housing Services,108,Transfer Payments,506,Housing Benefits,5048,Revenue,NON INFLUENCIBLE.NON INFLUENCIBLE
04/01/2022,2258005,388.80,HOUSING BENEFIT,299992,Resources,Housing Services,108,Transfer Payments,506,Housing Benefits,5048,Revenue,NON INFLUENCIBLE.NON INFLUENCIBLE
04/01/2022,2258025,270.00,HOUSING BENEFIT,299992,Resources,Housing Services,108,Transfer Payments,506,Housing Benefits,5048,Revenue,NON INFLUENCIBLE.NON INFLUENCIBLE
04/01/2022,2258569,228.48,Redacted Personal Data,397813,"Health, Education, Care and Safeguarding",Children's & Education Services,103,Third Party Payments,505,Other Establishments,5041,Revenue,NON INFLUENCIBLE.WELFARE
04/01/2022,2258569,380.00,Redacted Personal Data,397813,"Health, Education, Care and Safeguarding",Children's & Education Services,103,Third Party Payments,505,Other Establishments,5041,Revenue,NON INFLUENCIBLE.WELFARE
04/01/2022,2258582,19.72,Redacted Personal Data,397574,"Health, Education, Care and Safeguarding",Children's & Education Services,103,Third Party Payments,505,Other Establishments,5041,Revenue,SOCIAL CARE.INDEPENDENT SUPPORTED LIVING
04/01/2022,2258582,59.16,Redacted Personal Data,397574,"Health, Education, Care and Safeguarding",Children's & Education Services,103,Third Party Payments,505,Other Establishments,5041,Revenue,SOCIAL CARE.INDEPENDENT SUPPORTED LIVING
04/01/2022,2258582,138.04,Redacted Personal Data,397574,"Health, Education, Care and Safeguarding",Children's & Education Services,103,Third Party Payments,505,Other Establishments,5041,Revenue,SOCIAL CARE.INDEPENDENT SUPPORTED LIVING
04/01/2022,2258582,154.41,Redacted Personal Data,397574,"Health, Education, Care and Safeguarding",Children's & Education Services,103,Third Party Payments,505,Other Establishments,5041,Revenue,SOCIAL CARE.INDEPENDENT SUPPORTED LIVING
04/01/2022,2258584,392.86,Redacted Personal Data,357347,"Health, Education, Care and Safeguarding",Children's & Education Services,103,Third Party Payments,505,Other Establishments,5041,Revenue,NON INFLUENCIBLE.INDIVIDUAL
04/01/2022,2258590,52.32,Redacted Personal Data,398545,"Health, Education, Care and Safeguarding",Children's & Education Services,103,Third Party Payments,505,Other Establishments,5041,Revenue,NON INFLUENCIBLE.WELFARE
04/01/2022,2258590,60.00,Redacted Personal Data,398545,"Health, Education, Care and Safeguarding",Children's & Education Services,103,Third Party Payments,505,Other Establishments,5041,Revenue,NON INFLUENCIBLE.WELFARE
04/01/2022,2258590,141.68,Redacted Personal Data,398545,"Health, Education, Care and Safeguarding",Children's & Education Services,103,Third Party Payments,505,Other Establishments,5041,Revenue,NON INFLUENCIBLE.WELFARE
04/01/2022,2258596,52.32,Redacted Personal Data,399506,"Health, Education, Care and Safeguarding",Children's & Education Services,103,Third Party Payments,505,Other Establishments,5041,Revenue,NON INFLUENCIBLE.WELFARE
04/01/2022,2258596,60.00,Redacted Personal Data,399506,"Health, Education, Care and Safeguarding",Children's & Education Services,103,Third Party Payments,505,Other Establishments,5041,Revenue,NON INFLUENCIBLE.WELFARE
04/01/2022,2258596,141.68,Redacted Personal Data,399506,"Health, Education, Care and Safeguarding",Children's & Education Services,103,Third Party Payments,505,Other Establishments,5041,Revenue,NON INFLUENCIBLE.WELFARE
04/01/2022,2258608,302.44,Redacted Personal Data,397779,"Health, Education, Care and Safeguarding",Children's & Education Services,103,Third Party Payments,505,Other Establishments,5041,Revenue,NON INFLUENCIBLE.WELFARE
04/01/2022,2258618,147.84,Redacted Personal Data,398865,"Health, Education, Care and Safeguarding",Children's & Education Services,103,Third Party Payments,505,Other Establishments,5041,Revenue,NON INFLUENCIBLE.WELFARE
04/01/2022,2258618,147.84,Redacted Personal Data,398865,"Health, Education, Care and Safeguarding",Children's & Education Services,103,Third Party Payments,505,Other Establishments,5041,Revenue,NON INFLUENCIBLE.WELFARE
04/01/2022,2258628,4.95,Redacted Personal Data,399674,"Health, Education, Care and Safeguarding",Children's & Education Services,103,Third Party Payments,505,Other Establishments,5041,Revenue,NON INFLUENCIBLE.INDIVIDUAL
04/01/2022,2258628,80.77,Redacted Personal Data,399674,"Health, Education, Care and Safeguarding",Children's & Education Services,103,Third Party Payments,505,Other Establishments,5041,Revenue,NON INFLUENCIBLE.INDIVIDUAL
04/01/2022,2258628,1000.00,Redacted Personal Data,399674,"Health, Education, Care and Safeguarding",Children's & Education Services,103,Third Party Payments,505,Other Establishments,5041,Revenue,NON INFLUENCIBLE.INDIVIDUAL
04/01/2022,2258634,380.00,Redacted Personal Data,399547,"Health, Education, Care and Safeguarding",Children's & Education Services,103,Third Party Payments,505,Other Establishments,5041,Revenue,NON INFLUENCIBLE.WELFARE
04/01/2022,2258636,131.13,Redacted Personal Data,399510,"Health, Education, Care and Safeguarding",Children's & Education Services,103,Third Party Payments,505,Voluntary Associations,5040,Revenue,NON INFLUENCIBLE.WELFARE
04/01/2022,2258636,195.00,Redacted Personal Data,399510,"Health, Education, Care and Safeguarding",Children's & Education Services,103,Third Party Payments,505,Voluntary Associations,5040,Revenue,NON INFLUENCIBLE.WELFARE
04/01/2022,2258654,550.00,Redacted Personal Data,398386,"Health, Education, Care and Safeguarding",Children's & Education Services,103,Third Party Payments,505,Other Establishments,5041,Revenue,NON INFLUENCIBLE.WELFARE
04/01/2022,2258667,380.00,Redacted Personal Data,392576,"Health, Education, Care and Safeguarding",Children's & Education Services,103,Third Party Payments,505,Other Establishments,5041,Revenue,NON INFLUENCIBLE.WELFARE
04/01/2022,2258668,380.00,Redacted Personal Data,396213,"Health, Education, Care and Safeguarding",Children's & Education Services,103,Third Party Payments,505,Other Establishments,5041,Revenue,NON INFLUENCIBLE.WELFARE
04/01/2022,2258669,380.00,Redacted Personal Data,396212,"Health, Education, Care and Safeguarding",Children's & Education Services,103,Third Party Payments,505,Other Establishments,5041,Revenue,NON INFLUENCIBLE.WELFARE
04/01/2022,2258670,380.00,Redacted Personal Data,396211,"Health, Education, Care and Safeguarding",Children's & Education Services,103,Third Party Payments,505,Other Establishments,5041,Revenue,NON INFLUENCIBLE.WELFARE
04/01/2022,2258671,380.00,Redacted Personal Data,396209,"Health, Education, Care and Safeguarding",Children's & Education Services,103,Third Party Payments,505,Other Establishments,5041,Revenue,NON INFLUENCIBLE.WELFARE
04/01/2022,2258672,380.00,Redacted Personal Data,396208,"Health, Education, Care and Safeguarding",Children's & Education Services,103,Third Party Payments,505,Other Establishments,5041,Revenue,NON INFLUENCIBLE.WELFARE
04/01/2022,2258673,52.32,Redacted Personal Data,396206,"Health, Education, Care and Safeguarding",Children's & Education Services,103,Third Party Payments,505,Other Establishments,5041,Revenue,NON INFLUENCIBLE.WELFARE
04/01/2022,2258673,60.00,Redacted Personal Data,396206,"Health, Education, Care and Safeguarding",Children's & Education Services,103,Third Party Payments,505,Other Establishments,5041,Revenue,NON INFLUENCIBLE.WELFARE
04/01/2022,2258673,141.68,Redacted Personal Data,396206,"Health, Education, Care and Safeguarding",Children's & Education Services,103,Third Party Payments,505,Other Establishments,5041,Revenue,NON INFLUENCIBLE.WELFARE
04/01/2022,2258691,380.00,Redacted Personal Data,396148,"Health, Education, Care and Safeguarding",Children's & Education Services,103,Third Party Payments,505,Other Establishments,5041,Revenue,NON INFLUENCIBLE.WELFARE
04/01/2022,2258693,52.32,Redacted Personal Data,396144,"Health, Education, Care and Safeguarding",Children's & Education Services,103,Third Party Payments,505,Other Establishments,5041,Revenue,NON INFLUENCIBLE.WELFARE
04/01/2022,2258693,60.00,Redacted Personal Data,396144,"Health, Education, Care and Safeguarding",Children's & Education Services,103,Third Party Payments,505,Other Establishments,5041,Revenue,NON INFLUENCIBLE.WELFARE
04/01/2022,2258693,141.68,Redacted Personal Data,396144,"Health, Education, Care and Safeguarding",Children's & Education Services,103,Third Party Payments,505,Other Establishments,5041,Revenue,NON INFLUENCIBLE.WELFARE
04/01/2022,2258693,380.00,Redacted Personal Data,396144,"Health, Education, Care and Safeguarding",Children's & Education Services,103,Third Party Payments,505,Other Establishments,5041,Revenue,NON INFLUENCIBLE.WELFARE
04/01/2022,2258695,75.00,Redacted Personal Data,396138,"Health, Education, Care and Safeguarding",Children's & Education Services,103,Third Party Payments,505,Other Establishments,5041,Revenue,NON INFLUENCIBLE.WELFARE
04/01/2022,2258695,550.00,Redacted Personal Data,396138,"Health, Education, Care and Safeguarding",Children's & Education Services,103,Third Party Payments,505,Other Establishments,5041,Revenue,NON INFLUENCIBLE.WELFARE
04/01/2022,2258696,75.00,Redacted Personal Data,349341,"Health, Education, Care and Safeguarding",Children's & Education Services,103,Third Party Payments,505,Other Establishments,5041,Revenue,NON INFLUENCIBLE.WELFARE
04/01/2022,2258696,550.00,Redacted Personal Data,349341,"Health, Education, Care and Safeguarding",Children's & Education Services,103,Third Party Payments,505,Other Establishments,5041,Revenue,NON INFLUENCIBLE.WELFARE
04/01/2022,2258698,380.00,Redacted Personal Data,388776,"Health, Education, Care and Safeguarding",Children's & Education Services,103,Third Party Payments,505,Other Establishments,5041,Revenue,NON INFLUENCIBLE.WELFARE
04/01/2022,2258701,380.00,Redacted Personal Data,327874,"Health, Education, Care and Safeguarding",Children's & Education Services,103,Third Party Payments,505,Other Establishments,5041,Revenue,NON INFLUENCIBLE.WELFARE
04/01/2022,2258703,52.32,Redacted Personal Data,235085,"Health, Education, Care and Safeguarding",Children's & Education Services,103,Third Party Payments,505,Other Establishments,5041,Revenue,NON INFLUENCIBLE.WELFARE
04/01/2022,2258703,60.00,Redacted Personal Data,235085,"Health, Education, Care and Safeguarding",Children's & Education Services,103,Third Party Payments,505,Other Establishments,5041,Revenue,NON INFLUENCIBLE.WELFARE
04/01/2022,2258703,141.68,Redacted Personal Data,235085,"Health, Education, Care and Safeguarding",Children's & Education Services,103,Third Party Payments,505,Other Establishments,5041,Revenue,NON INFLUENCIBLE.WELFARE
04/01/2022,2258705,380.00,Redacted Personal Data,364807,"Health, Education, Care and Safeguarding",Children's & Education Services,103,Third Party Payments,505,Other Establishments,5041,Revenue,NON INFLUENCIBLE.WELFARE
04/01/2022,2258706,380.00,Redacted Personal Data,390790,"Health, Education, Care and Safeguarding",Children's & Education Services,103,Third Party Payments,505,Other Establishments,5041,Revenue,NON INFLUENCIBLE.WELFARE
04/01/2022,2258709,600.00,Redacted Personal Data,396271,"Health, Education, Care and Safeguarding",Children's & Education Services,103,Third Party Payments,505,Other Establishments,5041,Revenue,NON INFLUENCIBLE.WELFARE
04/01/2022,2258712,412.46,Redacted Personal Data,396267,"Health, Education, Care and Safeguarding",Children's & Education Services,103,Third Party Payments,505,Other Establishments,5041,Revenue,NON INFLUENCIBLE.WELFARE
04/01/2022,2258713,380.00,Redacted Personal Data,241728,"Health, Education, Care and Safeguarding",Children's & Education Services,103,Third Party Payments,505,Other Establishments,5041,Revenue,NON INFLUENCIBLE.WELFARE
04/01/2022,2258750,550.00,Redacted Personal Data,386583,"Health, Education, Care and Safeguarding",Children's & Education Services,103,Third Party Payments,505,Other Establishments,5041,Revenue,NON INFLUENCIBLE.WELFARE
04/01/2022,2258755,50.00,Redacted Personal Data,311128,"Health, Education, Care and Safeguarding",Children's & Education Services,103,Third Party Payments,505,Voluntary Associations,5040,Revenue,NON INFLUENCIBLE.WELFARE
04/01/2022,2258755,147.84,Redacted Personal Data,311128,"Health, Education, Care and Safeguarding",Children's & Education Services,103,Third Party Payments,505,Other Establishments,5041,Revenue,NON INFLUENCIBLE.WELFARE
04/01/2022,2258755,147.84,Redacted Personal Data,311128,"Health, Education, Care and Safeguarding",Children's & Education Services,103,Third Party Payments,505,Other Establishments,5041,Revenue,NON INFLUENCIBLE.WELFARE
04/01/2022,2258755,380.00,Redacted Personal Data,311128,"Health, Education, Care and Safeguarding",Children's & Education Services,103,Third Party Payments,505,Other Establishments,5041,Revenue,NON INFLUENCIBLE.WELFARE
04/01/2022,2258759,50.00,Redacted Personal Data,361348,"Health, Education, Care and Safeguarding",Children's & Education Services,103,Third Party Payments,505,Voluntary Associations,5040,Revenue,NON INFLUENCIBLE.WELFARE
04/01/2022,2258759,60.00,Redacted Personal Data,361348,"Health, Education, Care and Safeguarding",Children's & Education Services,103,Third Party Payments,505,Other Establishments,5041,Revenue,NON INFLUENCIBLE.WELFARE
04/01/2022,2258759,184.05,Redacted Personal Data,361348,"Health, Education, Care and Safeguarding",Children's & Education Services,103,Third Party Payments,505,Other Establishments,5041,Revenue,NON INFLUENCIBLE.WELFARE
04/01/2022,2258766,14.10,Redacted Personal Data,396223,"Health, Education, Care and Safeguarding",Children's & Education Services,103,Third Party Payments,505,Other Establishments,5041,Revenue,NON INFLUENCIBLE.INDIVIDUAL
04/01/2022,2258766,56.40,Redacted Personal Data,396223,"Health, Education, Care and Safeguarding",Children's & Education Services,103,Third Party Payments,505,Other Establishments,5041,Revenue,NON INFLUENCIBLE.INDIVIDUAL
04/01/2022,2258766,84.60,Redacted Personal Data,396223,"Health, Education, Care and Safeguarding",Children's & Education Services,103,Third Party Payments,505,Other Establishments,5041,Revenue,NON INFLUENCIBLE.INDIVIDUAL
04/01/2022,2258766,108.99,Redacted Personal Data,396223,"Health, Education, Care and Safeguarding",Children's & Education Services,103,Third Party Payments,505,Other Establishments,5041,Revenue,NON INFLUENCIBLE.INDIVIDUAL
04/01/2022,2258773,380.00,Redacted Personal Data,316203,"Health, Education, Care and Safeguarding",Children's & Education Services,103,Third Party Payments,505,Other Establishments,5041,Revenue,NON INFLUENCIBLE.WELFARE
04/01/2022,2258776,75.00,Redacted Personal Data,395905,"Health, Education, Care and Safeguarding",Children's & Education Services,103,Third Party Payments,505,Other Establishments,5041,Revenue,NON INFLUENCIBLE.WELFARE
04/01/2022,2258776,380.00,Redacted Personal Data,395905,"Health, Education, Care and Safeguarding",Children's & Education Services,103,Third Party Payments,505,Other Establishments,5041,Revenue,NON INFLUENCIBLE.WELFARE
04/01/2022,2258779,52.32,Redacted Personal Data,401004,"Health, Education, Care and Safeguarding",Children's & Education Services,103,Third Party Payments,505,Other Establishments,5041,Revenue,NON INFLUENCIBLE.WELFARE
04/01/2022,2258779,60.00,Redacted Personal Data,401004,"Health, Education, Care and Safeguarding",Children's & Education Services,103,Third Party Payments,505,Other Establishments,5041,Revenue,NON INFLUENCIBLE.WELFARE
04/01/2022,2258779,141.68,Redacted Personal Data,401004,"Health, Education, Care and Safeguarding",Children's & Education Services,103,Third Party Payments,505,Other Establishments,5041,Revenue,NON INFLUENCIBLE.WELFARE
04/01/2022,2258785,380.00,Redacted Personal Data,321991,"Health, Education, Care and Safeguarding",Children's & Education Services,103,Third Party Payments,505,Other Establishments,5041,Revenue,NON INFLUENCIBLE.WELFARE
04/01/2022,2258795,380.00,Redacted Personal Data,400574,"Health, Education, Care and Safeguarding",Children's & Education Services,103,Third Party Payments,505,Other Establishments,5041,Revenue,NON INFLUENCIBLE.WELFARE
04/01/2022,2258797,380.00,Redacted Personal Data,400572,"Health, Education, Care and Safeguarding",Children's & Education Services,103,Third Party Payments,505,Other Establishments,5041,Revenue,NON INFLUENCIBLE.WELFARE
04/01/2022,2258820,52.32,Redacted Personal Data,401928,"Health, Education, Care and Safeguarding",Children's & Education Services,103,Third Party Payments,505,Other Establishments,5041,Revenue,
04/01/2022,2258820,60.00,Redacted Personal Data,401928,"Health, Education, Care and Safeguarding",Children's & Education Services,103,Third Party Payments,505,Other Establishments,5041,Revenue,
04/01/2022,2258820,141.68,Redacted Personal Data,401928,"Health, Education, Care and Safeguarding",Children's & Education Services,103,Third Party Payments,505,Other Establishments,5041,Revenue,
04/01/2022,2258832,52.32,Redacted Personal Data,396342,"Health, Education, Care and Safeguarding",Children's & Education Services,103,Third Party Payments,505,Other Establishments,5041,Revenue,NON INFLUENCIBLE.INDIVIDUAL
04/01/2022,2258832,60.00,Redacted Personal Data,396342,"Health, Education, Care and Safeguarding",Children's & Education Services,103,Third Party Payments,505,Other Establishments,5041,Revenue,NON INFLUENCIBLE.INDIVIDUAL
04/01/2022,2258832,141.68,Redacted Personal Data,396342,"Health, Education, Care and Safeguarding",Children's & Education Services,103,Third Party Payments,505,Other Establishments,5041,Revenue,NON INFLUENCIBLE.INDIVIDUAL
04/01/2022,2258853,52.32,Redacted Personal Data,401983,"Health, Education, Care and Safeguarding",Children's & Education Services,103,Third Party Payments,505,Other Establishments,5041,Revenue,NON INFLUENCIBLE.WELFARE
04/01/2022,2258853,60.00,Redacted Personal Data,401983,"Health, Education, Care and Safeguarding",Children's & Education Services,103,Third Party Payments,505,Other Establishments,5041,Revenue,NON INFLUENCIBLE.WELFARE
04/01/2022,2258853,141.68,Redacted Personal Data,401983,"Health, Education, Care and Safeguarding",Children's & Education Services,103,Third Party Payments,505,Other Establishments,5041,Revenue,NON INFLUENCIBLE.WELFARE
04/01/2022,2258854,52.32,Redacted Personal Data,238182,"Health, Education, Care and Safeguarding",Children's & Education Services,103,Third Party Payments,505,Other Establishments,5041,Revenue,NON INFLUENCIBLE.WELFARE
04/01/2022,2258854,60.00,Redacted Personal Data,238182,"Health, Education, Care and Safeguarding",Children's & Education Services,103,Third Party Payments,505,Other Establishments,5041,Revenue,NON INFLUENCIBLE.WELFARE
04/01/2022,2258854,141.68,Redacted Personal Data,238182,"Health, Education, Care and Safeguarding",Children's & Education Services,103,Third Party Payments,505,Other Establishments,5041,Revenue,NON INFLUENCIBLE.WELFARE
04/01/2022,2258865,604.80,Redacted Personal Data,401695,"Health, Education, Care and Safeguarding",Children's & Education Services,103,Third Party Payments,505,Other Establishments,5041,Revenue,NON INFLUENCIBLE.WELFARE
04/01/2022,2258892,256.98,Redacted Personal Data,385295,"Health, Education, Care and Safeguarding",Children's & Education Services,103,Third Party Payments,505,Voluntary Associations,5040,Revenue,NON INFLUENCIBLE.WELFARE
04/01/2022,2258895,365.78,Redacted Personal Data,383764,"Health, Education, Care and Safeguarding",Children's & Education Services,103,Third Party Payments,505,Other Establishments,5041,Revenue,NON INFLUENCIBLE.WELFARE
04/01/2022,2258904,267.54,Redacted Personal Data,359882,"Health, Education, Care and Safeguarding",Children's & Education Services,103,Third Party Payments,505,Other Establishments,5041,Revenue,NON INFLUENCIBLE.WELFARE
04/01/2022,2258940,13.73,Redacted Personal Data,396545,"Health, Education, Care and Safeguarding",Children's & Education Services,103,Third Party Payments,505,Other Establishments,5041,Revenue,NON INFLUENCIBLE.INDIVIDUAL
04/01/2022,2258940,29.75,Redacted Personal Data,396545,"Health, Education, Care and Safeguarding",Children's & Education Services,103,Third Party Payments,505,Other Establishments,5041,Revenue,NON INFLUENCIBLE.INDIVIDUAL
04/01/2022,2258940,238.00,Redacted Personal Data,396545,"Health, Education, Care and Safeguarding",Children's & Education Services,103,Third Party Payments,505,Other Establishments,5041,Revenue,NON INFLUENCIBLE.INDIVIDUAL
04/01/2022,2258942,380.00,Redacted Personal Data,396498,"Health, Education, Care and Safeguarding",Children's & Education Services,103,Third Party Payments,505,Other Establishments,5041,Revenue,NON INFLUENCIBLE.WELFARE
04/01/2022,2258968,75.00,Redacted Personal Data,332245,"Health, Education, Care and Safeguarding",Children's & Education Services,103,Third Party Payments,505,Other Establishments,5041,Revenue,NON INFLUENCIBLE.WELFARE
04/01/2022,2258968,380.00,Redacted Personal Data,332245,"Health, Education, Care and Safeguarding",Children's & Education Services,103,Third Party Payments,505,Other Establishments,5041,Revenue,NON INFLUENCIBLE.WELFARE
04/01/2022,2259001,380.00,Redacted Personal Data,390091,"Health, Education, Care and Safeguarding",Children's & Education Services,103,Third Party Payments,505,Other Establishments,5041,Revenue,NON INFLUENCIBLE.WELFARE
04/01/2022,2259002,52.32,Redacted Personal Data,367227,"Health, Education, Care and Safeguarding",Children's & Education Services,103,Third Party Payments,505,Other Establishments,5041,Revenue,NON INFLUENCIBLE.WELFARE
04/01/2022,2259002,60.00,Redacted Personal Data,367227,"Health, Education, Care and Safeguarding",Children's & Education Services,103,Third Party Payments,505,Other Establishments,5041,Revenue,NON INFLUENCIBLE.WELFARE
04/01/2022,2259002,141.68,Redacted Personal Data,367227,"Health, Education, Care and Safeguarding",Children's & Education Services,103,Third Party Payments,505,Other Establishments,5041,Revenue,NON INFLUENCIBLE.WELFARE
04/01/2022,2259003,52.32,Redacted Personal Data,390051,"Health, Education, Care and Safeguarding",Children's & Education Services,103,Third Party Payments,505,Other Establishments,5041,Revenue,NON INFLUENCIBLE.WELFARE
04/01/2022,2259003,60.00,Redacted Personal Data,390051,"Health, Education, Care and Safeguarding",Children's & Education Services,103,Third Party Payments,505,Other Establishments,5041,Revenue,NON INFLUENCIBLE.WELFARE
04/01/2022,2259003,141.68,Redacted Personal Data,390051,"Health, Education, Care and Safeguarding",Children's & Education Services,103,Third Party Payments,505,Other Establishments,5041,Revenue,NON INFLUENCIBLE.WELFARE
04/01/2022,2259004,50.00,Redacted Personal Data,389994,"Health, Education, Care and Safeguarding",Children's & Education Services,103,Third Party Payments,505,Voluntary Associations,5040,Revenue,NON INFLUENCIBLE.WELFARE
04/01/2022,2259004,52.32,Redacted Personal Data,389994,"Health, Education, Care and Safeguarding",Children's & Education Services,103,Third Party Payments,505,Other Establishments,5041,Revenue,NON INFLUENCIBLE.WELFARE
04/01/2022,2259004,60.00,Redacted Personal Data,389994,"Health, Education, Care and Safeguarding",Children's & Education Services,103,Third Party Payments,505,Other Establishments,5041,Revenue,NON INFLUENCIBLE.WELFARE
04/01/2022,2259004,141.68,Redacted Personal Data,389994,"Health, Education, Care and Safeguarding",Children's & Education Services,103,Third Party Payments,505,Other Establishments,5041,Revenue,NON INFLUENCIBLE.WELFARE
04/01/2022,2259005,52.32,Redacted Personal Data,356377,"Health, Education, Care and Safeguarding",Children's & Education Services,103,Third Party Payments,505,Other Establishments,5041,Revenue,NON INFLUENCIBLE.WELFARE
04/01/2022,2259005,60.00,Redacted Personal Data,356377,"Health, Education, Care and Safeguarding",Children's & Education Services,103,Third Party Payments,505,Other Establishments,5041,Revenue,NON INFLUENCIBLE.WELFARE
04/01/2022,2259005,141.68,Redacted Personal Data,356377,"Health, Education, Care and Safeguarding",Children's & Education Services,103,Third Party Payments,505,Other Establishments,5041,Revenue,NON INFLUENCIBLE.WELFARE
04/01/2022,2259006,52.32,Redacted Personal Data,388807,"Health, Education, Care and Safeguarding",Children's & Education Services,103,Third Party Payments,505,Other Establishments,5041,Revenue,NON INFLUENCIBLE.WELFARE
04/01/2022,2259006,60.00,Redacted Personal Data,388807,"Health, Education, Care and Safeguarding",Children's & Education Services,103,Third Party Payments,505,Other Establishments,5041,Revenue,NON INFLUENCIBLE.WELFARE
04/01/2022,2259006,141.68,Redacted Personal Data,388807,"Health, Education, Care and Safeguarding",Children's & Education Services,103,Third Party Payments,505,Other Establishments,5041,Revenue,NON INFLUENCIBLE.WELFARE
04/01/2022,2259008,380.00,Redacted Personal Data,388187,"Health, Education, Care and Safeguarding",Children's & Education Services,103,Third Party Payments,505,Other Establishments,5041,Revenue,NON INFLUENCIBLE.WELFARE
04/01/2022,2259010,380.00,Redacted Personal Data,353758,"Health, Education, Care and Safeguarding",Children's & Education Services,103,Third Party Payments,505,Other Establishments,5041,Revenue,NON INFLUENCIBLE.WELFARE
04/01/2022,2259012,21.60,Redacted Personal Data,386229,"Health, Education, Care and Safeguarding",Children's & Education Services,103,Supplies and Services,504,Expenses,5030,Revenue,NON INFLUENCIBLE.WELFARE
04/01/2022,2259012,42.84,Redacted Personal Data,386229,"Health, Education, Care and Safeguarding",Children's & Education Services,103,Third Party Payments,505,Other Establishments,5041,Revenue,NON INFLUENCIBLE.WELFARE
04/01/2022,2259012,75.00,Redacted Personal Data,386229,"Health, Education, Care and Safeguarding",Children's & Education Services,103,Third Party Payments,505,Other Establishments,5041,Revenue,NON INFLUENCIBLE.WELFARE
04/01/2022,2259012,380.00,Redacted Personal Data,386229,"Health, Education, Care and Safeguarding",Children's & Education Services,103,Third Party Payments,505,Other Establishments,5041,Revenue,NON INFLUENCIBLE.WELFARE
04/01/2022,2259014,75.00,Redacted Personal Data,382647,"Health, Education, Care and Safeguarding",Children's & Education Services,103,Third Party Payments,505,Other Establishments,5041,Revenue,NON INFLUENCIBLE.WELFARE
04/01/2022,2259014,380.00,Redacted Personal Data,382647,"Health, Education, Care and Safeguarding",Children's & Education Services,103,Third Party Payments,505,Other Establishments,5041,Revenue,NON INFLUENCIBLE.WELFARE
04/01/2022,2259015,75.00,Redacted Personal Data,352643,"Health, Education, Care and Safeguarding",Children's & Education Services,103,Third Party Payments,505,Other Establishments,5041,Revenue,NON INFLUENCIBLE.WELFARE
04/01/2022,2259015,380.00,Redacted Personal Data,352643,"Health, Education, Care and Safeguarding",Children's & Education Services,103,Third Party Payments,505,Other Establishments,5041,Revenue,NON INFLUENCIBLE.WELFARE
04/01/2022,2259016,380.00,Redacted Personal Data,351297,"Health, Education, Care and Safeguarding",Children's & Education Services,103,Third Party Payments,505,Other Establishments,5041,Revenue,NON INFLUENCIBLE.WELFARE
04/01/2022,2259017,380.00,Redacted Personal Data,341520,"Health, Education, Care and Safeguarding",Children's & Education Services,103,Third Party Payments,505,Other Establishments,5041,Revenue,NON INFLUENCIBLE.WELFARE
04/01/2022,2259020,380.00,Redacted Personal Data,334888,"Health, Education, Care and Safeguarding",Children's & Education Services,103,Third Party Payments,505,Other Establishments,5041,Revenue,NON INFLUENCIBLE.WELFARE
04/01/2022,2259022,365.88,Redacted Personal Data,326027,"Health, Education, Care and Safeguarding",Children's & Education Services,103,Third Party Payments,505,Other Establishments,5041,Revenue,NON INFLUENCIBLE.WELFARE
04/01/2022,2259024,75.00,Redacted Personal Data,316657,"Health, Education, Care and Safeguarding",Children's & Education Services,103,Third Party Payments,505,Other Establishments,5041,Revenue,NON INFLUENCIBLE.WELFARE
04/01/2022,2259024,380.00,Redacted Personal Data,316657,"Health, Education, Care and Safeguarding",Children's & Education Services,103,Third Party Payments,505,Other Establishments,5041,Revenue,NON INFLUENCIBLE.WELFARE
04/01/2022,2259025,52.32,Redacted Personal Data,250761,"Health, Education, Care and Safeguarding",Children's & Education Services,103,Third Party Payments,505,Other Establishments,5041,Revenue,NON INFLUENCIBLE.WELFARE
04/01/2022,2259025,60.00,Redacted Personal Data,250761,"Health, Education, Care and Safeguarding",Children's & Education Services,103,Third Party Payments,505,Other Establishments,5041,Revenue,NON INFLUENCIBLE.WELFARE
04/01/2022,2259025,141.68,Redacted Personal Data,250761,"Health, Education, Care and Safeguarding",Children's & Education Services,103,Third Party Payments,505,Other Establishments,5041,Revenue,NON INFLUENCIBLE.WELFARE
04/01/2022,2259027,11.98,Redacted Personal Data,238241,"Health, Education, Care and Safeguarding",Children's & Education Services,103,Third Party Payments,505,Other Establishments,5041,Revenue,NON INFLUENCIBLE.WELFARE
04/01/2022,2259027,380.00,Redacted Personal Data,238241,"Health, Education, Care and Safeguarding",Children's & Education Services,103,Third Party Payments,505,Other Establishments,5041,Revenue,NON INFLUENCIBLE.WELFARE
04/01/2022,2259028,52.32,Redacted Personal Data,029497,"Health, Education, Care and Safeguarding",Children's & Education Services,103,Third Party Payments,505,Other Establishments,5041,Revenue,NON INFLUENCIBLE.WELFARE
04/01/2022,2259028,52.32,Redacted Personal Data,029497,"Health, Education, Care and Safeguarding",Children's & Education Services,103,Third Party Payments,505,Other Establishments,5041,Revenue,NON INFLUENCIBLE.WELFARE
04/01/2022,2259028,60.00,Redacted Personal Data,029497,"Health, Education, Care and Safeguarding",Children's & Education Services,103,Third Party Payments,505,Other Establishments,5041,Revenue,NON INFLUENCIBLE.WELFARE
04/01/2022,2259028,60.00,Redacted Personal Data,029497,"Health, Education, Care and Safeguarding",Children's & Education Services,103,Third Party Payments,505,Other Establishments,5041,Revenue,NON INFLUENCIBLE.WELFARE
04/01/2022,2259028,141.68,Redacted Personal Data,029497,"Health, Education, Care and Safeguarding",Children's & Education Services,103,Third Party Payments,505,Other Establishments,5041,Revenue,NON INFLUENCIBLE.WELFARE
04/01/2022,2259028,141.68,Redacted Personal Data,029497,"Health, Education, Care and Safeguarding",Children's & Education Services,103,Third Party Payments,505,Other Establishments,5041,Revenue,NON INFLUENCIBLE.WELFARE
04/01/2022,2259028,380.00,Redacted Personal Data,029497,"Health, Education, Care and Safeguarding",Children's & Education Services,103,Third Party Payments,505,Other Establishments,5041,Revenue,NON INFLUENCIBLE.WELFARE
04/01/2022,2259029,147.84,Redacted Personal Data,395192,"Health, Education, Care and Safeguarding",Children's & Education Services,103,Third Party Payments,505,Other Establishments,5041,Revenue,NON INFLUENCIBLE.WELFARE
04/01/2022,2259029,147.84,Redacted Personal Data,395192,"Health, Education, Care and Safeguarding",Children's & Education Services,103,Third Party Payments,505,Other Establishments,5041,Revenue,NON INFLUENCIBLE.WELFARE
04/01/2022,2259031,52.32,Redacted Personal Data,394984,"Health, Education, Care and Safeguarding",Children's & Education Services,103,Third Party Payments,505,Other Establishments,5041,Revenue,NON INFLUENCIBLE.WELFARE
04/01/2022,2259031,60.00,Redacted Personal Data,394984,"Health, Education, Care and Safeguarding",Children's & Education Services,103,Third Party Payments,505,Other Establishments,5041,Revenue,NON INFLUENCIBLE.WELFARE
04/01/2022,2259031,141.68,Redacted Personal Data,394984,"Health, Education, Care and Safeguarding",Children's & Education Services,103,Third Party Payments,505,Other Establishments,5041,Revenue,NON INFLUENCIBLE.WELFARE
04/01/2022,2259033,52.32,Redacted Personal Data,393606,"Health, Education, Care and Safeguarding",Children's & Education Services,103,Third Party Payments,505,Other Establishments,5041,Revenue,NON INFLUENCIBLE.WELFARE
04/01/2022,2259033,60.00,Redacted Personal Data,393606,"Health, Education, Care and Safeguarding",Children's & Education Services,103,Third Party Payments,505,Other Establishments,5041,Revenue,NON INFLUENCIBLE.WELFARE
04/01/2022,2259033,141.68,Redacted Personal Data,393606,"Health, Education, Care and Safeguarding",Children's & Education Services,103,Third Party Payments,505,Other Establishments,5041,Revenue,NON INFLUENCIBLE.WELFARE
04/01/2022,2259034,380.00,Redacted Personal Data,393531,"Health, Education, Care and Safeguarding",Children's & Education Services,103,Third Party Payments,505,Other Establishments,5041,Revenue,NON INFLUENCIBLE.WELFARE
04/01/2022,2259035,75.00,Redacted Personal Data,393262,"Health, Education, Care and Safeguarding",Children's & Education Services,103,Third Party Payments,505,Other Establishments,5041,Revenue,NON INFLUENCIBLE.WELFARE
04/01/2022,2259035,75.00,Redacted Personal Data,393262,"Health, Education, Care and Safeguarding",Children's & Education Services,103,Third Party Payments,505,Other Establishments,5041,Revenue,NON INFLUENCIBLE.WELFARE
04/01/2022,2259035,150.00,Redacted Personal Data,393262,"Health, Education, Care and Safeguarding",Children's & Education Services,103,Third Party Payments,505,Other Establishments,5041,Revenue,NON INFLUENCIBLE.WELFARE
04/01/2022,2259036,21.43,Redacted Personal Data,393082,"Health, Education, Care and Safeguarding",Children's & Education Services,103,Third Party Payments,505,Other Establishments,5041,Revenue,NON INFLUENCIBLE.WELFARE
04/01/2022,2259036,380.00,Redacted Personal Data,393082,"Health, Education, Care and Safeguarding",Children's & Education Services,103,Third Party Payments,505,Other Establishments,5041,Revenue,NON INFLUENCIBLE.WELFARE
04/01/2022,2259039,380.00,Redacted Personal Data,394333,"Health, Education, Care and Safeguarding",Children's & Education Services,103,Third Party Payments,505,Other Establishments,5041,Revenue,NON INFLUENCIBLE.WELFARE
04/01/2022,2259040,52.32,Redacted Personal Data,394228,"Health, Education, Care and Safeguarding",Children's & Education Services,103,Third Party Payments,505,Other Establishments,5041,Revenue,NON INFLUENCIBLE.WELFARE
04/01/2022,2259040,60.00,Redacted Personal Data,394228,"Health, Education, Care and Safeguarding",Children's & Education Services,103,Third Party Payments,505,Other Establishments,5041,Revenue,NON INFLUENCIBLE.WELFARE
04/01/2022,2259040,141.68,Redacted Personal Data,394228,"Health, Education, Care and Safeguarding",Children's & Education Services,103,Third Party Payments,505,Other Establishments,5041,Revenue,NON INFLUENCIBLE.WELFARE
04/01/2022,2259045,550.00,Redacted Personal Data,393668,"Health, Education, Care and Safeguarding",Children's & Education Services,103,Third Party Payments,505,Other Establishments,5041,Revenue,NON INFLUENCIBLE.WELFARE
04/01/2022,2259046,52.32,Redacted Personal Data,393637,"Health, Education, Care and Safeguarding",Children's & Education Services,103,Third Party Payments,505,Other Establishments,5041,Revenue,NON INFLUENCIBLE.WELFARE
04/01/2022,2259046,60.00,Redacted Personal Data,393637,"Health, Education, Care and Safeguarding",Children's & Education Services,103,Third Party Payments,505,Other Establishments,5041,Revenue,NON INFLUENCIBLE.WELFARE
04/01/2022,2259046,141.68,Redacted Personal Data,393637,"Health, Education, Care and Safeguarding",Children's & Education Services,103,Third Party Payments,505,Other Establishments,5041,Revenue,NON INFLUENCIBLE.WELFARE
04/01/2022,2259048,380.00,Redacted Personal Data,392766,"Health, Education, Care and Safeguarding",Children's & Education Services,103,Third Party Payments,505,Other Establishments,5041,Revenue,NON INFLUENCIBLE.WELFARE
04/01/2022,2259051,52.32,Redacted Personal Data,392745,"Health, Education, Care and Safeguarding",Children's & Education Services,103,Third Party Payments,505,Other Establishments,5041,Revenue,NON INFLUENCIBLE.WELFARE
04/01/2022,2259051,60.00,Redacted Personal Data,392745,"Health, Education, Care and Safeguarding",Children's & Education Services,103,Third Party Payments,505,Other Establishments,5041,Revenue,NON INFLUENCIBLE.WELFARE
04/01/2022,2259051,141.68,Redacted Personal Data,392745,"Health, Education, Care and Safeguarding",Children's & Education Services,103,Third Party Payments,505,Other Establishments,5041,Revenue,NON INFLUENCIBLE.WELFARE
04/01/2022,2259053,380.00,Redacted Personal Data,391284,"Health, Education, Care and Safeguarding",Children's & Education Services,103,Third Party Payments,505,Other Establishments,5041,Revenue,NON INFLUENCIBLE.WELFARE
04/01/2022,2259054,550.00,Redacted Personal Data,369309,"Health, Education, Care and Safeguarding",Children's & Education Services,103,Third Party Payments,505,Other Establishments,5041,Revenue,NON INFLUENCIBLE.WELFARE
04/01/2022,2259055,52.32,Redacted Personal Data,391112,"Health, Education, Care and Safeguarding",Children's & Education Services,103,Third Party Payments,505,Other Establishments,5041,Revenue,NON INFLUENCIBLE.WELFARE
04/01/2022,2259055,60.00,Redacted Personal Data,391112,"Health, Education, Care and Safeguarding",Children's & Education Services,103,Third Party Payments,505,Other Establishments,5041,Revenue,NON INFLUENCIBLE.WELFARE
04/01/2022,2259055,141.68,Redacted Personal Data,391112,"Health, Education, Care and Safeguarding",Children's & Education Services,103,Third Party Payments,505,Other Establishments,5041,Revenue,NON INFLUENCIBLE.WELFARE
04/01/2022,2259057,500.00,GENERAL BACS PAYMENTS - BSS ONLY,381148,Capital,Children's & Education Services,103,Supplies and Services,504,Grants and Subscriptions,5031,Capital,NON INFLUENCIBLE.NON INFLUENCIBLE
04/01/2022,2259060,604.80,Redacted Personal Data,375956,"Health, Education, Care and Safeguarding",Children's & Education Services,103,Third Party Payments,505,Private Contractors,5042,Revenue,NON INFLUENCIBLE.INDIVIDUAL
04/01/2022,2259061,3628.80,Redacted Personal Data,363621,"Health, Education, Care and Safeguarding",Children's & Education Services,103,Third Party Payments,505,Private Contractors,5042,Revenue,NON INFLUENCIBLE.INDIVIDUAL
04/01/2022,2259062,360.00,Redacted Personal Data,398148,"Health, Education, Care and Safeguarding",Children's & Education Services,103,Third Party Payments,505,Private Contractors,5042,Revenue,SOCIAL CARE.CHILDREN'S CENTRES
04/01/2022,2259062,480.00,Redacted Personal Data,398148,"Health, Education, Care and Safeguarding",Children's & Education Services,103,Third Party Payments,505,Private Contractors,5042,Revenue,SOCIAL CARE.CHILDREN'S CENTRES
04/01/2022,2259062,480.00,Redacted Personal Data,398148,"Health, Education, Care and Safeguarding",Children's & Education Services,103,Third Party Payments,505,Private Contractors,5042,Revenue,SOCIAL CARE.CHILDREN'S CENTRES
04/01/2022,2259062,594.00,Redacted Personal Data,398148,"Health, Education, Care and Safeguarding",Children's & Education Services,103,Third Party Payments,505,Private Contractors,5042,Revenue,SOCIAL CARE.CHILDREN'S CENTRES
04/01/2022,2259062,756.50,Redacted Personal Data,398148,"Health, Education, Care and Safeguarding",Children's & Education Services,103,Third Party Payments,505,Private Contractors,5042,Revenue,SOCIAL CARE.CHILDREN'S CENTRES
04/01/2022,2259062,775.00,Redacted Personal Data,398148,"Health, Education, Care and Safeguarding",Children's & Education Services,103,Third Party Payments,505,Private Contractors,5042,Revenue,SOCIAL CARE.CHILDREN'S CENTRES
04/01/2022,2259065,1000.00,NORTH TYNESIDE FOSTERING NETWORK,309996,"Health, Education, Care and Safeguarding",Children's & Education Services,103,Supplies and Services,504,Miscellaneous Expenses,5034,Revenue,NON INFLUENCIBLE.GRANTS
04/01/2022,2259066,218.48,DE POEL MANAGED SERVICES LIMITED,391542,"Health, Education, Care and Safeguarding",Adult Social Care,101,Employees,501,Direct Employee Expenses,5001,Revenue,HUMAN RESOURCES.TEMPORARY & AGENCY STAFF
04/01/2022,2259066,250.65,DE POEL MANAGED SERVICES LIMITED,391542,"Environment, Housing & Leisure",Environmental & Regulatory Services,105,Employees,501,Direct Employee Expenses,5001,Revenue,HUMAN RESOURCES.TEMPORARY & AGENCY STAFF
04/01/2022,2259066,250.65,DE POEL MANAGED SERVICES LIMITED,391542,"Environment, Housing & Leisure",Environmental & Regulatory Services,105,Employees,501,Direct Employee Expenses,5001,Revenue,HUMAN RESOURCES.TEMPORARY & AGENCY STAFF
04/01/2022,2259066,250.65,DE POEL MANAGED SERVICES LIMITED,391542,"Environment, Housing & Leisure",Environmental & Regulatory Services,105,Employees,501,Direct Employee Expenses,5001,Revenue,HUMAN RESOURCES.TEMPORARY & AGENCY STAFF
04/01/2022,2259066,292.75,DE POEL MANAGED SERVICES LIMITED,391542,Housing Operations,Housing Revenue Account,N/A,Employees,501,Direct Employee Expenses,5001,Revenue,HUMAN RESOURCES.TEMPORARY & AGENCY STAFF
04/01/2022,2259066,332.67,DE POEL MANAGED SERVICES LIMITED,391542,Housing Operations,Housing Revenue Account,N/A,Employees,501,Direct Employee Expenses,5001,Revenue,HUMAN RESOURCES.TEMPORARY & AGENCY STAFF
04/01/2022,2259066,332.67,DE POEL MANAGED SERVICES LIMITED,391542,Housing Operations,Housing Revenue Account,N/A,Employees,501,Direct Employee Expenses,5001,Revenue,HUMAN RESOURCES.TEMPORARY & AGENCY STAFF
04/01/2022,2259066,332.67,DE POEL MANAGED SERVICES LIMITED,391542,Housing Operations,Housing Revenue Account,N/A,Employees,501,Direct Employee Expenses,5001,Revenue,HUMAN RESOURCES.TEMPORARY & AGENCY STAFF
04/01/2022,2259066,332.67,DE POEL MANAGED SERVICES LIMITED,391542,Housing Operations,Housing Revenue Account,N/A,Employees,501,Direct Employee Expenses,5001,Revenue,HUMAN RESOURCES.TEMPORARY & AGENCY STAFF
04/01/2022,2259066,332.67,DE POEL MANAGED SERVICES LIMITED,391542,Housing Operations,Housing Revenue Account,N/A,Employees,501,Direct Employee Expenses,5001,Revenue,HUMAN RESOURCES.TEMPORARY & AGENCY STAFF
04/01/2022,2259066,332.67,DE POEL MANAGED SERVICES LIMITED,391542,Housing Operations,Housing Revenue Account,N/A,Employees,501,Direct Employee Expenses,5001,Revenue,HUMAN RESOURCES.TEMPORARY & AGENCY STAFF
04/01/2022,2259066,347.77,DE POEL MANAGED SERVICES LIMITED,391542,"Environment, Housing & Leisure",Cultural & Related Services,104,Employees,501,Direct Employee Expenses,5001,Revenue,HUMAN RESOURCES.TEMPORARY & AGENCY STAFF
04/01/2022,2259066,396.00,DE POEL MANAGED SERVICES LIMITED,391542,Housing Property and Construction,Housing Services,108,Employees,501,Direct Employee Expenses,5001,Revenue,HUMAN RESOURCES.TEMPORARY & AGENCY STAFF
04/01/2022,2259066,399.20,DE POEL MANAGED SERVICES LIMITED,391542,Housing Operations,Housing Revenue Account,N/A,Employees,501,Direct Employee Expenses,5001,Revenue,HUMAN RESOURCES.TEMPORARY & AGENCY STAFF
04/01/2022,2259066,399.20,DE POEL MANAGED SERVICES LIMITED,391542,Housing Operations,Housing Revenue Account,N/A,Employees,501,Direct Employee Expenses,5001,Revenue,HUMAN RESOURCES.TEMPORARY & AGENCY STAFF
04/01/2022,2259066,401.03,DE POEL MANAGED SERVICES LIMITED,391542,"Environment, Housing & Leisure",Cultural & Related Services,104,Employees,501,Direct Employee Expenses,5001,Revenue,HUMAN RESOURCES.TEMPORARY & AGENCY STAFF
04/01/2022,2259066,416.92,DE POEL MANAGED SERVICES LIMITED,391542,"Health, Education, Care and Safeguarding",Adult Social Care,101,Employees,501,Direct Employee Expenses,5001,Revenue,HUMAN RESOURCES.TEMPORARY & AGENCY STAFF
04/01/2022,2259066,438.63,DE POEL MANAGED SERVICES LIMITED,391542,"Environment, Housing & Leisure",Environmental & Regulatory Services,105,Employees,501,Direct Employee Expenses,5001,Revenue,HUMAN RESOURCES.TEMPORARY & AGENCY STAFF
04/01/2022,2259066,438.63,DE POEL MANAGED SERVICES LIMITED,391542,"Environment, Housing & Leisure",Environmental & Regulatory Services,105,Employees,501,Direct Employee Expenses,5001,Revenue,HUMAN RESOURCES.TEMPORARY & AGENCY STAFF
04/01/2022,2259066,438.63,DE POEL MANAGED SERVICES LIMITED,391542,"Environment, Housing & Leisure",Environmental & Regulatory Services,105,Employees,501,Direct Employee Expenses,5001,Revenue,HUMAN RESOURCES.TEMPORARY & AGENCY STAFF
04/01/2022,2259066,439.12,DE POEL MANAGED SERVICES LIMITED,391542,Housing Operations,Housing Revenue Account,N/A,Employees,501,Direct Employee Expenses,5001,Revenue,HUMAN RESOURCES.TEMPORARY & AGENCY STAFF
04/01/2022,2259066,439.12,DE POEL MANAGED SERVICES LIMITED,391542,Housing Operations,Housing Revenue Account,N/A,Employees,501,Direct Employee Expenses,5001,Revenue,HUMAN RESOURCES.TEMPORARY & AGENCY STAFF
04/01/2022,2259066,439.12,DE POEL MANAGED SERVICES LIMITED,391542,Housing Operations,Housing Revenue Account,N/A,Employees,501,Direct Employee Expenses,5001,Revenue,HUMAN RESOURCES.TEMPORARY & AGENCY STAFF
04/01/2022,2259066,458.02,DE POEL MANAGED SERVICES LIMITED,391542,"Environment, Housing & Leisure",Cultural & Related Services,104,Employees,501,Direct Employee Expenses,5001,Revenue,HUMAN RESOURCES.TEMPORARY & AGENCY STAFF
04/01/2022,2259066,458.02,DE POEL MANAGED SERVICES LIMITED,391542,"Environment, Housing & Leisure",Cultural & Related Services,104,Employees,501,Direct Employee Expenses,5001,Revenue,HUMAN RESOURCES.TEMPORARY & AGENCY STAFF
04/01/2022,2259066,458.02,DE POEL MANAGED SERVICES LIMITED,391542,"Environment, Housing & Leisure",Cultural & Related Services,104,Employees,501,Direct Employee Expenses,5001,Revenue,HUMAN RESOURCES.TEMPORARY & AGENCY STAFF
04/01/2022,2259066,463.70,DE POEL MANAGED SERVICES LIMITED,391542,"Environment, Housing & Leisure",Cultural & Related Services,104,Employees,501,Direct Employee Expenses,5001,Revenue,HUMAN RESOURCES.TEMPORARY & AGENCY STAFF
04/01/2022,2259066,463.70,DE POEL MANAGED SERVICES LIMITED,391542,"Environment, Housing & Leisure",Cultural & Related Services,104,Employees,501,Direct Employee Expenses,5001,Revenue,HUMAN RESOURCES.TEMPORARY & AGENCY STAFF
04/01/2022,2259066,507.85,DE POEL MANAGED SERVICES LIMITED,391542,"Health, Education, Care and Safeguarding",Adult Social Care,101,Employees,501,Direct Employee Expenses,5001,Revenue,HUMAN RESOURCES.TEMPORARY & AGENCY STAFF
04/01/2022,2259066,538.29,DE POEL MANAGED SERVICES LIMITED,391542,Housing Property and Construction,Housing Services,108,Employees,501,Direct Employee Expenses,5001,Revenue,HUMAN RESOURCES.TEMPORARY & AGENCY STAFF
04/01/2022,2259066,549.00,DE POEL MANAGED SERVICES LIMITED,391542,Housing Property and Construction,Housing Services,108,Employees,501,Direct Employee Expenses,5001,Revenue,HUMAN RESOURCES.TEMPORARY & AGENCY STAFF
04/01/2022,2259066,604.89,DE POEL MANAGED SERVICES LIMITED,391542,Housing Property and Construction,Housing Services,108,Employees,501,Direct Employee Expenses,5001,Revenue,HUMAN RESOURCES.TEMPORARY & AGENCY STAFF
04/01/2022,2259066,611.63,DE POEL MANAGED SERVICES LIMITED,391542,Housing Property and Construction,Housing Services,108,Employees,501,Direct Employee Expenses,5001,Revenue,HUMAN RESOURCES.TEMPORARY & AGENCY STAFF
04/01/2022,2259066,677.59,DE POEL MANAGED SERVICES LIMITED,391542,Law & Governance,Central Services,102,Employees,501,Direct Employee Expenses,5001,Revenue,HUMAN RESOURCES.TEMPORARY & AGENCY STAFF
04/01/2022,2259066,739.01,DE POEL MANAGED SERVICES LIMITED,391542,"Health, Education, Care and Safeguarding",Children's & Education Services,103,Employees,501,Direct Employee Expenses,5001,Revenue,HUMAN RESOURCES.TEMPORARY & AGENCY STAFF
04/01/2022,2259066,767.59,DE POEL MANAGED SERVICES LIMITED,391542,Housing Property and Construction,Housing Services,108,Employees,501,Direct Employee Expenses,5001,Revenue,HUMAN RESOURCES.TEMPORARY & AGENCY STAFF
04/01/2022,2259066,813.54,DE POEL MANAGED SERVICES LIMITED,391542,"Health, Education, Care and Safeguarding",Adult Social Care,101,Employees,501,Direct Employee Expenses,5001,Revenue,HUMAN RESOURCES.TEMPORARY & AGENCY STAFF
04/01/2022,2259066,878.19,DE POEL MANAGED SERVICES LIMITED,391542,Law & Governance,Central Services,102,Employees,501,Direct Employee Expenses,5001,Revenue,HUMAN RESOURCES.TEMPORARY & AGENCY STAFF
04/01/2022,2259066,962.30,DE POEL MANAGED SERVICES LIMITED,391542,Resources,Central Services,102,Employees,501,Direct Employee Expenses,5001,Revenue,HUMAN RESOURCES.TEMPORARY & AGENCY STAFF
04/01/2022,2259066,991.89,DE POEL MANAGED SERVICES LIMITED,391542,Law & Governance,Central Services,102,Employees,501,Direct Employee Expenses,5001,Revenue,HUMAN RESOURCES.TEMPORARY & AGENCY STAFF
04/01/2022,2259066,1175.23,DE POEL MANAGED SERVICES LIMITED,391542,Law & Governance,Central Services,102,Employees,501,Direct Employee Expenses,5001,Revenue,HUMAN RESOURCES.TEMPORARY & AGENCY STAFF
04/01/2022,2259066,1411.51,DE POEL MANAGED SERVICES LIMITED,391542,Law & Governance,Central Services,102,Employees,501,Direct Employee Expenses,5001,Revenue,HUMAN RESOURCES.TEMPORARY & AGENCY STAFF
04/01/2022,2259066,1607.13,DE POEL MANAGED SERVICES LIMITED,391542,Law & Governance,Central Services,102,Employees,501,Direct Employee Expenses,5001,Revenue,HUMAN RESOURCES.TEMPORARY & AGENCY STAFF
04/01/2022,2259066,1611.57,DE POEL MANAGED SERVICES LIMITED,391542,Law & Governance,Central Services,102,Employees,501,Direct Employee Expenses,5001,Revenue,HUMAN RESOURCES.TEMPORARY & AGENCY STAFF
04/01/2022,2259066,1638.21,DE POEL MANAGED SERVICES LIMITED,391542,Law & Governance,Central Services,102,Employees,501,Direct Employee Expenses,5001,Revenue,HUMAN RESOURCES.TEMPORARY & AGENCY STAFF
04/01/2022,2259066,1934.08,DE POEL MANAGED SERVICES LIMITED,391542,Law & Governance,Central Services,102,Employees,501,Direct Employee Expenses,5001,Revenue,HUMAN RESOURCES.TEMPORARY & AGENCY STAFF
04/01/2022,2259066,2505.56,DE POEL MANAGED SERVICES LIMITED,391542,Law & Governance,Central Services,102,Employees,501,Direct Employee Expenses,5001,Revenue,HUMAN RESOURCES.TEMPORARY & AGENCY STAFF
04/01/2022,2259067,3054.68,Redacted Personal Data,391703,Commissioning & Asset Management,Children's & Education Services,103,Third Party Payments,505,Private Contractors,5042,Revenue,PUBLIC TRANSPORT.TAXI SERVICES
04/01/2022,2259068,500.00,Redacted Personal Data,399669,Central Items,Planning Services,110,Capital,Capital,Capital,Capital,Revenue,NON INFLUENCIBLE.GRANTS
04/01/2022,2259069,500.00,Redacted Personal Data,399669,Central Items,Planning Services,110,Capital,Capital,Capital,Capital,Revenue,NON INFLUENCIBLE.GRANTS
04/01/2022,2259070,500.00,Redacted Personal Data,399669,Central Items,Planning Services,110,Capital,Capital,Capital,Capital,Revenue,NON INFLUENCIBLE.GRANTS
04/01/2022,2259071,500.00,Redacted Personal Data,399669,Central Items,Planning Services,110,Capital,Capital,Capital,Capital,Revenue,NON INFLUENCIBLE.GRANTS
04/01/2022,2259072,500.00,Redacted Personal Data,399669,Central Items,Planning Services,110,Capital,Capital,Capital,Capital,Revenue,NON INFLUENCIBLE.GRANTS
04/01/2022,2259073,500.00,Redacted Personal Data,399669,Central Items,Planning Services,110,Capital,Capital,Capital,Capital,Revenue,NON INFLUENCIBLE.GRANTS
04/01/2022,2259074,500.00,Redacted Personal Data,399669,Central Items,Planning Services,110,Capital,Capital,Capital,Capital,Revenue,NON INFLUENCIBLE.GRANTS
04/01/2022,2259075,500.00,Redacted Personal Data,399669,Central Items,Planning Services,110,Capital,Capital,Capital,Capital,Revenue,NON INFLUENCIBLE.GRANTS
04/01/2022,2259076,2298.24,Redacted Personal Data,396483,"Health, Education, Care and Safeguarding",Children's & Education Services,103,Third Party Payments,505,Private Contractors,5042,Revenue,NON INFLUENCIBLE.INDIVIDUAL
04/01/2022,2259077,1774.08,Redacted Personal Data,396265,"Health, Education, Care and Safeguarding",Children's & Education Services,103,Third Party Payments,505,Private Contractors,5042,Revenue,NON INFLUENCIBLE.INDIVIDUAL
04/01/2022,2259078,1128.96,Redacted Personal Data,396026,"Health, Education, Care and Safeguarding",Children's & Education Services,103,Third Party Payments,505,Private Contractors,5042,Revenue,NON INFLUENCIBLE.GRANTS
04/01/2022,2259079,24429.60,THE FAMILY TREE CHILDRENS DAY NURSERY,395861,"Health, Education, Care and Safeguarding",Children's & Education Services,103,Third Party Payments,505,Private Contractors,5042,Revenue,SOCIAL CARE.CHILDCARE SERVICES
04/01/2022,2259080,9396.00,TYNEMOUTH NURSERY @ NTC,392526,"Health, Education, Care and Safeguarding",Children's & Education Services,103,Third Party Payments,505,Private Contractors,5042,Revenue,SOCIAL CARE.CHILDCARE SERVICES
04/01/2022,2259081,14011.20,ZONE 4 KIDS AT WHITLEY LODGE,391817,"Health, Education, Care and Safeguarding",Children's & Education Services,103,Third Party Payments,505,Private Contractors,5042,Revenue,SOCIAL CARE.CHILDCARE SERVICES
04/01/2022,2259082,1431.36,CULLERCOATS METHODIST CHURCH PLAYGROUP,322788,"Health, Education, Care and Safeguarding",Children's & Education Services,103,Third Party Payments,505,Private Contractors,5042,Revenue,SOCIAL CARE.CHILDCARE SERVICES
04/01/2022,2259083,927.36,Redacted Personal Data,324828,"Health, Education, Care and Safeguarding",Children's & Education Services,103,Third Party Payments,505,Private Contractors,5042,Revenue,NON INFLUENCIBLE.NON INFLUENCIBLE
04/01/2022,2259084,5443.20,Redacted Personal Data,346925,"Health, Education, Care and Safeguarding",Children's & Education Services,103,Third Party Payments,505,Private Contractors,5042,Revenue,NON INFLUENCIBLE.INDIVIDUAL
04/01/2022,2259087,-96.00,CAPITAL UK ELECTRICS LTD,397847,Central Items,Holding A/C,N/A,Supplies and Services,504,Miscellaneous Expenses,5034,Revenue,REPAIRS & MAINTENANCE.REPAIRS & MAINTENANCE
04/01/2022,2259087,-63.00,CAPITAL UK ELECTRICS LTD,397847,Central Items,Holding A/C,N/A,Supplies and Services,504,Miscellaneous Expenses,5034,Revenue,REPAIRS & MAINTENANCE.REPAIRS & MAINTENANCE
04/01/2022,2259087,456.56,CAPITAL UK ELECTRICS LTD,397847,Housing Property and Construction,Housing Services,108,Capital,Capital,Capital,Capital,Revenue,REPAIRS & MAINTENANCE.REPAIRS & MAINTENANCE
04/01/2022,2259087,963.00,CAPITAL UK ELECTRICS LTD,397847,Housing Property and Construction,Housing Services,108,Capital,Capital,Capital,Capital,Revenue,REPAIRS & MAINTENANCE.REPAIRS & MAINTENANCE
04/01/2022,2259091,2.40,ASKEWS & HOLTS LIBRARY SERVICE LTD,313909,"Environment, Housing & Leisure",Cultural & Related Services,104,Supplies and Services,504,Equipment,5023,Revenue,SUBSCRIPTIONS & PUBLICATIONS.BOOKS & PUBLICATIONS
04/01/2022,2259091,11.70,ASKEWS & HOLTS LIBRARY SERVICE LTD,313909,"Environment, Housing & Leisure",Cultural & Related Services,104,Supplies and Services,504,Equipment,5023,Revenue,SUBSCRIPTIONS & PUBLICATIONS.BOOKS & PUBLICATIONS
04/01/2022,2259091,23.40,ASKEWS & HOLTS LIBRARY SERVICE LTD,313909,"Environment, Housing & Leisure",Cultural & Related Services,104,Supplies and Services,504,Equipment,5023,Revenue,SUBSCRIPTIONS & PUBLICATIONS.BOOKS & PUBLICATIONS
04/01/2022,2259091,28.48,ASKEWS & HOLTS LIBRARY SERVICE LTD,313909,"Environment, Housing & Leisure",Cultural & Related Services,104,Supplies and Services,504,Equipment,5023,Revenue,SUBSCRIPTIONS & PUBLICATIONS.BOOKS & PUBLICATIONS
04/01/2022,2259091,240.99,ASKEWS & HOLTS LIBRARY SERVICE LTD,313909,"Environment, Housing & Leisure",Cultural & Related Services,104,Supplies and Services,504,Equipment,5023,Revenue,SUBSCRIPTIONS & PUBLICATIONS.BOOKS & PUBLICATIONS
04/01/2022,2259091,435.39,ASKEWS & HOLTS LIBRARY SERVICE LTD,313909,"Environment, Housing & Leisure",Cultural & Related Services,104,Supplies and Services,504,Equipment,5023,Revenue,SUBSCRIPTIONS & PUBLICATIONS.BOOKS & PUBLICATIONS
04/01/2022,2259093,1260.75,G HARRISONS T/A GMA MOTORS,343303,"Environment, Housing & Leisure",Unallocated,N/A,Transport,503,Direct Transport Costs,5016,Revenue,VEHICLE MANAGEMENT.PARTS
04/01/2022,2259095,500.00,Redacted Personal Data,399669,Central Items,Planning Services,110,Capital,Capital,Capital,Capital,Revenue,NON INFLUENCIBLE.GRANTS
04/01/2022,2259096,500.00,Redacted Personal Data,399669,Central Items,Planning Services,110,Capital,Capital,Capital,Capital,Revenue,NON INFLUENCIBLE.GRANTS
04/01/2022,2259097,500.00,Redacted Personal Data,399669,Central Items,Planning Services,110,Capital,Capital,Capital,Capital,Revenue,NON INFLUENCIBLE.GRANTS
04/01/2022,2259098,500.00,Redacted Personal Data,399669,Central Items,Planning Services,110,Capital,Capital,Capital,Capital,Revenue,NON INFLUENCIBLE.GRANTS
04/01/2022,2259099,500.00,Redacted Personal Data,399669,Central Items,Planning Services,110,Capital,Capital,Capital,Capital,Revenue,NON INFLUENCIBLE.GRANTS
04/01/2022,2259100,500.00,Redacted Personal Data,399669,Central Items,Planning Services,110,Capital,Capital,Capital,Capital,Revenue,NON INFLUENCIBLE.GRANTS
04/01/2022,2259101,4903.20,LITTLE ANGELS AMBERLEY,395289,"Health, Education, Care and Safeguarding",Children's & Education Services,103,Third Party Payments,505,Private Contractors,5042,Revenue,NON INFLUENCIBLE.GRANTS
04/01/2022,2259102,16452.96,YMCA NORTH TYNESIDE,356069,"Health, Education, Care and Safeguarding",Children's & Education Services,103,Third Party Payments,505,Private Contractors,5042,Revenue,SOCIAL CARE.CARE SERVICES
04/01/2022,2259103,8467.20,SCHOOLS OUT (NORTHERN) LTD,350887,"Health, Education, Care and Safeguarding",Children's & Education Services,103,Third Party Payments,505,Private Contractors,5042,Revenue,SOCIAL CARE.CHILDCARE SERVICES
04/01/2022,2259104,2822.40,Redacted Personal Data,394945,"Health, Education, Care and Safeguarding",Children's & Education Services,103,Third Party Payments,505,Private Contractors,5042,Revenue,NON INFLUENCIBLE.GRANTS
04/01/2022,2259105,1814.40,Redacted Personal Data,394887,"Health, Education, Care and Safeguarding",Children's & Education Services,103,Third Party Payments,505,Private Contractors,5042,Revenue,NON INFLUENCIBLE.INDIVIDUAL
04/01/2022,2259106,3628.80,Redacted Personal Data,394762,"Health, Education, Care and Safeguarding",Children's & Education Services,103,Third Party Payments,505,Private Contractors,5042,Revenue,NON INFLUENCIBLE.GRANTS
04/01/2022,2259107,19635.84,RISE AND SHINE PLAYGROUP LTD,391514,"Health, Education, Care and Safeguarding",Children's & Education Services,103,Third Party Payments,505,Private Contractors,5042,Revenue,NON INFLUENCIBLE.NON INFLUENCIBLE
04/01/2022,2259108,604.80,Redacted Personal Data,391109,"Health, Education, Care and Safeguarding",Children's & Education Services,103,Third Party Payments,505,Private Contractors,5042,Revenue,SOCIAL CARE.CHILDCARE SERVICES
04/01/2022,2259109,14394.24,ZONE 4 KIDS AT COQUET PARK,391000,"Health, Education, Care and Safeguarding",Children's & Education Services,103,Third Party Payments,505,Private Contractors,5042,Revenue,SOCIAL CARE.CHILDCARE SERVICES
04/01/2022,2259110,11813.76,SHINING STARS,390724,"Health, Education, Care and Safeguarding",Children's & Education Services,103,Third Party Payments,505,Private Contractors,5042,Revenue,SOCIAL CARE.CHILDCARE SERVICES
04/01/2022,2259111,7516.80,SPRING GARDENS OUT OF SCHOOL LTD,389048,"Health, Education, Care and Safeguarding",Children's & Education Services,103,Third Party Payments,505,Private Contractors,5042,Revenue,NON INFLUENCIBLE.NON INFLUENCIBLE
04/01/2022,2259112,11149.92,GRASMERE ACADAMY,388867,"Health, Education, Care and Safeguarding",Children's & Education Services,103,Third Party Payments,505,Private Contractors,5042,Revenue,NON INFLUENCIBLE.EXT SCHOOLS
04/01/2022,2259113,294.00,Redacted Personal Data,396622,"Health, Education, Care and Safeguarding",Children's & Education Services,103,Supplies and Services,504,Equipment,5023,Revenue,NON INFLUENCIBLE.WELFARE
04/01/2022,2259114,1582.50,MCCONECHYS TYRE SERVICES,399914,"Environment, Housing & Leisure",Unallocated,N/A,Transport,503,Direct Transport Costs,5016,Revenue,VEHICLE MANAGEMENT.PARTS
04/01/2022,2259122,27137.00,TYNE & WEAR PENSION FUND,364141,Central Items,N/A,N/A,Employees,501,Indirect Employee Expenses,5002,Revenue,NON INFLUENCIBLE.PUBLIC SECTOR
04/01/2022,2259127,500.00,Redacted Personal Data,399669,Central Items,Planning Services,110,Capital,Capital,Capital,Capital,Revenue,NON INFLUENCIBLE.GRANTS
04/01/2022,2259128,500.00,Redacted Personal Data,399669,Central Items,Planning Services,110,Capital,Capital,Capital,Capital,Revenue,NON INFLUENCIBLE.GRANTS
04/01/2022,2259129,500.00,Redacted Personal Data,399669,Central Items,Planning Services,110,Capital,Capital,Capital,Capital,Revenue,NON INFLUENCIBLE.GRANTS
04/01/2022,2259130,500.00,Redacted Personal Data,399669,Central Items,Planning Services,110,Capital,Capital,Capital,Capital,Revenue,NON INFLUENCIBLE.GRANTS
04/01/2022,2259131,500.00,Redacted Personal Data,399669,Central Items,Planning Services,110,Capital,Capital,Capital,Capital,Revenue,NON INFLUENCIBLE.GRANTS
04/01/2022,2259132,500.00,Redacted Personal Data,399669,Central Items,Planning Services,110,Capital,Capital,Capital,Capital,Revenue,NON INFLUENCIBLE.GRANTS
04/01/2022,2259133,772.80,ST BARTHOLOMEWS PLAYGROUP,329116,"Health, Education, Care and Safeguarding",Children's & Education Services,103,Third Party Payments,505,Private Contractors,5042,Revenue,SOCIAL CARE.CHILDCARE SERVICES
04/01/2022,2259134,1209.60,Redacted Personal Data,394481,"Health, Education, Care and Safeguarding",Children's & Education Services,103,Third Party Payments,505,Private Contractors,5042,Revenue,NON INFLUENCIBLE.INDIVIDUAL
04/01/2022,2259135,14323.68,ACTION FOR CHILDREN,380697,"Health, Education, Care and Safeguarding",Children's & Education Services,103,Third Party Payments,505,Private Contractors,5042,Revenue,SOCIAL CARE.FOSTER CARE
04/01/2022,2259136,46353.60,WALLSEND DAY NURSERY,394147,"Health, Education, Care and Safeguarding",Children's & Education Services,103,Third Party Payments,505,Private Contractors,5042,Revenue,SOCIAL CARE.CHILDCARE SERVICES
04/01/2022,2259137,58102.92,BAILEY'S BUTTERFLIES,392846,"Health, Education, Care and Safeguarding",Children's & Education Services,103,Third Party Payments,505,Private Contractors,5042,Revenue,NON INFLUENCIBLE.GRANTS
04/01/2022,2259138,604.80,Redacted Personal Data,392805,"Health, Education, Care and Safeguarding",Children's & Education Services,103,Third Party Payments,505,Private Contractors,5042,Revenue,NON INFLUENCIBLE.INDIVIDUAL
04/01/2022,2259139,1209.60,Redacted Personal Data,386232,"Health, Education, Care and Safeguarding",Children's & Education Services,103,Third Party Payments,505,Private Contractors,5042,Revenue,SOCIAL CARE.CHILDCARE SERVICES
04/01/2022,2259140,15442.56,CHILDRENS CHOICE AT SOUTHRIDGE,355211,"Health, Education, Care and Safeguarding",Children's & Education Services,103,Third Party Payments,505,Private Contractors,5042,Revenue,NON INFLUENCIBLE.NON INFLUENCIBLE
04/01/2022,2259141,604.80,Redacted Personal Data,378764,"Health, Education, Care and Safeguarding",Children's & Education Services,103,Third Party Payments,505,Private Contractors,5042,Revenue,NON INFLUENCIBLE.GRANTS
04/01/2022,2259142,40606.02,CHILDRENS CHOICE NURSERY,335676,"Health, Education, Care and Safeguarding",Children's & Education Services,103,Third Party Payments,505,Private Contractors,5042,Revenue,SOCIAL CARE.CHILDCARE SERVICES
04/01/2022,2259143,21248.64,RAINBOW CHILDCARE,348813,"Health, Education, Care and Safeguarding",Children's & Education Services,103,Third Party Payments,505,Private Contractors,5042,Revenue,SOCIAL CARE.CHILDCARE SERVICES
04/01/2022,2259145,500.00,Redacted Personal Data,399669,Central Items,Planning Services,110,Capital,Capital,Capital,Capital,Revenue,NON INFLUENCIBLE.GRANTS
04/01/2022,2259146,500.00,Redacted Personal Data,399669,Central Items,Planning Services,110,Capital,Capital,Capital,Capital,Revenue,NON INFLUENCIBLE.GRANTS
04/01/2022,2259147,500.00,Redacted Personal Data,399669,Central Items,Planning Services,110,Capital,Capital,Capital,Capital,Revenue,NON INFLUENCIBLE.GRANTS
04/01/2022,2259148,500.00,Redacted Personal Data,399669,Central Items,Planning Services,110,Capital,Capital,Capital,Capital,Revenue,NON INFLUENCIBLE.GRANTS
04/01/2022,2259149,500.00,Redacted Personal Data,399669,Central Items,Planning Services,110,Capital,Capital,Capital,Capital,Revenue,NON INFLUENCIBLE.GRANTS
04/01/2022,2259150,500.00,Redacted Personal Data,399669,Central Items,Planning Services,110,Capital,Capital,Capital,Capital,Revenue,NON INFLUENCIBLE.GRANTS
04/01/2022,2259151,500.00,Redacted Personal Data,399669,Central Items,Planning Services,110,Capital,Capital,Capital,Capital,Revenue,NON INFLUENCIBLE.GRANTS
04/01/2022,2259152,500.00,Redacted Personal Data,399669,Central Items,Planning Services,110,Capital,Capital,Capital,Capital,Revenue,NON INFLUENCIBLE.GRANTS
04/01/2022,2259153,500.00,Redacted Personal Data,399669,Central Items,Planning Services,110,Capital,Capital,Capital,Capital,Revenue,NON INFLUENCIBLE.GRANTS
04/01/2022,2259154,500.00,Redacted Personal Data,399669,Central Items,Planning Services,110,Capital,Capital,Capital,Capital,Revenue,NON INFLUENCIBLE.GRANTS
04/01/2022,2259155,500.00,Redacted Personal Data,399669,Central Items,Planning Services,110,Capital,Capital,Capital,Capital,Revenue,NON INFLUENCIBLE.GRANTS
04/01/2022,2259156,500.00,Redacted Personal Data,399669,Central Items,Planning Services,110,Capital,Capital,Capital,Capital,Revenue,NON INFLUENCIBLE.GRANTS
04/01/2022,2259157,500.00,Redacted Personal Data,399669,Central Items,Planning Services,110,Capital,Capital,Capital,Capital,Revenue,NON INFLUENCIBLE.GRANTS
04/01/2022,2259158,500.00,Redacted Personal Data,399669,Central Items,Planning Services,110,Capital,Capital,Capital,Capital,Revenue,NON INFLUENCIBLE.GRANTS
04/01/2022,2259159,500.00,Redacted Personal Data,399669,Central Items,Planning Services,110,Capital,Capital,Capital,Capital,Revenue,NON INFLUENCIBLE.GRANTS
04/01/2022,2259160,500.00,Redacted Personal Data,399669,Central Items,Planning Services,110,Capital,Capital,Capital,Capital,Revenue,NON INFLUENCIBLE.GRANTS
04/01/2022,2259161,500.00,Redacted Personal Data,399669,Central Items,Planning Services,110,Capital,Capital,Capital,Capital,Revenue,NON INFLUENCIBLE.GRANTS
04/01/2022,2259162,500.00,Redacted Personal Data,399669,Central Items,Planning Services,110,Capital,Capital,Capital,Capital,Revenue,NON INFLUENCIBLE.GRANTS
04/01/2022,2259163,500.00,Redacted Personal Data,399669,Central Items,Planning Services,110,Capital,Capital,Capital,Capital,Revenue,NON INFLUENCIBLE.GRANTS
04/01/2022,2259164,500.00,Redacted Personal Data,399669,Central Items,Planning Services,110,Capital,Capital,Capital,Capital,Revenue,NON INFLUENCIBLE.GRANTS
04/01/2022,2259165,500.00,Redacted Personal Data,399669,Central Items,Planning Services,110,Capital,Capital,Capital,Capital,Revenue,NON INFLUENCIBLE.GRANTS
04/01/2022,2259166,500.00,Redacted Personal Data,399669,Central Items,Planning Services,110,Capital,Capital,Capital,Capital,Revenue,NON INFLUENCIBLE.GRANTS
04/01/2022,2259167,500.00,Redacted Personal Data,399669,Central Items,Planning Services,110,Capital,Capital,Capital,Capital,Revenue,NON INFLUENCIBLE.GRANTS
04/01/2022,2259168,500.00,Redacted Personal Data,399669,Central Items,Planning Services,110,Capital,Capital,Capital,Capital,Revenue,NON INFLUENCIBLE.GRANTS
04/01/2022,2259169,19958.40,BISHOP BEWICK CATHOLIC EDUCATION TRUST,400895,"Health, Education, Care and Safeguarding",Children's & Education Services,103,Third Party Payments,505,Private Contractors,5042,Revenue,NON INFLUENCIBLE.GRANTS
04/01/2022,2259170,17539.20,BISHOP BEWICK CATHOLIC EDUCATION TRUST,400895,"Health, Education, Care and Safeguarding",Children's & Education Services,103,Third Party Payments,505,Private Contractors,5042,Revenue,NON INFLUENCIBLE.GRANTS
04/01/2022,2259171,18387.00,BISHOP BEWICK CATHOLIC EDUCATION TRUST,400895,"Health, Education, Care and Safeguarding",Children's & Education Services,103,Third Party Payments,505,Private Contractors,5042,Revenue,NON INFLUENCIBLE.GRANTS
04/01/2022,2259172,16548.30,BISHOP BEWICK CATHOLIC EDUCATION TRUST,400895,"Health, Education, Care and Safeguarding",Children's & Education Services,103,Third Party Payments,505,Private Contractors,5042,Revenue,NON INFLUENCIBLE.GRANTS
04/01/2022,2259173,30645.00,BISHOP BEWICK CATHOLIC EDUCATION TRUST,400895,"Health, Education, Care and Safeguarding",Children's & Education Services,103,Third Party Payments,505,Private Contractors,5042,Revenue,NON INFLUENCIBLE.GRANTS
04/01/2022,2259174,19353.60,BISHOP BEWICK CATHOLIC EDUCATION TRUST,400895,"Health, Education, Care and Safeguarding",Children's & Education Services,103,Third Party Payments,505,Private Contractors,5042,Revenue,NON INFLUENCIBLE.GRANTS
04/01/2022,2259175,16286.40,BISHOP BEWICK CATHOLIC EDUCATION TRUST,400895,"Health, Education, Care and Safeguarding",Children's & Education Services,103,Third Party Payments,505,Private Contractors,5042,Revenue,NON INFLUENCIBLE.GRANTS
04/01/2022,2259176,5443.20,Redacted Personal Data,395106,"Health, Education, Care and Safeguarding",Children's & Education Services,103,Third Party Payments,505,Private Contractors,5042,Revenue,SOCIAL CARE.CHILDCARE SERVICES
04/01/2022,2259177,500.00,Redacted Personal Data,399669,Central Items,Planning Services,110,Capital,Capital,Capital,Capital,Revenue,NON INFLUENCIBLE.GRANTS
04/01/2022,2259178,500.00,Redacted Personal Data,399669,Central Items,Planning Services,110,Capital,Capital,Capital,Capital,Revenue,NON INFLUENCIBLE.GRANTS
04/01/2022,2259179,500.00,Redacted Personal Data,399669,Central Items,Planning Services,110,Capital,Capital,Capital,Capital,Revenue,NON INFLUENCIBLE.GRANTS
04/01/2022,2259180,500.00,Redacted Personal Data,399669,Central Items,Planning Services,110,Capital,Capital,Capital,Capital,Revenue,NON INFLUENCIBLE.GRANTS
04/01/2022,2259181,500.00,Redacted Personal Data,399669,Central Items,Planning Services,110,Capital,Capital,Capital,Capital,Revenue,NON INFLUENCIBLE.GRANTS
04/01/2022,2259182,500.00,Redacted Personal Data,399669,Central Items,Planning Services,110,Capital,Capital,Capital,Capital,Revenue,NON INFLUENCIBLE.GRANTS
04/01/2022,2259183,500.00,Redacted Personal Data,399669,Central Items,Planning Services,110,Capital,Capital,Capital,Capital,Revenue,NON INFLUENCIBLE.GRANTS
04/01/2022,2259184,500.00,Redacted Personal Data,399669,Central Items,Planning Services,110,Capital,Capital,Capital,Capital,Revenue,NON INFLUENCIBLE.GRANTS
04/01/2022,2259185,500.00,Redacted Personal Data,399669,Central Items,Planning Services,110,Capital,Capital,Capital,Capital,Revenue,NON INFLUENCIBLE.GRANTS
04/01/2022,2259186,500.00,Redacted Personal Data,399669,Central Items,Planning Services,110,Capital,Capital,Capital,Capital,Revenue,NON INFLUENCIBLE.GRANTS
04/01/2022,2259187,500.00,Redacted Personal Data,399669,Central Items,Planning Services,110,Capital,Capital,Capital,Capital,Revenue,NON INFLUENCIBLE.GRANTS
04/01/2022,2259188,500.00,Redacted Personal Data,399669,Central Items,Planning Services,110,Capital,Capital,Capital,Capital,Revenue,NON INFLUENCIBLE.GRANTS
04/01/2022,2259189,500.00,Redacted Personal Data,399669,Central Items,Planning Services,110,Capital,Capital,Capital,Capital,Revenue,NON INFLUENCIBLE.GRANTS
04/01/2022,2259190,500.00,Redacted Personal Data,399669,Central Items,Planning Services,110,Capital,Capital,Capital,Capital,Revenue,NON INFLUENCIBLE.GRANTS
04/01/2022,2259191,500.00,Redacted Personal Data,399669,Central Items,Planning Services,110,Capital,Capital,Capital,Capital,Revenue,NON INFLUENCIBLE.GRANTS
04/01/2022,2259192,500.00,Redacted Personal Data,399669,Central Items,Planning Services,110,Capital,Capital,Capital,Capital,Revenue,NON INFLUENCIBLE.GRANTS
04/01/2022,2259193,500.00,Redacted Personal Data,399669,Central Items,Planning Services,110,Capital,Capital,Capital,Capital,Revenue,NON INFLUENCIBLE.GRANTS
04/01/2022,2259194,500.00,Redacted Personal Data,399669,Central Items,Planning Services,110,Capital,Capital,Capital,Capital,Revenue,NON INFLUENCIBLE.GRANTS
04/01/2022,2259195,500.00,Redacted Personal Data,399669,Central Items,Planning Services,110,Capital,Capital,Capital,Capital,Revenue,NON INFLUENCIBLE.GRANTS
04/01/2022,2259196,500.00,Redacted Personal Data,399669,Central Items,Planning Services,110,Capital,Capital,Capital,Capital,Revenue,NON INFLUENCIBLE.GRANTS
04/01/2022,2259197,500.00,Redacted Personal Data,399669,Central Items,Planning Services,110,Capital,Capital,Capital,Capital,Revenue,NON INFLUENCIBLE.GRANTS
04/01/2022,2259198,500.00,Redacted Personal Data,399669,Central Items,Planning Services,110,Capital,Capital,Capital,Capital,Revenue,NON INFLUENCIBLE.GRANTS
04/01/2022,2259199,500.00,Redacted Personal Data,399669,Central Items,Planning Services,110,Capital,Capital,Capital,Capital,Revenue,NON INFLUENCIBLE.GRANTS
04/01/2022,2259200,500.00,Redacted Personal Data,399669,Central Items,Planning Services,110,Capital,Capital,Capital,Capital,Revenue,NON INFLUENCIBLE.GRANTS
05/01/2022,2259260,13483.80,Redacted Personal Data,394026,"Health, Education, Care and Safeguarding",Children's & Education Services,103,Third Party Payments,505,Private Contractors,5042,Revenue,NON INFLUENCIBLE.GRANTS
05/01/2022,2259261,6488.10,Redacted Personal Data,394026,"Health, Education, Care and Safeguarding",Children's & Education Services,103,Supplies and Services,504,Grants and Subscriptions,5031,Revenue,NON INFLUENCIBLE.GRANTS
05/01/2022,2259262,5516.10,Redacted Personal Data,367496,"Health, Education, Care and Safeguarding",Children's & Education Services,103,Third Party Payments,505,Private Contractors,5042,Revenue,NON INFLUENCIBLE.GRANTS
05/01/2022,2259263,2162.70,Redacted Personal Data,367496,"Health, Education, Care and Safeguarding",Children's & Education Services,103,Supplies and Services,504,Grants and Subscriptions,5031,Revenue,NON INFLUENCIBLE.GRANTS
05/01/2022,2259264,1814.40,Redacted Personal Data,393472,"Health, Education, Care and Safeguarding",Children's & Education Services,103,Third Party Payments,505,Private Contractors,5042,Revenue,NON INFLUENCIBLE.GRANTS
05/01/2022,2259266,20563.20,LITTLE CYGNETS CHILDCARE LTD,392848,"Health, Education, Care and Safeguarding",Children's & Education Services,103,Third Party Payments,505,Private Contractors,5042,Revenue,NON INFLUENCIBLE.GRANTS
05/01/2022,2259267,7929.90,LITTLE CYGNETS CHILDCARE LTD,392848,"Health, Education, Care and Safeguarding",Children's & Education Services,103,Supplies and Services,504,Grants and Subscriptions,5031,Revenue,NON INFLUENCIBLE.GRANTS
05/01/2022,2259268,15859.80,BAILEY'S BUTTERFLIES,392846,"Health, Education, Care and Safeguarding",Children's & Education Services,103,Supplies and Services,504,Grants and Subscriptions,5031,Revenue,NON INFLUENCIBLE.GRANTS
05/01/2022,2259269,967.68,Redacted Personal Data,392804,"Health, Education, Care and Safeguarding",Children's & Education Services,103,Third Party Payments,505,Private Contractors,5042,Revenue,NON INFLUENCIBLE.INDIVIDUAL
05/01/2022,2259270,720.90,Redacted Personal Data,392804,"Health, Education, Care and Safeguarding",Children's & Education Services,103,Supplies and Services,504,Grants and Subscriptions,5031,Revenue,NON INFLUENCIBLE.INDIVIDUAL
05/01/2022,2259271,2162.70,TYNEMOUTH NURSERY @ NTC,392526,"Health, Education, Care and Safeguarding",Children's & Education Services,103,Supplies and Services,504,Grants and Subscriptions,5031,Revenue,SOCIAL CARE.CHILDCARE SERVICES
05/01/2022,2259272,720.90,Redacted Personal Data,392525,"Health, Education, Care and Safeguarding",Children's & Education Services,103,Supplies and Services,504,Grants and Subscriptions,5031,Revenue,NON INFLUENCIBLE.GRANTS
05/01/2022,2259273,1209.60,Redacted Personal Data,392524,"Health, Education, Care and Safeguarding",Children's & Education Services,103,Third Party Payments,505,Private Contractors,5042,Revenue,NON INFLUENCIBLE.GRANTS
05/01/2022,2259274,720.90,Redacted Personal Data,392524,"Health, Education, Care and Safeguarding",Children's & Education Services,103,Supplies and Services,504,Grants and Subscriptions,5031,Revenue,NON INFLUENCIBLE.GRANTS
05/01/2022,2259275,604.80,Redacted Personal Data,392522,"Health, Education, Care and Safeguarding",Children's & Education Services,103,Third Party Payments,505,Private Contractors,5042,Revenue,NON INFLUENCIBLE.GRANTS
05/01/2022,2259276,2580.48,Redacted Personal Data,392256,"Health, Education, Care and Safeguarding",Children's & Education Services,103,Third Party Payments,505,Private Contractors,5042,Revenue,NON INFLUENCIBLE.GRANTS
05/01/2022,2259277,1209.60,Redacted Personal Data,392255,"Health, Education, Care and Safeguarding",Children's & Education Services,103,Third Party Payments,505,Private Contractors,5042,Revenue,NON INFLUENCIBLE.GRANTS
05/01/2022,2259278,64967.40,LEIGH'S NURSERIES,391513,"Health, Education, Care and Safeguarding",Children's & Education Services,103,Third Party Payments,505,Private Contractors,5042,Revenue,NON INFLUENCIBLE.NON INFLUENCIBLE
05/01/2022,2259279,500.00,Redacted Personal Data,399669,Central Items,Planning Services,110,Capital,Capital,Capital,Capital,Revenue,NON INFLUENCIBLE.GRANTS
05/01/2022,2259280,500.00,Redacted Personal Data,399669,Central Items,Planning Services,110,Capital,Capital,Capital,Capital,Revenue,NON INFLUENCIBLE.GRANTS
05/01/2022,2259281,604.80,Redacted Personal Data,399284,"Health, Education, Care and Safeguarding",Children's & Education Services,103,Third Party Payments,505,Private Contractors,5042,Revenue,NON INFLUENCIBLE.GRANTS
05/01/2022,2259282,1441.80,Redacted Personal Data,399276,"Health, Education, Care and Safeguarding",Children's & Education Services,103,Supplies and Services,504,Grants and Subscriptions,5031,Revenue,NON INFLUENCIBLE.INDIVIDUAL
05/01/2022,2259283,3306.24,Redacted Personal Data,399011,"Health, Education, Care and Safeguarding",Children's & Education Services,103,Third Party Payments,505,Private Contractors,5042,Revenue,NON INFLUENCIBLE.GRANTS
05/01/2022,2259284,14407.20,LITTLE SUNSHINE CHILDCARE,398646,"Health, Education, Care and Safeguarding",Children's & Education Services,103,Third Party Payments,505,Private Contractors,5042,Revenue,SOCIAL CARE.CHILDCARE SERVICES
05/01/2022,2259285,7929.90,LITTLE SUNSHINE CHILDCARE,398646,"Health, Education, Care and Safeguarding",Children's & Education Services,103,Supplies and Services,504,Grants and Subscriptions,5031,Revenue,SOCIAL CARE.CHILDCARE SERVICES
05/01/2022,2259286,1209.60,LIANNE BRUCE T/A SAFE HAVEN CHILDMINDING,398644,"Health, Education, Care and Safeguarding",Children's & Education Services,103,Third Party Payments,505,Private Contractors,5042,Revenue,SOCIAL CARE.CHILDCARE SERVICES
05/01/2022,2259287,282.24,Redacted Personal Data,363611,"Health, Education, Care and Safeguarding",Children's & Education Services,103,Third Party Payments,505,Private Contractors,5042,Revenue,NON INFLUENCIBLE.GRANTS
05/01/2022,2259288,720.90,Redacted Personal Data,363611,"Health, Education, Care and Safeguarding",Children's & Education Services,103,Supplies and Services,504,Grants and Subscriptions,5031,Revenue,NON INFLUENCIBLE.GRANTS
05/01/2022,2259289,9193.50,LITTLE LEARNERS (BARNSTAPLE ROAD),397576,"Health, Education, Care and Safeguarding",Children's & Education Services,103,Third Party Payments,505,Private Contractors,5042,Revenue,SOCIAL CARE.CHILDCARE SERVICES
05/01/2022,2259290,5767.20,LITTLE LEARNERS (BARNSTAPLE ROAD),397576,"Health, Education, Care and Safeguarding",Children's & Education Services,103,Supplies and Services,504,Grants and Subscriptions,5031,Revenue,SOCIAL CARE.CHILDCARE SERVICES
05/01/2022,2259291,18207.36,LITTLE HUBBERS DAY NURSERY,398177,"Health, Education, Care and Safeguarding",Children's & Education Services,103,Third Party Payments,505,Private Contractors,5042,Revenue,SOCIAL CARE.CHILDCARE SERVICES
05/01/2022,2259292,14818.50,LITTLE HUBBERS DAY NURSERY,398177,"Health, Education, Care and Safeguarding",Children's & Education Services,103,Supplies and Services,504,Grants and Subscriptions,5031,Revenue,SOCIAL CARE.CHILDCARE SERVICES
05/01/2022,2259293,1814.40,Redacted Personal Data,398047,"Health, Education, Care and Safeguarding",Children's & Education Services,103,Third Party Payments,505,Private Contractors,5042,Revenue,SOCIAL CARE.CHILDCARE SERVICES
05/01/2022,2259294,13265.28,Redacted Personal Data,394372,"Health, Education, Care and Safeguarding",Children's & Education Services,103,Third Party Payments,505,Private Contractors,5042,Revenue,SOCIAL CARE.CHILDREN'S CENTRES
05/01/2022,2259295,720.90,Redacted Personal Data,394372,"Health, Education, Care and Safeguarding",Children's & Education Services,103,Supplies and Services,504,Grants and Subscriptions,5031,Revenue,SOCIAL CARE.CHILDREN'S CENTRES
05/01/2022,2259296,12499.20,GOOD TIME CHILDCARE AT REDESDALE,397525,"Health, Education, Care and Safeguarding",Children's & Education Services,103,Third Party Payments,505,Private Contractors,5042,Revenue,SOCIAL CARE.CHILDCARE SERVICES
05/01/2022,2259297,2883.60,GOOD TIME CHILDCARE AT REDESDALE,397525,"Health, Education, Care and Safeguarding",Children's & Education Services,103,Supplies and Services,504,Grants and Subscriptions,5031,Revenue,SOCIAL CARE.CHILDCARE SERVICES
05/01/2022,2259298,22064.40,FOOTPRINTS DAY NURSERY WALLSEND,397376,"Health, Education, Care and Safeguarding",Children's & Education Services,103,Third Party Payments,505,Private Contractors,5042,Revenue,SOCIAL CARE.CHILDCARE SERVICES
05/01/2022,2259299,11534.40,FOOTPRINTS DAY NURSERY WALLSEND,397376,"Health, Education, Care and Safeguarding",Children's & Education Services,103,Supplies and Services,504,Grants and Subscriptions,5031,Revenue,SOCIAL CARE.CHILDCARE SERVICES
05/01/2022,2259300,21924.00,LITTLE BLOSSOMS CHILDCARE,397233,"Health, Education, Care and Safeguarding",Children's & Education Services,103,Third Party Payments,505,Private Contractors,5042,Revenue,SOCIAL CARE.CHILDCARE SERVICES
05/01/2022,2259301,18583.20,LITTLE BLOSSOMS CHILDCARE,397233,"Health, Education, Care and Safeguarding",Children's & Education Services,103,Supplies and Services,504,Grants and Subscriptions,5031,Revenue,SOCIAL CARE.CHILDCARE SERVICES
05/01/2022,2259302,1441.80,Redacted Personal Data,227943,"Health, Education, Care and Safeguarding",Children's & Education Services,103,Supplies and Services,504,Grants and Subscriptions,5031,Revenue,NON INFLUENCIBLE.GRANTS
05/01/2022,2259303,22377.60,JELLYTOTS PRE SCHOOL,395969,"Health, Education, Care and Safeguarding",Children's & Education Services,103,Third Party Payments,505,Private Contractors,5042,Revenue,NON INFLUENCIBLE.GRANTS
05/01/2022,2259304,7209.00,JELLYTOTS PRE SCHOOL,395969,"Health, Education, Care and Safeguarding",Children's & Education Services,103,Supplies and Services,504,Grants and Subscriptions,5031,Revenue,NON INFLUENCIBLE.GRANTS
05/01/2022,2259305,11481.00,THE FAMILY TREE CHILDRENS DAY NURSERY,395861,"Health, Education, Care and Safeguarding",Children's & Education Services,103,Supplies and Services,504,Grants and Subscriptions,5031,Revenue,SOCIAL CARE.CHILDCARE SERVICES
05/01/2022,2259306,1572.48,Redacted Personal Data,395550,"Health, Education, Care and Safeguarding",Children's & Education Services,103,Third Party Payments,505,Private Contractors,5042,Revenue,NON INFLUENCIBLE.INDIVIDUAL
05/01/2022,2259307,9371.70,YMCA NORTH TYNESIDE,356069,"Health, Education, Care and Safeguarding",Children's & Education Services,103,Supplies and Services,504,Grants and Subscriptions,5031,Revenue,SOCIAL CARE.CARE SERVICES
05/01/2022,2259308,604.80,Redacted Personal Data,395122,"Health, Education, Care and Safeguarding",Children's & Education Services,103,Third Party Payments,505,Private Contractors,5042,Revenue,NON INFLUENCIBLE.GRANTS
05/01/2022,2259309,720.90,Redacted Personal Data,395121,"Health, Education, Care and Safeguarding",Children's & Education Services,103,Supplies and Services,504,Grants and Subscriptions,5031,Revenue,NON INFLUENCIBLE.GRANTS
05/01/2022,2259310,10010.70,LITTLE RASCALS CHILDCARE,394764,"Health, Education, Care and Safeguarding",Children's & Education Services,103,Third Party Payments,505,Private Contractors,5042,Revenue,NON INFLUENCIBLE.GRANTS
05/01/2022,2259311,5046.30,LITTLE RASCALS CHILDCARE,394764,"Health, Education, Care and Safeguarding",Children's & Education Services,103,Supplies and Services,504,Grants and Subscriptions,5031,Revenue,NON INFLUENCIBLE.GRANTS
05/01/2022,2259312,720.90,ST BARTHOLOMEWS PLAYGROUP,329116,"Health, Education, Care and Safeguarding",Children's & Education Services,103,Supplies and Services,504,Grants and Subscriptions,5031,Revenue,SOCIAL CARE.CHILDCARE SERVICES
05/01/2022,2259313,1252.80,Redacted Personal Data,394445,"Health, Education, Care and Safeguarding",Children's & Education Services,103,Third Party Payments,505,Private Contractors,5042,Revenue,SOCIAL CARE.CHILDCARE SERVICES
05/01/2022,2259314,720.90,Redacted Personal Data,394445,"Health, Education, Care and Safeguarding",Children's & Education Services,103,Supplies and Services,504,Grants and Subscriptions,5031,Revenue,SOCIAL CARE.CHILDCARE SERVICES
05/01/2022,2259315,1814.40,Redacted Personal Data,400136,"Health, Education, Care and Safeguarding",Children's & Education Services,103,Third Party Payments,505,Private Contractors,5042,Revenue,SOCIAL CARE.CHILDCARE SERVICES
05/01/2022,2259316,6488.10,Redacted Personal Data,395106,"Health, Education, Care and Safeguarding",Children's & Education Services,103,Supplies and Services,504,Grants and Subscriptions,5031,Revenue,SOCIAL CARE.CHILDCARE SERVICES
05/01/2022,2259317,500.00,Redacted Personal Data,399669,Central Items,Planning Services,110,Capital,Capital,Capital,Capital,Revenue,NON INFLUENCIBLE.GRANTS
05/01/2022,2259318,500.00,Redacted Personal Data,399669,Central Items,Planning Services,110,Capital,Capital,Capital,Capital,Revenue,NON INFLUENCIBLE.GRANTS
05/01/2022,2259319,500.00,Redacted Personal Data,399669,Central Items,Planning Services,110,Capital,Capital,Capital,Capital,Revenue,NON INFLUENCIBLE.GRANTS
05/01/2022,2259320,500.00,Redacted Personal Data,399669,Central Items,Planning Services,110,Capital,Capital,Capital,Capital,Revenue,NON INFLUENCIBLE.GRANTS
05/01/2022,2259321,500.00,Redacted Personal Data,399669,Central Items,Planning Services,110,Capital,Capital,Capital,Capital,Revenue,NON INFLUENCIBLE.GRANTS
05/01/2022,2259322,500.00,Redacted Personal Data,399669,Central Items,Planning Services,110,Capital,Capital,Capital,Capital,Revenue,NON INFLUENCIBLE.GRANTS
05/01/2022,2259323,500.00,Redacted Personal Data,399669,Central Items,Planning Services,110,Capital,Capital,Capital,Capital,Revenue,NON INFLUENCIBLE.GRANTS
05/01/2022,2259324,500.00,Redacted Personal Data,399669,Central Items,Planning Services,110,Capital,Capital,Capital,Capital,Revenue,NON INFLUENCIBLE.GRANTS
05/01/2022,2259325,500.00,Redacted Personal Data,399669,Central Items,Planning Services,110,Capital,Capital,Capital,Capital,Revenue,NON INFLUENCIBLE.GRANTS
05/01/2022,2259326,500.00,Redacted Personal Data,399669,Central Items,Planning Services,110,Capital,Capital,Capital,Capital,Revenue,NON INFLUENCIBLE.GRANTS
05/01/2022,2259327,1209.60,Redacted Personal Data,401438,"Health, Education, Care and Safeguarding",Children's & Education Services,103,Third Party Payments,505,Private Contractors,5042,Revenue,SOCIAL CARE.CHILDCARE SERVICES
05/01/2022,2259328,1008.00,Redacted Personal Data,401255,"Health, Education, Care and Safeguarding",Children's & Education Services,103,Third Party Payments,505,Private Contractors,5042,Revenue,SOCIAL CARE.CHILDCARE SERVICES
05/01/2022,2259329,720.90,Redacted Personal Data,401255,"Health, Education, Care and Safeguarding",Children's & Education Services,103,Supplies and Services,504,Grants and Subscriptions,5031,Revenue,SOCIAL CARE.CHILDCARE SERVICES
05/01/2022,2259330,7257.60,LITTLE SUNSHINE CHILDCARE,398646,"Health, Education, Care and Safeguarding",Children's & Education Services,103,Third Party Payments,505,Private Contractors,5042,Revenue,SOCIAL CARE.CHILDCARE SERVICES
05/01/2022,2259331,5767.20,LITTLE SUNSHINE CHILDCARE,398646,"Health, Education, Care and Safeguarding",Children's & Education Services,103,Supplies and Services,504,Grants and Subscriptions,5031,Revenue,SOCIAL CARE.CHILDCARE SERVICES
05/01/2022,2259332,1209.60,Redacted Personal Data,327046,"Health, Education, Care and Safeguarding",Children's & Education Services,103,Third Party Payments,505,Private Contractors,5042,Revenue,SOCIAL CARE.CHILDCARE SERVICES
05/01/2022,2259333,720.90,Redacted Personal Data,327046,"Health, Education, Care and Safeguarding",Children's & Education Services,103,Supplies and Services,504,Grants and Subscriptions,5031,Revenue,SOCIAL CARE.CHILDCARE SERVICES
05/01/2022,2259334,403.20,Redacted Personal Data,400571,"Health, Education, Care and Safeguarding",Children's & Education Services,103,Third Party Payments,505,Private Contractors,5042,Revenue,SOCIAL CARE.CHILDCARE SERVICES
05/01/2022,2259335,12700.80,RACHAEL�S RASCALS CHILDCARE,400439,"Health, Education, Care and Safeguarding",Children's & Education Services,103,Third Party Payments,505,Private Contractors,5042,Revenue,SOCIAL CARE.CHILDCARE SERVICES
05/01/2022,2259336,2883.60,RACHAEL�S RASCALS CHILDCARE,400439,"Health, Education, Care and Safeguarding",Children's & Education Services,103,Supplies and Services,504,Grants and Subscriptions,5031,Revenue,SOCIAL CARE.CHILDCARE SERVICES
05/01/2022,2259337,1008.00,Redacted Personal Data,400407,"Health, Education, Care and Safeguarding",Children's & Education Services,103,Third Party Payments,505,Private Contractors,5042,Revenue,SOCIAL CARE.CHILDCARE SERVICES
05/01/2022,2259338,6854.40,ST ALBANS PRE SCHOOL,400362,"Health, Education, Care and Safeguarding",Children's & Education Services,103,Third Party Payments,505,Private Contractors,5042,Revenue,SOCIAL CARE.CHILDCARE SERVICES
05/01/2022,2259339,720.90,ST ALBANS PRE SCHOOL,400362,"Health, Education, Care and Safeguarding",Children's & Education Services,103,Supplies and Services,504,Grants and Subscriptions,5031,Revenue,SOCIAL CARE.CHILDCARE SERVICES
05/01/2022,2259340,500.00,Redacted Personal Data,399669,Central Items,Planning Services,110,Capital,Capital,Capital,Capital,Revenue,NON INFLUENCIBLE.GRANTS
05/01/2022,2259341,500.00,Redacted Personal Data,399669,Central Items,Planning Services,110,Capital,Capital,Capital,Capital,Revenue,NON INFLUENCIBLE.GRANTS
05/01/2022,2259342,500.00,Redacted Personal Data,399669,Central Items,Planning Services,110,Capital,Capital,Capital,Capital,Revenue,NON INFLUENCIBLE.GRANTS
05/01/2022,2259343,500.00,Redacted Personal Data,399669,Central Items,Planning Services,110,Capital,Capital,Capital,Capital,Revenue,NON INFLUENCIBLE.GRANTS
05/01/2022,2259344,500.00,Redacted Personal Data,399669,Central Items,Planning Services,110,Capital,Capital,Capital,Capital,Revenue,NON INFLUENCIBLE.GRANTS
05/01/2022,2259345,500.00,Redacted Personal Data,399669,Central Items,Planning Services,110,Capital,Capital,Capital,Capital,Revenue,NON INFLUENCIBLE.GRANTS
05/01/2022,2259346,5815.26,ACTION FOR CHILDREN,380697,"Health, Education, Care and Safeguarding",Children's & Education Services,103,Supplies and Services,504,Grants and Subscriptions,5031,Revenue,SOCIAL CARE.FOSTER CARE
05/01/2022,2259347,8143.20,FOOTPRINTS DAY NURSERY,394148,"Health, Education, Care and Safeguarding",Children's & Education Services,103,Third Party Payments,505,Private Contractors,5042,Revenue,NON INFLUENCIBLE.GRANTS
05/01/2022,2259348,2883.60,FOOTPRINTS DAY NURSERY,394148,"Health, Education, Care and Safeguarding",Children's & Education Services,103,Supplies and Services,504,Grants and Subscriptions,5031,Revenue,NON INFLUENCIBLE.GRANTS
05/01/2022,2259349,16580.70,WALLSEND DAY NURSERY,394147,"Health, Education, Care and Safeguarding",Children's & Education Services,103,Supplies and Services,504,Grants and Subscriptions,5031,Revenue,SOCIAL CARE.CHILDCARE SERVICES
05/01/2022,2259350,32592.00,EVOLUTION CHILDCARE,394146,"Health, Education, Care and Safeguarding",Children's & Education Services,103,Third Party Payments,505,Private Contractors,5042,Revenue,NON INFLUENCIBLE.GRANTS
05/01/2022,2259351,2883.60,EVOLUTION CHILDCARE,394146,"Health, Education, Care and Safeguarding",Children's & Education Services,103,Supplies and Services,504,Grants and Subscriptions,5031,Revenue,NON INFLUENCIBLE.GRANTS
05/01/2022,2259353,342.00,SMITCARE LTD,323747,"Health, Education, Care and Safeguarding",Adult Social Care,101,Supplies and Services,504,Equipment,5023,Revenue,SOCIAL CARE.SUPPLIES
05/01/2022,2259356,1025.00,WHITLEY BAY GYM CLUB,372745,"Environment, Housing & Leisure",Cultural & Related Services,104,Third Party Payments,505,Private Contractors,5042,Revenue,HUMAN RESOURCES.TRAINING & CONFERENCES
05/01/2022,2259359,252.00,DIRECT CARS,366879,Commissioning & Asset Management,Children's & Education Services,103,Transport,503,Recharges,5017,Revenue,PUBLIC TRANSPORT.TAXI SERVICES
05/01/2022,2259359,315.00,DIRECT CARS,366879,Commissioning & Asset Management,Children's & Education Services,103,Transfer Payments,506,School Children and Students,5046,Revenue,PUBLIC TRANSPORT.TAXI SERVICES
05/01/2022,2259359,378.00,DIRECT CARS,366879,Commissioning & Asset Management,Children's & Education Services,103,Transport,503,Recharges,5017,Revenue,PUBLIC TRANSPORT.TAXI SERVICES
05/01/2022,2259359,450.00,DIRECT CARS,366879,Commissioning & Asset Management,Children's & Education Services,103,Transport,503,Recharges,5017,Revenue,PUBLIC TRANSPORT.TAXI SERVICES
05/01/2022,2259359,451.20,DIRECT CARS,366879,Commissioning & Asset Management,Children's & Education Services,103,Transfer Payments,506,School Children and Students,5046,Revenue,PUBLIC TRANSPORT.TAXI SERVICES
05/01/2022,2259359,480.00,DIRECT CARS,366879,Commissioning & Asset Management,Children's & Education Services,103,Transport,503,Recharges,5017,Revenue,PUBLIC TRANSPORT.TAXI SERVICES
05/01/2022,2259359,552.00,DIRECT CARS,366879,"Health, Education, Care and Safeguarding",Children's & Education Services,103,Transport,503,Recharges,5017,Revenue,PUBLIC TRANSPORT.TAXI SERVICES
05/01/2022,2259359,552.00,DIRECT CARS,366879,Commissioning & Asset Management,Children's & Education Services,103,Transport,503,Recharges,5017,Revenue,PUBLIC TRANSPORT.TAXI SERVICES
05/01/2022,2259359,588.00,DIRECT CARS,366879,Commissioning & Asset Management,Children's & Education Services,103,Transfer Payments,506,School Children and Students,5046,Revenue,PUBLIC TRANSPORT.TAXI SERVICES
05/01/2022,2259359,594.00,DIRECT CARS,366879,Commissioning & Asset Management,Children's & Education Services,103,Transport,503,Recharges,5017,Revenue,PUBLIC TRANSPORT.TAXI SERVICES
05/01/2022,2259359,630.00,DIRECT CARS,366879,Commissioning & Asset Management,Children's & Education Services,103,Transport,503,Recharges,5017,Revenue,PUBLIC TRANSPORT.TAXI SERVICES
05/01/2022,2259359,720.00,DIRECT CARS,366879,Commissioning & Asset Management,Children's & Education Services,103,Transfer Payments,506,School Children and Students,5046,Revenue,PUBLIC TRANSPORT.TAXI SERVICES
05/01/2022,2259359,732.00,DIRECT CARS,366879,Commissioning & Asset Management,Children's & Education Services,103,Transport,503,Recharges,5017,Revenue,PUBLIC TRANSPORT.TAXI SERVICES
05/01/2022,2259359,792.00,DIRECT CARS,366879,Commissioning & Asset Management,Children's & Education Services,103,Transport,503,Recharges,5017,Revenue,PUBLIC TRANSPORT.TAXI SERVICES
05/01/2022,2259359,846.00,DIRECT CARS,366879,Commissioning & Asset Management,Children's & Education Services,103,Transfer Payments,506,School Children and Students,5046,Revenue,PUBLIC TRANSPORT.TAXI SERVICES
05/01/2022,2259359,894.00,DIRECT CARS,366879,Commissioning & Asset Management,Children's & Education Services,103,Transport,503,Recharges,5017,Revenue,PUBLIC TRANSPORT.TAXI SERVICES
05/01/2022,2259359,899.40,DIRECT CARS,366879,Commissioning & Asset Management,Children's & Education Services,103,Transfer Payments,506,School Children and Students,5046,Revenue,PUBLIC TRANSPORT.TAXI SERVICES
05/01/2022,2259359,924.00,DIRECT CARS,366879,Commissioning & Asset Management,Children's & Education Services,103,Transport,503,Recharges,5017,Revenue,PUBLIC TRANSPORT.TAXI SERVICES
05/01/2022,2259359,936.00,DIRECT CARS,366879,Commissioning & Asset Management,Children's & Education Services,103,Transport,503,Recharges,5017,Revenue,PUBLIC TRANSPORT.TAXI SERVICES
05/01/2022,2259359,990.00,DIRECT CARS,366879,Commissioning & Asset Management,Children's & Education Services,103,Transport,503,Recharges,5017,Revenue,PUBLIC TRANSPORT.TAXI SERVICES
05/01/2022,2259359,1020.00,DIRECT CARS,366879,Commissioning & Asset Management,Children's & Education Services,103,Transfer Payments,506,School Children and Students,5046,Revenue,PUBLIC TRANSPORT.TAXI SERVICES
05/01/2022,2259359,1038.00,DIRECT CARS,366879,Commissioning & Asset Management,Children's & Education Services,103,Transport,503,Recharges,5017,Revenue,PUBLIC TRANSPORT.TAXI SERVICES
05/01/2022,2259359,1098.00,DIRECT CARS,366879,Commissioning & Asset Management,Children's & Education Services,103,Transport,503,Recharges,5017,Revenue,PUBLIC TRANSPORT.TAXI SERVICES
05/01/2022,2259359,1674.00,DIRECT CARS,366879,Commissioning & Asset Management,Children's & Education Services,103,Transport,503,Recharges,5017,Revenue,PUBLIC TRANSPORT.TAXI SERVICES
05/01/2022,2259360,272.88,DENNIS EAGLE LTD,303955,"Environment, Housing & Leisure",Unallocated,N/A,Transport,503,Direct Transport Costs,5016,Revenue,VEHICLE MANAGEMENT.PARTS
05/01/2022,2259360,358.75,DENNIS EAGLE LTD,303955,"Environment, Housing & Leisure",Unallocated,N/A,Transport,503,Direct Transport Costs,5016,Revenue,VEHICLE MANAGEMENT.PARTS
05/01/2022,2259360,1410.00,DENNIS EAGLE LTD,303955,Capital,Capital,Capital,Supplies and Services,504,Equipment,5023,Capital,VEHICLE MANAGEMENT.PARTS
05/01/2022,2259361,2760.00,DIRECT HEALTHCARE SERVICES LTD,381915,"Health, Education, Care and Safeguarding",Adult Social Care,101,Supplies and Services,504,Equipment,5023,Revenue,SOCIAL CARE.SUPPLIES
05/01/2022,2259362,500.00,MISS KATHERINE WOOD,357088,"Health, Education, Care and Safeguarding",Children's & Education Services,103,Third Party Payments,505,Private Contractors,5042,Revenue,LEGAL.GENERAL SUPPORT
05/01/2022,2259362,500.00,MISS KATHERINE WOOD,357088,"Health, Education, Care and Safeguarding",Children's & Education Services,103,Third Party Payments,505,Private Contractors,5042,Revenue,LEGAL.GENERAL SUPPORT
05/01/2022,2259364,573.00,BLAYDON COMMUNICATIONS LTD,002858,"Environment, Housing & Leisure",Cultural & Related Services,104,Supplies and Services,504,Equipment,5023,Revenue,EDUCATIONAL SUPPLIES.AUDIO VISUAL
05/01/2022,2259365,1958.96,L S CARE LIMITED,392308,"Health, Education, Care and Safeguarding",Public Health,112,Third Party Payments,505,Private Contractors,5042,Revenue,SOCIAL CARE.CARE SERVICES
05/01/2022,2259365,1958.96,L S CARE LIMITED,392308,"Health, Education, Care and Safeguarding",Public Health,112,Third Party Payments,505,Private Contractors,5042,Revenue,SOCIAL CARE.CARE SERVICES
05/01/2022,2259365,1958.96,L S CARE LIMITED,392308,"Health, Education, Care and Safeguarding",Public Health,112,Third Party Payments,505,Private Contractors,5042,Revenue,SOCIAL CARE.CARE SERVICES
05/01/2022,2259365,1958.96,L S CARE LIMITED,392308,"Health, Education, Care and Safeguarding",Public Health,112,Third Party Payments,505,Private Contractors,5042,Revenue,SOCIAL CARE.CARE SERVICES
05/01/2022,2259367,240.95,YORKSHIRE CARE EQUIPMENT,380216,"Health, Education, Care and Safeguarding",Adult Social Care,101,Supplies and Services,504,Equipment,5023,Revenue,SOCIAL CARE.SUPPLIES
05/01/2022,2259369,438627.24,KAJIMA NORTH TYNESIDE LTD,356854,Commissioning & Asset Management,Children's & Education Services,103,Third Party Payments,505,Private Contractors,5042,Revenue,REPAIRS & MAINTENANCE.REPAIRS & MAINTENANCE
05/01/2022,2259370,359.76,AZTEC CHEMICALS,303520,"Environment, Housing & Leisure",Environmental & Regulatory Services,105,Supplies and Services,504,Miscellaneous Expenses,5034,Revenue,CLEANING & JANITORIAL.CLEANING MATERIALS
05/01/2022,2259373,315.00,G O'BRIEN & SONS (NDC) LTD,206526,"Health, Education, Care and Safeguarding",Adult Social Care,101,Supplies and Services,504,Equipment,5023,Revenue,WASTE.RECYCLING
05/01/2022,2259374,242.49,CAREABILITY HEALTHCARE (322034),322034,"Health, Education, Care and Safeguarding",Adult Social Care,101,Supplies and Services,504,Equipment,5023,Revenue,SOCIAL CARE.CARE SERVICES
05/01/2022,2259375,0.00,READYPAY LTD T/A PHOENIX TAXIS,306608,Commissioning & Asset Management,Children's & Education Services,103,Transport,503,Recharges,5017,Revenue,PUBLIC TRANSPORT.TAXI SERVICES
05/01/2022,2259375,0.00,READYPAY LTD T/A PHOENIX TAXIS,306608,Commissioning & Asset Management,Children's & Education Services,103,Transport,503,Recharges,5017,Revenue,PUBLIC TRANSPORT.TAXI SERVICES
05/01/2022,2259375,0.00,READYPAY LTD T/A PHOENIX TAXIS,306608,Commissioning & Asset Management,Children's & Education Services,103,Transfer Payments,506,School Children and Students,5046,Revenue,PUBLIC TRANSPORT.TAXI SERVICES
05/01/2022,2259375,1320.00,READYPAY LTD T/A PHOENIX TAXIS,306608,Commissioning & Asset Management,Children's & Education Services,103,Transfer Payments,506,School Children and Students,5046,Revenue,PUBLIC TRANSPORT.TAXI SERVICES
05/01/2022,2259375,1470.00,READYPAY LTD T/A PHOENIX TAXIS,306608,Commissioning & Asset Management,Children's & Education Services,103,Transport,503,Recharges,5017,Revenue,PUBLIC TRANSPORT.TAXI SERVICES
05/01/2022,2259375,1470.00,READYPAY LTD T/A PHOENIX TAXIS,306608,Commissioning & Asset Management,Children's & Education Services,103,Transport,503,Recharges,5017,Revenue,PUBLIC TRANSPORT.TAXI SERVICES
05/01/2022,2259375,1470.00,READYPAY LTD T/A PHOENIX TAXIS,306608,Commissioning & Asset Management,Children's & Education Services,103,Transport,503,Recharges,5017,Revenue,PUBLIC TRANSPORT.TAXI SERVICES
05/01/2022,2259375,1470.00,READYPAY LTD T/A PHOENIX TAXIS,306608,Commissioning & Asset Management,Children's & Education Services,103,Transport,503,Recharges,5017,Revenue,PUBLIC TRANSPORT.TAXI SERVICES
05/01/2022,2259375,1470.00,READYPAY LTD T/A PHOENIX TAXIS,306608,Commissioning & Asset Management,Children's & Education Services,103,Transport,503,Recharges,5017,Revenue,PUBLIC TRANSPORT.TAXI SERVICES
05/01/2022,2259375,1512.00,READYPAY LTD T/A PHOENIX TAXIS,306608,Commissioning & Asset Management,Children's & Education Services,103,Transport,503,Recharges,5017,Revenue,PUBLIC TRANSPORT.TAXI SERVICES
05/01/2022,2259375,1530.00,READYPAY LTD T/A PHOENIX TAXIS,306608,Commissioning & Asset Management,Children's & Education Services,103,Transport,503,Recharges,5017,Revenue,PUBLIC TRANSPORT.TAXI SERVICES
05/01/2022,2259375,1590.00,READYPAY LTD T/A PHOENIX TAXIS,306608,Commissioning & Asset Management,Children's & Education Services,103,Transfer Payments,506,School Children and Students,5046,Revenue,PUBLIC TRANSPORT.TAXI SERVICES
05/01/2022,2259375,1620.00,READYPAY LTD T/A PHOENIX TAXIS,306608,Commissioning & Asset Management,Children's & Education Services,103,Transport,503,Recharges,5017,Revenue,PUBLIC TRANSPORT.TAXI SERVICES
05/01/2022,2259375,1620.00,READYPAY LTD T/A PHOENIX TAXIS,306608,Commissioning & Asset Management,Children's & Education Services,103,Transport,503,Recharges,5017,Revenue,PUBLIC TRANSPORT.TAXI SERVICES
05/01/2022,2259375,1620.00,READYPAY LTD T/A PHOENIX TAXIS,306608,Commissioning & Asset Management,Children's & Education Services,103,Transport,503,Recharges,5017,Revenue,PUBLIC TRANSPORT.TAXI SERVICES
05/01/2022,2259375,1740.00,READYPAY LTD T/A PHOENIX TAXIS,306608,Commissioning & Asset Management,Children's & Education Services,103,Transport,503,Recharges,5017,Revenue,PUBLIC TRANSPORT.TAXI SERVICES
05/01/2022,2259375,1824.60,READYPAY LTD T/A PHOENIX TAXIS,306608,Commissioning & Asset Management,Children's & Education Services,103,Transport,503,Recharges,5017,Revenue,PUBLIC TRANSPORT.TAXI SERVICES
05/01/2022,2259376,475.19,AV IRRIGATION LTD,388155,"Environment, Housing & Leisure",Cultural & Related Services,104,Supplies and Services,504,Equipment,5023,Revenue,HORTICULTURAL.LANDSCAPING
05/01/2022,2259377,11714.92,NORTH EAST AUTISM SOCIETY,329004,"Health, Education, Care and Safeguarding",Children's & Education Services,103,Third Party Payments,505,Private Contractors,5042,Revenue,SOCIAL CARE.CARE SERVICES
05/01/2022,2259377,15441.36,NORTH EAST AUTISM SOCIETY,329004,"Health, Education, Care and Safeguarding",Children's & Education Services,103,Third Party Payments,505,Private Contractors,5042,Revenue,SOCIAL CARE.CARE SERVICES
05/01/2022,2259378,42.60,ALISON BLACK LIMITED T/A SPORTMAX,387480,"Environment, Housing & Leisure",Cultural & Related Services,104,Supplies and Services,504,Equipment,5023,Revenue,SPORTS & PLAYGROUND EQUIPMENT.SPORTS EQUIPMENT
05/01/2022,2259378,392.75,ALISON BLACK LIMITED T/A SPORTMAX,387480,"Environment, Housing & Leisure",Cultural & Related Services,104,Supplies and Services,504,Equipment,5023,Revenue,SPORTS & PLAYGROUND EQUIPMENT.SPORTS EQUIPMENT
05/01/2022,2259379,1000.00,MISS RUTH PHILLIPS,386803,"Health, Education, Care and Safeguarding",Children's & Education Services,103,Third Party Payments,505,Private Contractors,5042,Revenue,LEGAL.LEGAL OPINION
05/01/2022,2259380,15.30,ASKEWS & HOLTS LIBRARY SERVICE LTD,313909,"Environment, Housing & Leisure",Cultural & Related Services,104,Supplies and Services,504,Equipment,5023,Revenue,SUBSCRIPTIONS & PUBLICATIONS.BOOKS & PUBLICATIONS
05/01/2022,2259380,21.30,ASKEWS & HOLTS LIBRARY SERVICE LTD,313909,"Environment, Housing & Leisure",Cultural & Related Services,104,Supplies and Services,504,Equipment,5023,Revenue,SUBSCRIPTIONS & PUBLICATIONS.BOOKS & PUBLICATIONS
05/01/2022,2259380,285.27,ASKEWS & HOLTS LIBRARY SERVICE LTD,313909,"Environment, Housing & Leisure",Cultural & Related Services,104,Supplies and Services,504,Equipment,5023,Revenue,SUBSCRIPTIONS & PUBLICATIONS.BOOKS & PUBLICATIONS
05/01/2022,2259380,368.43,ASKEWS & HOLTS LIBRARY SERVICE LTD,313909,"Environment, Housing & Leisure",Cultural & Related Services,104,Supplies and Services,504,Equipment,5023,Revenue,SUBSCRIPTIONS & PUBLICATIONS.BOOKS & PUBLICATIONS
05/01/2022,2259381,2216.27,GROUNDWORK NORTH EAST,384084,"Environment, Housing & Leisure",Environmental & Regulatory Services,105,Third Party Payments,505,Private Contractors,5042,Revenue,NON INFLUENCIBLE.NON INFLUENCIBLE
05/01/2022,2259382,222.78,SAFETY KLEEN UK LTD,019055,"Environment, Housing & Leisure",Unallocated,N/A,Supplies and Services,504,Equipment,5023,Revenue,ENVIRONMENTAL SERVICES.ENVIRONMENTAL MANAGEMENT
05/01/2022,2259383,435.80,G HARRISONS T/A GMA MOTORS,343303,"Environment, Housing & Leisure",Unallocated,N/A,Transport,503,Direct Transport Costs,5016,Revenue,VEHICLE MANAGEMENT.PARTS
05/01/2022,2259383,483.80,G HARRISONS T/A GMA MOTORS,343303,"Environment, Housing & Leisure",Unallocated,N/A,Transport,503,Direct Transport Costs,5016,Revenue,VEHICLE MANAGEMENT.PARTS
05/01/2022,2259384,749.50,COBOLT SYSTEMS LTD,302590,"Health, Education, Care and Safeguarding",Adult Social Care,101,Supplies and Services,504,Equipment,5023,Revenue,SOCIAL CARE.SUPPLIES
05/01/2022,2259385,230.00,AIDAPT BATHROOMS LTD,352134,"Health, Education, Care and Safeguarding",Adult Social Care,101,Supplies and Services,504,Equipment,5023,Revenue,SOCIAL CARE.SUPPLIES
05/01/2022,2259385,276.00,AIDAPT BATHROOMS LTD,352134,"Health, Education, Care and Safeguarding",Adult Social Care,101,Supplies and Services,504,Equipment,5023,Revenue,SOCIAL CARE.SUPPLIES
05/01/2022,2259385,359.00,AIDAPT BATHROOMS LTD,352134,"Health, Education, Care and Safeguarding",Adult Social Care,101,Supplies and Services,504,Equipment,5023,Revenue,SOCIAL CARE.SUPPLIES
05/01/2022,2259385,564.60,AIDAPT BATHROOMS LTD,352134,"Health, Education, Care and Safeguarding",Adult Social Care,101,Supplies and Services,504,Equipment,5023,Revenue,SOCIAL CARE.SUPPLIES
05/01/2022,2259385,680.00,AIDAPT BATHROOMS LTD,352134,"Health, Education, Care and Safeguarding",Adult Social Care,101,Supplies and Services,504,Equipment,5023,Revenue,SOCIAL CARE.SUPPLIES
05/01/2022,2259385,900.00,AIDAPT BATHROOMS LTD,352134,"Health, Education, Care and Safeguarding",Adult Social Care,101,Supplies and Services,504,Equipment,5023,Revenue,SOCIAL CARE.SUPPLIES
